Workbook

Sheet Display
F2: CQG SPDR® S&P® Biotech ETF Performance | AB2: =RTD("cqg.rtd", ,"SystemInfo", "Linetime") -> 44207.50995
B5: Exchange Traded Funds Performance | S5: Top 15 Performing Companies
B6: Symbol | C6: Description | H6: Last | I6: NC | J6: %NC | K6: NC/ATR | L6: Open | M6: High | N6: Low | O6: Volume | Q6: Ratio
B7: XBI | C7: =RTD("cqg.rtd", ,"ContractData",B7, "LongDescription",, "T") -> SPDR S&P Biotech ETF | H7: =RTD("cqg.rtd", ,"ContractData",B7, "LastTradeToday",, "T") -> 149.28 | I7: =RTD("cqg.rtd", ,"ContractData",B7, "NetLastTradeToday",, "T") -> -0.26 | J7: =RTD("cqg.rtd", ,"ContractData",B7, "PerCentNetLastTrade",, "T")/100 -> -0.00173866524 | K7: =I7/RTD("cqg.rtd",,"StudyData",B7, "ATR", "MaType=Sim,Period=10", "ATR","D","-1","ALL",,,"FALSE","T")/100 -> -0.0005752212389 | L7: =RTD("cqg.rtd", ,"ContractData",B7, "OPen",, "T") -> 148.57 | M7: =RTD("cqg.rtd", ,"ContractData", B7, "HIgh",, "T") -> 149.3 | N7: =RTD("cqg.rtd", ,"ContractData",B7, "LOw",, "T") -> 145.75 | O7: =RTD("cqg.rtd", ,"ContractData",B7, "T_CVol",, "T") -> 1881523 | Q7: =IFERROR(O7/RTD("cqg.rtd",,"StudyData",B7, "MA", "InputChoice=Vol,MAType=Sim,Period=21", "MA","D","-1","all",,,,"T"),"") -> 0.364997391
B8: SPY | C8: =RTD("cqg.rtd", ,"ContractData",B8, "LongDescription",, "T") -> SPDR S&P 500 | H8: =RTD("cqg.rtd", ,"ContractData",B8, "LastTradeToday",, "T") -> 380.4 | I8: =RTD("cqg.rtd", ,"ContractData",B8, "NetLastTradeToday",, "T") -> -0.86 | J8: =RTD("cqg.rtd", ,"ContractData",B8, "PerCentNetLastTrade",, "T")/100 -> -0.00225567854 | K8: =I8/RTD("cqg.rtd",,"StudyData",B8, "ATR", "MaType=Sim,Period=10", "ATR","D","-1","ALL",,,"FALSE","T")/100 -> -0.001812816189 | L8: =RTD("cqg.rtd", ,"ContractData",B8, "OPen",, "T") -> 377.85 | M8: =RTD("cqg.rtd", ,"ContractData", B8, "HIgh",, "T") -> 380.58 | N8: =RTD("cqg.rtd", ,"ContractData",B8, "LOw",, "T") -> 377.71 | O8: =RTD("cqg.rtd", ,"ContractData",B8, "T_CVol",, "T") -> 24173227 | Q8: =IFERROR(O8/RTD("cqg.rtd",,"StudyData",B8, "MA", "InputChoice=Vol,MAType=Sim,Period=21", "MA","D","-1","all",,,,"T"),"") -> 0.3512889389
B9: XLF | C9: =RTD("cqg.rtd", ,"ContractData",B9, "LongDescription",, "T") -> Financial Select Sector SPDR | H9: =RTD("cqg.rtd", ,"ContractData",B9, "LastTradeToday",, "T") -> 31.04 | I9: =RTD("cqg.rtd", ,"ContractData",B9, "NetLastTradeToday",, "T") -> 0.12 | J9: =RTD("cqg.rtd", ,"ContractData",B9, "PerCentNetLastTrade",, "T")/100 -> 0.003880983182 | K9: =I9/RTD("cqg.rtd",,"StudyData",B9, "ATR", "MaType=Sim,Period=10", "ATR","D","-1","ALL",,,"FALSE","T")/100 -> 0.002108963093 | L9: =RTD("cqg.rtd", ,"ContractData",B9, "OPen",, "T") -> 30.62 | M9: =RTD("cqg.rtd", ,"ContractData", B9, "HIgh",, "T") -> 31.06 | N9: =RTD("cqg.rtd", ,"ContractData",B9, "LOw",, "T") -> 30.49 | O9: =RTD("cqg.rtd", ,"ContractData",B9, "T_CVol",, "T") -> 19011306 | Q9: =IFERROR(O9/RTD("cqg.rtd",,"StudyData",B9, "MA", "InputChoice=Vol,MAType=Sim,Period=21", "MA","D","-1","all",,,,"T"),"") -> 0.4178202048
B10: S.AAPL | C10: =RTD("cqg.rtd", ,"ContractData",B10, "LongDescription",, "T") -> Apple Inc | H10: =RTD("cqg.rtd", ,"ContractData",B10, "LastTradeToday",, "T") -> 129.73 | I10: =RTD("cqg.rtd", ,"ContractData",B10, "NetLastTradeToday",, "T") -> -2.32 | J10: =RTD("cqg.rtd", ,"ContractData",B10, "PerCentNetLastTrade",, "T")/100 -> -0.01756910261 | K10: =I10/RTD("cqg.rtd",,"StudyData",B10, "ATR", "MaType=Sim,Period=10", "ATR","D","-1","ALL",,,"FALSE","T")/100 -> -0.005775454319 | L10: =RTD("cqg.rtd", ,"ContractData",B10, "OPen",, "T") -> 129.19 | M10: =RTD("cqg.rtd", ,"ContractData", B10, "HIgh",, "T") -> 130.17 | N10: =RTD("cqg.rtd", ,"ContractData",B10, "LOw",, "T") -> 128.5 | O10: =RTD("cqg.rtd", ,"ContractData",B10, "T_CVol",, "T") -> 56148961 | Q10: =IFERROR(O10/RTD("cqg.rtd",,"StudyData",B10, "MA", "InputChoice=Vol,MAType=Sim,Period=21", "MA","D","-1","all",,,,"T"),"") -> 0.4932043294
B11: KBE | C11: =RTD("cqg.rtd", ,"ContractData",B11, "LongDescription",, "T") -> SPDR S&P Bank ETF | H11: =RTD("cqg.rtd", ,"ContractData",B11, "LastTradeToday",, "T") -> 45.76 | I11: =RTD("cqg.rtd", ,"ContractData",B11, "NetLastTradeToday",, "T") -> 0.54 | J11: =RTD("cqg.rtd", ,"ContractData",B11, "PerCentNetLastTrade",, "T")/100 -> 0.01194161875 | K11: =I11/RTD("cqg.rtd",,"StudyData",B11, "ATR", "MaType=Sim,Period=10", "ATR","D","-1","ALL",,,"FALSE","T")/100 -> 0.004372469636 | L11: =RTD("cqg.rtd", ,"ContractData",B11, "OPen",, "T") -> 44.73 | M11: =RTD("cqg.rtd", ,"ContractData", B11, "HIgh",, "T") -> 45.77 | N11: =RTD("cqg.rtd", ,"ContractData",B11, "LOw",, "T") -> 44.41 | O11: =RTD("cqg.rtd", ,"ContractData",B11, "T_CVol",, "T") -> 1484099 | Q11: =IFERROR(O11/RTD("cqg.rtd",,"StudyData",B11, "MA", "InputChoice=Vol,MAType=Sim,Period=21", "MA","D","-1","all",,,,"T"),"") -> 0.5026848393
B12: IWF | C12: =RTD("cqg.rtd", ,"ContractData",B12, "LongDescription",, "T") -> iShares Russell 1000 Growth ETF | H12: =RTD("cqg.rtd", ,"ContractData",B12, "LastTradeToday",, "T") -> 242.89 | I12: =RTD("cqg.rtd", ,"ContractData",B12, "NetLastTradeToday",, "T") -> -1.3 | J12: =RTD("cqg.rtd", ,"ContractData",B12, "PerCentNetLastTrade",, "T")/100 -> -0.00532372333 | K12: =I12/RTD("cqg.rtd",,"StudyData",B12, "ATR", "MaType=Sim,Period=10", "ATR","D","-1","ALL",,,"FALSE","T")/100 -> -0.003785672685 | L12: =RTD("cqg.rtd", ,"ContractData",B12, "OPen",, "T") -> 241.8 | M12: =RTD("cqg.rtd", ,"ContractData", B12, "HIgh",, "T") -> 243.14 | N12: =RTD("cqg.rtd", ,"ContractData",B12, "LOw",, "T") -> 240.85 | O12: =RTD("cqg.rtd", ,"ContractData",B12, "T_CVol",, "T") -> 951177 | Q12: =IFERROR(O12/RTD("cqg.rtd",,"StudyData",B12, "MA", "InputChoice=Vol,MAType=Sim,Period=21", "MA","D","-1","all",,,,"T"),"") -> 0.6827260347
B13: IWO | C13: =RTD("cqg.rtd", ,"ContractData",B13, "LongDescription",, "T") -> iShares Russell 2000 Growth ETF | H13: =RTD("cqg.rtd", ,"ContractData",B13, "LastTradeToday",, "T") -> 303.51 | I13: =RTD("cqg.rtd", ,"ContractData",B13, "NetLastTradeToday",, "T") -> -0.02 | J13: =RTD("cqg.rtd", ,"ContractData",B13, "PerCentNetLastTrade",, "T")/100 -> -6.589134517e-05 | K13: =I13/RTD("cqg.rtd",,"StudyData",B13, "ATR", "MaType=Sim,Period=10", "ATR","D","-1","ALL",,,"FALSE","T")/100 -> -2.807017544e-05 | L13: =RTD("cqg.rtd", ,"ContractData",B13, "OPen",, "T") -> 299.56 | M13: =RTD("cqg.rtd", ,"ContractData", B13, "HIgh",, "T") -> 303.79 | N13: =RTD("cqg.rtd", ,"ContractData",B13, "LOw",, "T") -> 298.01 | O13: =RTD("cqg.rtd", ,"ContractData",B13, "T_CVol",, "T") -> 405647 | Q13: =IFERROR(O13/RTD("cqg.rtd",,"StudyData",B13, "MA", "InputChoice=Vol,MAType=Sim,Period=21", "MA","D","-1","all",,,,"T"),"") -> 0.6999782576
B14: EP | C14: =RTD("cqg.rtd", ,"ContractData",B14, "LongDescription",, "T") -> E-Mini S&P 500, Mar 21 | H14: =RTD("cqg.rtd", ,"ContractData",B14, "LastTradeToday",, "T") -> 3808.5 | I14: =RTD("cqg.rtd", ,"ContractData",B14, "NetLastTradeToday",, "T") -> -9 | J14: =RTD("cqg.rtd", ,"ContractData",B14, "PerCentNetLastTrade",, "T")/100 -> -0.002357563851 | K14: =I14/RTD("cqg.rtd",,"StudyData",B14, "ATR", "MaType=Sim,Period=10", "ATR","D","-1","ALL",,,"FALSE","T")/100 -> -0.00164684355 | L14: =RTD("cqg.rtd", ,"ContractData",B14, "OPen",, "T") -> 3815.5 | M14: =RTD("cqg.rtd", ,"ContractData", B14, "HIgh",, "T") -> 3820.75 | N14: =RTD("cqg.rtd", ,"ContractData",B14, "LOw",, "T") -> 3776.5 | O14: =RTD("cqg.rtd", ,"ContractData",B14, "T_CVol",, "T") -> 802513 | Q14: =IFERROR(O14/RTD("cqg.rtd",,"StudyData",B14, "MA", "InputChoice=Vol,MAType=Sim,Period=21", "MA","D","-1","all",,,,"T"),"") -> 0.4725367174
B15: XLE | C15: =RTD("cqg.rtd", ,"ContractData",B15, "LongDescription",, "T") -> Energy Select Sector SPDR | H15: =RTD("cqg.rtd", ,"ContractData",B15, "LastTradeToday",, "T") -> 42.17 | I15: =RTD("cqg.rtd", ,"ContractData",B15, "NetLastTradeToday",, "T") -> 0.75 | J15: =RTD("cqg.rtd", ,"ContractData",B15, "PerCentNetLastTrade",, "T")/100 -> 0.01810719459 | K15: =I15/RTD("cqg.rtd",,"StudyData",B15, "ATR", "MaType=Sim,Period=10", "ATR","D","-1","ALL",,,"FALSE","T")/100 -> 0.006607929515 | L15: =RTD("cqg.rtd", ,"ContractData",B15, "OPen",, "T") -> 40.52 | M15: =RTD("cqg.rtd", ,"ContractData", B15, "HIgh",, "T") -> 42.23 | N15: =RTD("cqg.rtd", ,"ContractData",B15, "LOw",, "T") -> 40.29 | O15: =RTD("cqg.rtd", ,"ContractData",B15, "T_CVol",, "T") -> 12728785 | Q15: =IFERROR(O15/RTD("cqg.rtd",,"StudyData",B15, "MA", "InputChoice=Vol,MAType=Sim,Period=21", "MA","D","-1","all",,,,"T"),"") -> 0.4224310863
B16: RYT | C16: =RTD("cqg.rtd", ,"ContractData",B16, "LongDescription",, "T") -> Invesco S&P 500 Eq Wt Technology ETF | H16: =RTD("cqg.rtd", ,"ContractData",B16, "LastTradeToday",, "T") -> 261.13 | I16: =RTD("cqg.rtd", ,"ContractData",B16, "NetLastTradeToday",, "T") -> 0.78 | J16: =RTD("cqg.rtd", ,"ContractData",B16, "PerCentNetLastTrade",, "T")/100 -> 0.002995966968 | K16: =I16/RTD("cqg.rtd",,"StudyData",B16, "ATR", "MaType=Sim,Period=10", "ATR","D","-1","ALL",,,"FALSE","T")/100 -> 0.002067868505 | L16: =RTD("cqg.rtd", ,"ContractData",B16, "OPen",, "T") -> 258.02 | M16: =RTD("cqg.rtd", ,"ContractData", B16, "HIgh",, "T") -> 261.21 | N16: =RTD("cqg.rtd", ,"ContractData",B16, "LOw",, "T") -> 257.83 | O16: =RTD("cqg.rtd", ,"ContractData",B16, "T_CVol",, "T") -> 35733 | Q16: =IFERROR(O16/RTD("cqg.rtd",,"StudyData",B16, "MA", "InputChoice=Vol,MAType=Sim,Period=21", "MA","D","-1","all",,,,"T"),"") -> 0.7772162886
C17: Top 15 Description | H17: Last | I17: NC | J17: %NC | K17: NC/ATR | L17: Open | M17: High | N17: Low | O17: Volume | Q17: Ratio
A18: =TRIM(XBI!O1) -> S.US.EXAS | B18: News | C18: =RTD("cqg.rtd", ,"ContractData",A18, "LongDescription",, "T")&" ("&RIGHT(A18,LEN(A18)-5)&")" -> EXACT Sciences Corp (EXAS) | H18: =RTD("cqg.rtd", ,"ContractData",A18, "LastTradeToday",, "T") -> 149.08 | I18: =RTD("cqg.rtd", ,"ContractData",A18, "NetLastTradeToday",, "T") -> 17.98 | J18: =RTD("cqg.rtd", ,"ContractData",A18, "PerCentNetLastTrade",, "T")/100 -> 0.1371472159 | K18: =I18/RTD("cqg.rtd",,"StudyData",A18, "ATR", "MaType=Sim,Period=10", "ATR","D","-1","ALL",,,"FALSE","T")/100 -> 0.03159929701 | L18: =RTD("cqg.rtd", ,"ContractData",A18, "OPen",, "T") -> 132.93 | M18: =RTD("cqg.rtd", ,"ContractData", A18, "HIgh",, "T") -> 152.48 | N18: =RTD("cqg.rtd", ,"ContractData",A18, "LOw",, "T") -> 132.49 | O18: =RTD("cqg.rtd", ,"ContractData",A18, "T_CVol",, "T") -> 4412475 | Q18: =IFERROR(O18/RTD("cqg.rtd",,"StudyData",A18, "MA", "InputChoice=Vol,MAType=Sim,Period=21", "MA","D","-1","all",,,,"T"),"") -> 3.009755121 | R18: =XBI!Q1 -> https://finance.yahoo.com/quote/EXAS
A19: =TRIM(XBI!O2) -> S.US.CLVS | B19: News | C19: =RTD("cqg.rtd", ,"ContractData",A19, "LongDescription",, "T")&" ("&RIGHT(A19,LEN(A19)-5)&")" -> Clovis Oncology, Inc. (CLVS) | H19: =RTD("cqg.rtd", ,"ContractData",A19, "LastTradeToday",, "T") -> 5.65 | I19: =RTD("cqg.rtd", ,"ContractData",A19, "NetLastTradeToday",, "T") -> 0.6 | J19: =RTD("cqg.rtd", ,"ContractData",A19, "PerCentNetLastTrade",, "T")/100 -> 0.1188118812 | K19: =I19/RTD("cqg.rtd",,"StudyData",A19, "ATR", "MaType=Sim,Period=10", "ATR","D","-1","ALL",,,"FALSE","T")/100 -> 0.02054794521 | L19: =RTD("cqg.rtd", ,"ContractData",A19, "OPen",, "T") -> 5.22 | M19: =RTD("cqg.rtd", ,"ContractData", A19, "HIgh",, "T") -> 5.74 | N19: =RTD("cqg.rtd", ,"ContractData",A19, "LOw",, "T") -> 5.1 | O19: =RTD("cqg.rtd", ,"ContractData",A19, "T_CVol",, "T") -> 6539403 | Q19: =IFERROR(O19/RTD("cqg.rtd",,"StudyData",A19, "MA", "InputChoice=Vol,MAType=Sim,Period=21", "MA","D","-1","all",,,,"T"),"") -> 1.269646126 | R19: =XBI!Q2 -> https://finance.yahoo.com/quote/CLVS
A20: =TRIM(XBI!O3) -> S.US.ALVR | B20: News | C20: =RTD("cqg.rtd", ,"ContractData",A20, "LongDescription",, "T")&" ("&RIGHT(A20,LEN(A20)-5)&")" -> AlloVir, Inc. (ALVR) | H20: =RTD("cqg.rtd", ,"ContractData",A20, "LastTradeToday",, "T") -> 48.04 | I20: =RTD("cqg.rtd", ,"ContractData",A20, "NetLastTradeToday",, "T") -> 5.07 | J20: =RTD("cqg.rtd", ,"ContractData",A20, "PerCentNetLastTrade",, "T")/100 -> 0.1179892949 | K20: =I20/RTD("cqg.rtd",,"StudyData",A20, "ATR", "MaType=Sim,Period=10", "ATR","D","-1","ALL",,,"FALSE","T")/100 -> 0.01225525743 | L20: =RTD("cqg.rtd", ,"ContractData",A20, "OPen",, "T") -> 42.85 | M20: =RTD("cqg.rtd", ,"ContractData", A20, "HIgh",, "T") -> 48.31 | N20: =RTD("cqg.rtd", ,"ContractData",A20, "LOw",, "T") -> 42.85 | O20: =RTD("cqg.rtd", ,"ContractData",A20, "T_CVol",, "T") -> 102365 | Q20: =IFERROR(O20/RTD("cqg.rtd",,"StudyData",A20, "MA", "InputChoice=Vol,MAType=Sim,Period=21", "MA","D","-1","all",,,,"T"),"") -> 0.2706069741 | R20: =XBI!Q3 -> https://finance.yahoo.com/quote/ALVR
A21: =TRIM(XBI!O4) -> S.US.SRPT | B21: News | C21: =RTD("cqg.rtd", ,"ContractData",A21, "LongDescription",, "T")&" ("&RIGHT(A21,LEN(A21)-5)&")" -> Sarepta Therapeutics, Inc. (SRPT) | H21: =RTD("cqg.rtd", ,"ContractData",A21, "LastTradeToday",, "T") -> 90.32 | I21: =RTD("cqg.rtd", ,"ContractData",A21, "NetLastTradeToday",, "T") -> 8.03 | J21: =RTD("cqg.rtd", ,"ContractData",A21, "PerCentNetLastTrade",, "T")/100 -> 0.09758172317 | K21: =I21/RTD("cqg.rtd",,"StudyData",A21, "ATR", "MaType=Sim,Period=10", "ATR","D","-1","ALL",,,"FALSE","T")/100 -> 0.005347629196 | L21: =RTD("cqg.rtd", ,"ContractData",A21, "OPen",, "T") -> 87.2 | M21: =RTD("cqg.rtd", ,"ContractData", A21, "HIgh",, "T") -> 90.93 | N21: =RTD("cqg.rtd", ,"ContractData",A21, "LOw",, "T") -> 84.15 | O21: =RTD("cqg.rtd", ,"ContractData",A21, "T_CVol",, "T") -> 7682296 | Q21: =IFERROR(O21/RTD("cqg.rtd",,"StudyData",A21, "MA", "InputChoice=Vol,MAType=Sim,Period=21", "MA","D","-1","all",,,,"T"),"") -> 3.689568154 | R21: =XBI!Q4 -> https://finance.yahoo.com/quote/SRPT
A22: =TRIM(XBI!O5) -> S.US.GTHX | B22: News | C22: =RTD("cqg.rtd", ,"ContractData",A22, "LongDescription",, "T")&" ("&RIGHT(A22,LEN(A22)-5)&")" -> G1 Therapeutics, Inc. (GTHX) | H22: =RTD("cqg.rtd", ,"ContractData",A22, "LastTradeToday",, "T") -> 19.14 | I22: =RTD("cqg.rtd", ,"ContractData",A22, "NetLastTradeToday",, "T") -> 1.55 | J22: =RTD("cqg.rtd", ,"ContractData",A22, "PerCentNetLastTrade",, "T")/100 -> 0.08811824901 | K22: =I22/RTD("cqg.rtd",,"StudyData",A22, "ATR", "MaType=Sim,Period=10", "ATR","D","-1","ALL",,,"FALSE","T")/100 -> 0.02058432935 | L22: =RTD("cqg.rtd", ,"ContractData",A22, "OPen",, "T") -> 17.61 | M22: =RTD("cqg.rtd", ,"ContractData", A22, "HIgh",, "T") -> 19.18 | N22: =RTD("cqg.rtd", ,"ContractData",A22, "LOw",, "T") -> 17.5 | O22: =RTD("cqg.rtd", ,"ContractData",A22, "T_CVol",, "T") -> 692705 | Q22: =IFERROR(O22/RTD("cqg.rtd",,"StudyData",A22, "MA", "InputChoice=Vol,MAType=Sim,Period=21", "MA","D","-1","all",,,,"T"),"") -> 0.6013206662 | R22: =XBI!Q5 -> https://finance.yahoo.com/quote/GTHX
A23: =TRIM(XBI!O6) -> S.US.BIIB | B23: News | C23: =RTD("cqg.rtd", ,"ContractData",A23, "LongDescription",, "T")&" ("&RIGHT(A23,LEN(A23)-5)&")" -> Biogen Inc. (BIIB) | H23: =RTD("cqg.rtd", ,"ContractData",A23, "LastTradeToday",, "T") -> 273.69 | I23: =RTD("cqg.rtd", ,"ContractData",A23, "NetLastTradeToday",, "T") -> 21.15 | J23: =RTD("cqg.rtd", ,"ContractData",A23, "PerCentNetLastTrade",, "T")/100 -> 0.08374910905 | K23: =I23/RTD("cqg.rtd",,"StudyData",A23, "ATR", "MaType=Sim,Period=10", "ATR","D","-1","ALL",,,"FALSE","T")/100 -> 0.04372544966 | L23: =RTD("cqg.rtd", ,"ContractData",A23, "OPen",, "T") -> 255.86 | M23: =RTD("cqg.rtd", ,"ContractData", A23, "HIgh",, "T") -> 275.49 | N23: =RTD("cqg.rtd", ,"ContractData",A23, "LOw",, "T") -> 253.31 | O23: =RTD("cqg.rtd", ,"ContractData",A23, "T_CVol",, "T") -> 1914099 | Q23: =IFERROR(O23/RTD("cqg.rtd",,"StudyData",A23, "MA", "InputChoice=Vol,MAType=Sim,Period=21", "MA","D","-1","all",,,,"T"),"") -> 1.534430775 | R23: =XBI!Q6 -> https://finance.yahoo.com/quote/BIIB
A24: =TRIM(XBI!O7) -> S.US.EXEL | B24: News | C24: =RTD("cqg.rtd", ,"ContractData",A24, "LongDescription",, "T")&" ("&RIGHT(A24,LEN(A24)-5)&")" -> Exelixis, Inc. (EXEL) | H24: =RTD("cqg.rtd", ,"ContractData",A24, "LastTradeToday",, "T") -> 24.44 | I24: =RTD("cqg.rtd", ,"ContractData",A24, "NetLastTradeToday",, "T") -> 1.62 | J24: =RTD("cqg.rtd", ,"ContractData",A24, "PerCentNetLastTrade",, "T")/100 -> 0.07099035933 | K24: =I24/RTD("cqg.rtd",,"StudyData",A24, "ATR", "MaType=Sim,Period=10", "ATR","D","-1","ALL",,,"FALSE","T")/100 -> 0.02462006079 | L24: =RTD("cqg.rtd", ,"ContractData",A24, "OPen",, "T") -> 24.1 | M24: =RTD("cqg.rtd", ,"ContractData", A24, "HIgh",, "T") -> 24.49 | N24: =RTD("cqg.rtd", ,"ContractData",A24, "LOw",, "T") -> 23.52 | O24: =RTD("cqg.rtd", ,"ContractData",A24, "T_CVol",, "T") -> 2198232 | Q24: =IFERROR(O24/RTD("cqg.rtd",,"StudyData",A24, "MA", "InputChoice=Vol,MAType=Sim,Period=21", "MA","D","-1","all",,,,"T"),"") -> 0.849688785 | R24: =XBI!Q7 -> https://finance.yahoo.com/quote/EXEL
A25: =TRIM(XBI!O8) -> S.US.RCUS | B25: News | C25: =RTD("cqg.rtd", ,"ContractData",A25, "LongDescription",, "T")&" ("&RIGHT(A25,LEN(A25)-5)&")" -> Arcus Biosciences, Inc. (RCUS) | H25: =RTD("cqg.rtd", ,"ContractData",A25, "LastTradeToday",, "T") -> 32.78 | I25: =RTD("cqg.rtd", ,"ContractData",A25, "NetLastTradeToday",, "T") -> 1.95 | J25: =RTD("cqg.rtd", ,"ContractData",A25, "PerCentNetLastTrade",, "T")/100 -> 0.06325008109 | K25: =I25/RTD("cqg.rtd",,"StudyData",A25, "ATR", "MaType=Sim,Period=10", "ATR","D","-1","ALL",,,"FALSE","T")/100 -> 0.009715994021 | L25: =RTD("cqg.rtd", ,"ContractData",A25, "OPen",, "T") -> 30.2 | M25: =RTD("cqg.rtd", ,"ContractData", A25, "HIgh",, "T") -> 32.97 | N25: =RTD("cqg.rtd", ,"ContractData",A25, "LOw",, "T") -> 29.57 | O25: =RTD("cqg.rtd", ,"ContractData",A25, "T_CVol",, "T") -> 249722 | Q25: =IFERROR(O25/RTD("cqg.rtd",,"StudyData",A25, "MA", "InputChoice=Vol,MAType=Sim,Period=21", "MA","D","-1","all",,,,"T"),"") -> 0.4898690659 | R25: =XBI!Q8 -> https://finance.yahoo.com/quote/RCUS
A26: =TRIM(XBI!O9) -> S.US.MRNA | B26: News | C26: =RTD("cqg.rtd", ,"ContractData",A26, "LongDescription",, "T")&" ("&RIGHT(A26,LEN(A26)-5)&")" -> Moderna, Inc. (MRNA) | H26: =RTD("cqg.rtd", ,"ContractData",A26, "LastTradeToday",, "T") -> 119.57 | I26: =RTD("cqg.rtd", ,"ContractData",A26, "NetLastTradeToday",, "T") -> 6.82 | J26: =RTD("cqg.rtd", ,"ContractData",A26, "PerCentNetLastTrade",, "T")/100 -> 0.06048780488 | K26: =I26/RTD("cqg.rtd",,"StudyData",A26, "ATR", "MaType=Sim,Period=10", "ATR","D","-1","ALL",,,"FALSE","T")/100 -> 0.007319952774 | L26: =RTD("cqg.rtd", ,"ContractData",A26, "OPen",, "T") -> 112.75 | M26: =RTD("cqg.rtd", ,"ContractData", A26, "HIgh",, "T") -> 121.24 | N26: =RTD("cqg.rtd", ,"ContractData",A26, "LOw",, "T") -> 112.62 | O26: =RTD("cqg.rtd", ,"ContractData",A26, "T_CVol",, "T") -> 11457215 | Q26: =IFERROR(O26/RTD("cqg.rtd",,"StudyData",A26, "MA", "InputChoice=Vol,MAType=Sim,Period=21", "MA","D","-1","all",,,,"T"),"") -> 0.4395934203 | R26: =XBI!Q9 -> https://finance.yahoo.com/quote/MRNA
A27: =TRIM(XBI!O10) -> S.US.KNSA | B27: News | C27: =RTD("cqg.rtd", ,"ContractData",A27, "LongDescription",, "T")&" ("&RIGHT(A27,LEN(A27)-5)&")" -> Kiniksa Pharmaceuticals, Ltd. Class A (KNSA) | H27: =RTD("cqg.rtd", ,"ContractData",A27, "LastTradeToday",, "T") -> 19.92 | I27: =RTD("cqg.rtd", ,"ContractData",A27, "NetLastTradeToday",, "T") -> 0.94 | J27: =RTD("cqg.rtd", ,"ContractData",A27, "PerCentNetLastTrade",, "T")/100 -> 0.04952581665 | K27: =I27/RTD("cqg.rtd",,"StudyData",A27, "ATR", "MaType=Sim,Period=10", "ATR","D","-1","ALL",,,"FALSE","T")/100 -> 0.008909952607 | L27: =RTD("cqg.rtd", ,"ContractData",A27, "OPen",, "T") -> 18.89 | M27: =RTD("cqg.rtd", ,"ContractData", A27, "HIgh",, "T") -> 19.98 | N27: =RTD("cqg.rtd", ,"ContractData",A27, "LOw",, "T") -> 18.66 | O27: =RTD("cqg.rtd", ,"ContractData",A27, "T_CVol",, "T") -> 109566 | Q27: =IFERROR(O27/RTD("cqg.rtd",,"StudyData",A27, "MA", "InputChoice=Vol,MAType=Sim,Period=21", "MA","D","-1","all",,,,"T"),"") -> 0.3084021017 | R27: =XBI!Q10 -> https://finance.yahoo.com/quote/KNSA | S27: Bottom 15 Performing Companies
A28: =TRIM(XBI!O11) -> S.US.DRNA | B28: News | C28: =RTD("cqg.rtd", ,"ContractData",A28, "LongDescription",, "T")&" ("&RIGHT(A28,LEN(A28)-5)&")" -> Dicerna Pharmaceuticals, Inc. (DRNA) | H28: =RTD("cqg.rtd", ,"ContractData",A28, "LastTradeToday",, "T") -> 24.4 | I28: =RTD("cqg.rtd", ,"ContractData",A28, "NetLastTradeToday",, "T") -> 1.11 | J28: =RTD("cqg.rtd", ,"ContractData",A28, "PerCentNetLastTrade",, "T")/100 -> 0.04765993989 | K28: =I28/RTD("cqg.rtd",,"StudyData",A28, "ATR", "MaType=Sim,Period=10", "ATR","D","-1","ALL",,,"FALSE","T")/100 -> 0.009788359788 | L28: =RTD("cqg.rtd", ,"ContractData",A28, "OPen",, "T") -> 23.74 | M28: =RTD("cqg.rtd", ,"ContractData", A28, "HIgh",, "T") -> 24.41 | N28: =RTD("cqg.rtd", ,"ContractData",A28, "LOw",, "T") -> 23.3 | O28: =RTD("cqg.rtd", ,"ContractData",A28, "T_CVol",, "T") -> 223361 | Q28: =IFERROR(O28/RTD("cqg.rtd",,"StudyData",A28, "MA", "InputChoice=Vol,MAType=Sim,Period=21", "MA","D","-1","all",,,,"T"),"") -> 0.2971174311 | R28: =XBI!Q11 -> https://finance.yahoo.com/quote/DRNA
A29: =TRIM(XBI!O12) -> S.US.PBYI | B29: News | C29: =RTD("cqg.rtd", ,"ContractData",A29, "LongDescription",, "T")&" ("&RIGHT(A29,LEN(A29)-5)&")" -> Puma Biotechnology Inc. (PBYI) | H29: =RTD("cqg.rtd", ,"ContractData",A29, "LastTradeToday",, "T") -> 11.9 | I29: =RTD("cqg.rtd", ,"ContractData",A29, "NetLastTradeToday",, "T") -> 0.51 | J29: =RTD("cqg.rtd", ,"ContractData",A29, "PerCentNetLastTrade",, "T")/100 -> 0.0447761194 | K29: =I29/RTD("cqg.rtd",,"StudyData",A29, "ATR", "MaType=Sim,Period=10", "ATR","D","-1","ALL",,,"FALSE","T")/100 -> 0.008360655738 | L29: =RTD("cqg.rtd", ,"ContractData",A29, "OPen",, "T") -> 11.39 | M29: =RTD("cqg.rtd", ,"ContractData", A29, "HIgh",, "T") -> 11.94 | N29: =RTD("cqg.rtd", ,"ContractData",A29, "LOw",, "T") -> 11.38 | O29: =RTD("cqg.rtd", ,"ContractData",A29, "T_CVol",, "T") -> 136597 | Q29: =IFERROR(O29/RTD("cqg.rtd",,"StudyData",A29, "MA", "InputChoice=Vol,MAType=Sim,Period=21", "MA","D","-1","all",,,,"T"),"") -> 0.2354248767 | R29: =XBI!Q12 -> https://finance.yahoo.com/quote/PBYI
A30: =TRIM(XBI!O13) -> S.US.TWST | B30: News | C30: =RTD("cqg.rtd", ,"ContractData",A30, "LongDescription",, "T")&" ("&RIGHT(A30,LEN(A30)-5)&")" -> Twist Bioscience Corporation (TWST) | H30: =RTD("cqg.rtd", ,"ContractData",A30, "LastTradeToday",, "T") -> 173.65 | I30: =RTD("cqg.rtd", ,"ContractData",A30, "NetLastTradeToday",, "T") -> 7.14 | J30: =RTD("cqg.rtd", ,"ContractData",A30, "PerCentNetLastTrade",, "T")/100 -> 0.04288030749 | K30: =I30/RTD("cqg.rtd",,"StudyData",A30, "ATR", "MaType=Sim,Period=10", "ATR","D","-1","ALL",,,"FALSE","T")/100 -> 0.005297128867 | L30: =RTD("cqg.rtd", ,"ContractData",A30, "OPen",, "T") -> 162.48 | M30: =RTD("cqg.rtd", ,"ContractData", A30, "HIgh",, "T") -> 173.65 | N30: =RTD("cqg.rtd", ,"ContractData",A30, "LOw",, "T") -> 156.49 | O30: =RTD("cqg.rtd", ,"ContractData",A30, "T_CVol",, "T") -> 474119 | Q30: =IFERROR(O30/RTD("cqg.rtd",,"StudyData",A30, "MA", "InputChoice=Vol,MAType=Sim,Period=21", "MA","D","-1","all",,,,"T"),"") -> 0.6191963898 | R30: =XBI!Q13 -> https://finance.yahoo.com/quote/TWST
A31: =TRIM(XBI!O14) -> S.US.RGNX | B31: News | C31: =RTD("cqg.rtd", ,"ContractData",A31, "LongDescription",, "T")&" ("&RIGHT(A31,LEN(A31)-5)&")" -> REGENXBIO Inc. (RGNX) | H31: =RTD("cqg.rtd", ,"ContractData",A31, "LastTradeToday",, "T") -> 48.91 | I31: =RTD("cqg.rtd", ,"ContractData",A31, "NetLastTradeToday",, "T") -> 1.95 | J31: =RTD("cqg.rtd", ,"ContractData",A31, "PerCentNetLastTrade",, "T")/100 -> 0.04152470187 | K31: =I31/RTD("cqg.rtd",,"StudyData",A31, "ATR", "MaType=Sim,Period=10", "ATR","D","-1","ALL",,,"FALSE","T")/100 -> 0.007933279089 | L31: =RTD("cqg.rtd", ,"ContractData",A31, "OPen",, "T") -> 46.84 | M31: =RTD("cqg.rtd", ,"ContractData", A31, "HIgh",, "T") -> 49.43 | N31: =RTD("cqg.rtd", ,"ContractData",A31, "LOw",, "T") -> 46.05 | O31: =RTD("cqg.rtd", ,"ContractData",A31, "T_CVol",, "T") -> 704879 | Q31: =IFERROR(O31/RTD("cqg.rtd",,"StudyData",A31, "MA", "InputChoice=Vol,MAType=Sim,Period=21", "MA","D","-1","all",,,,"T"),"") -> 1.184523838 | R31: =XBI!Q14 -> https://finance.yahoo.com/quote/RGNX
A32: =TRIM(XBI!O15) -> S.US.SRRK | B32: News | C32: =RTD("cqg.rtd", ,"ContractData",A32, "LongDescription",, "T")&" ("&RIGHT(A32,LEN(A32)-5)&")" -> Scholar Rock Holding Corporation (SRRK) | H32: =RTD("cqg.rtd", ,"ContractData",A32, "LastTradeToday",, "T") -> 47.8 | I32: =RTD("cqg.rtd", ,"ContractData",A32, "NetLastTradeToday",, "T") -> 1.84 | J32: =RTD("cqg.rtd", ,"ContractData",A32, "PerCentNetLastTrade",, "T")/100 -> 0.04003481288 | K32: =I32/RTD("cqg.rtd",,"StudyData",A32, "ATR", "MaType=Sim,Period=10", "ATR","D","-1","ALL",,,"FALSE","T")/100 -> 0.004990507187 | L32: =RTD("cqg.rtd", ,"ContractData",A32, "OPen",, "T") -> 48.49 | M32: =RTD("cqg.rtd", ,"ContractData", A32, "HIgh",, "T") -> 48.49 | N32: =RTD("cqg.rtd", ,"ContractData",A32, "LOw",, "T") -> 45.54 | O32: =RTD("cqg.rtd", ,"ContractData",A32, "T_CVol",, "T") -> 69769 | Q32: =IFERROR(O32/RTD("cqg.rtd",,"StudyData",A32, "MA", "InputChoice=Vol,MAType=Sim,Period=21", "MA","D","-1","all",,,,"T"),"") -> 0.2459623056 | R32: =XBI!Q15 -> https://finance.yahoo.com/quote/SRRK
C33: Bottom 15 Description | H33: Last | I33: NC | J33: %NC | K33: NC/ATR | L33: Open | M33: High | N33: Low | O33: Volume | Q33: Ratio
A34: =TRIM(XBI!O155) -> S.US.NVAX | B34: News | C34: =RTD("cqg.rtd", ,"ContractData",A34, "LongDescription",, "T")&" ("&RIGHT(A34,LEN(A34)-5)&")" -> Novavax Inc (NVAX) | H34: =RTD("cqg.rtd", ,"ContractData",A34, "LastTradeToday",, "T") -> 117.17 | I34: =RTD("cqg.rtd", ,"ContractData",A34, "NetLastTradeToday",, "T") -> -4.68 | J34: =RTD("cqg.rtd", ,"ContractData",A34, "PerCentNetLastTrade",, "T")/100 -> -0.03840787854 | K34: =I34/RTD("cqg.rtd",,"StudyData",A34, "ATR", "MaType=Sim,Period=10", "ATR","D","-1","ALL",,,"FALSE","T")/100 -> -0.004802955665 | L34: =RTD("cqg.rtd", ,"ContractData",A34, "OPen",, "T") -> 118.43 | M34: =RTD("cqg.rtd", ,"ContractData", A34, "HIgh",, "T") -> 122.11 | N34: =RTD("cqg.rtd", ,"ContractData",A34, "LOw",, "T") -> 113.51 | O34: =RTD("cqg.rtd", ,"ContractData",A34, "T_CVol",, "T") -> 2883376 | Q34: =IFERROR(O34/RTD("cqg.rtd",,"StudyData",A34, "MA", "InputChoice=Vol,MAType=Sim,Period=21", "MA","D","-1","all",,,,"T"),"") -> 0.7109930892 | R34: =XBI!Q155 -> https://finance.yahoo.com/quote/NVAX
A35: =TRIM(XBI!O156) -> S.US.DNLI | B35: News | C35: =RTD("cqg.rtd", ,"ContractData",A35, "LongDescription",, "T")&" ("&RIGHT(A35,LEN(A35)-5)&")" -> Denali Therapeutics Inc. (DNLI) | H35: =RTD("cqg.rtd", ,"ContractData",A35, "LastTradeToday",, "T") -> 76.82 | I35: =RTD("cqg.rtd", ,"ContractData",A35, "NetLastTradeToday",, "T") -> -3.21 | J35: =RTD("cqg.rtd", ,"ContractData",A35, "PerCentNetLastTrade",, "T")/100 -> -0.04010995877 | K35: =I35/RTD("cqg.rtd",,"StudyData",A35, "ATR", "MaType=Sim,Period=10", "ATR","D","-1","ALL",,,"FALSE","T")/100 -> -0.00494302433 | L35: =RTD("cqg.rtd", ,"ContractData",A35, "OPen",, "T") -> 79.99 | M35: =RTD("cqg.rtd", ,"ContractData", A35, "HIgh",, "T") -> 79.99 | N35: =RTD("cqg.rtd", ,"ContractData",A35, "LOw",, "T") -> 76.26 | O35: =RTD("cqg.rtd", ,"ContractData",A35, "T_CVol",, "T") -> 281802 | Q35: =IFERROR(O35/RTD("cqg.rtd",,"StudyData",A35, "MA", "InputChoice=Vol,MAType=Sim,Period=21", "MA","D","-1","all",,,,"T"),"") -> 0.3412120559 | R35: =XBI!Q156 -> https://finance.yahoo.com/quote/DNLI
A36: =TRIM(XBI!O157) -> S.US.GBT | B36: News | C36: =RTD("cqg.rtd", ,"ContractData",A36, "LongDescription",, "T")&" ("&RIGHT(A36,LEN(A36)-5)&")" -> Global Blood Therapeutics, Inc. (GBT) | H36: =RTD("cqg.rtd", ,"ContractData",A36, "LastTradeToday",, "T") -> 46.73 | I36: =RTD("cqg.rtd", ,"ContractData",A36, "NetLastTradeToday",, "T") -> -2.08 | J36: =RTD("cqg.rtd", ,"ContractData",A36, "PerCentNetLastTrade",, "T")/100 -> -0.0426142184 | K36: =I36/RTD("cqg.rtd",,"StudyData",A36, "ATR", "MaType=Sim,Period=10", "ATR","D","-1","ALL",,,"FALSE","T")/100 -> -0.01078838174 | L36: =RTD("cqg.rtd", ,"ContractData",A36, "OPen",, "T") -> 47.5 | M36: =RTD("cqg.rtd", ,"ContractData", A36, "HIgh",, "T") -> 47.77 | N36: =RTD("cqg.rtd", ,"ContractData",A36, "LOw",, "T") -> 44.46 | O36: =RTD("cqg.rtd", ,"ContractData",A36, "T_CVol",, "T") -> 759888 | Q36: =IFERROR(O36/RTD("cqg.rtd",,"StudyData",A36, "MA", "InputChoice=Vol,MAType=Sim,Period=21", "MA","D","-1","all",,,,"T"),"") -> 0.6755962094 | R36: =XBI!Q157 -> https://finance.yahoo.com/quote/GBT
A37: =TRIM(XBI!O158) -> S.US.DCPH | B37: News | C37: =RTD("cqg.rtd", ,"ContractData",A37, "LongDescription",, "T")&" ("&RIGHT(A37,LEN(A37)-5)&")" -> Deciphera Pharmaceuticals, Inc. (DCPH) | H37: =RTD("cqg.rtd", ,"ContractData",A37, "LastTradeToday",, "T") -> 53.82 | I37: =RTD("cqg.rtd", ,"ContractData",A37, "NetLastTradeToday",, "T") -> -2.42 | J37: =RTD("cqg.rtd", ,"ContractData",A37, "PerCentNetLastTrade",, "T")/100 -> -0.04302987198 | K37: =I37/RTD("cqg.rtd",,"StudyData",A37, "ATR", "MaType=Sim,Period=10", "ATR","D","-1","ALL",,,"FALSE","T")/100 -> -0.008916728077 | L37: =RTD("cqg.rtd", ,"ContractData",A37, "OPen",, "T") -> 56.24 | M37: =RTD("cqg.rtd", ,"ContractData", A37, "HIgh",, "T") -> 56.88 | N37: =RTD("cqg.rtd", ,"ContractData",A37, "LOw",, "T") -> 53.12 | O37: =RTD("cqg.rtd", ,"ContractData",A37, "T_CVol",, "T") -> 114702 | Q37: =IFERROR(O37/RTD("cqg.rtd",,"StudyData",A37, "MA", "InputChoice=Vol,MAType=Sim,Period=21", "MA","D","-1","all",,,,"T"),"") -> 0.3185600759 | R37: =XBI!Q158 -> https://finance.yahoo.com/quote/DCPH
A38: =TRIM(XBI!O159) -> S.US.ISEE | B38: News | C38: =RTD("cqg.rtd", ,"ContractData",A38, "LongDescription",, "T")&" ("&RIGHT(A38,LEN(A38)-5)&")" -> IVERIC bio, Inc. (ISEE) | H38: =RTD("cqg.rtd", ,"ContractData",A38, "LastTradeToday",, "T") -> 6.34 | I38: =RTD("cqg.rtd", ,"ContractData",A38, "NetLastTradeToday",, "T") -> -0.29 | J38: =RTD("cqg.rtd", ,"ContractData",A38, "PerCentNetLastTrade",, "T")/100 -> -0.04374057315 | K38: =I38/RTD("cqg.rtd",,"StudyData",A38, "ATR", "MaType=Sim,Period=10", "ATR","D","-1","ALL",,,"FALSE","T")/100 -> -0.007631578947 | L38: =RTD("cqg.rtd", ,"ContractData",A38, "OPen",, "T") -> 6.59 | M38: =RTD("cqg.rtd", ,"ContractData", A38, "HIgh",, "T") -> 6.61 | N38: =RTD("cqg.rtd", ,"ContractData",A38, "LOw",, "T") -> 6.26 | O38: =RTD("cqg.rtd", ,"ContractData",A38, "T_CVol",, "T") -> 229365 | Q38: =IFERROR(O38/RTD("cqg.rtd",,"StudyData",A38, "MA", "InputChoice=Vol,MAType=Sim,Period=21", "MA","D","-1","all",,,,"T"),"") -> 0.220738801 | R38: =XBI!Q159 -> https://finance.yahoo.com/quote/ISEE
A39: =TRIM(XBI!O160) -> S.US.AMTI | B39: News | C39: =RTD("cqg.rtd", ,"ContractData",A39, "LongDescription",, "T")&" ("&RIGHT(A39,LEN(A39)-5)&")" -> Applied Molecular Transport Inc. (AMTI) | H39: =RTD("cqg.rtd", ,"ContractData",A39, "LastTradeToday",, "T") -> 32.15 | I39: =RTD("cqg.rtd", ,"ContractData",A39, "NetLastTradeToday",, "T") -> -1.48 | J39: =RTD("cqg.rtd", ,"ContractData",A39, "PerCentNetLastTrade",, "T")/100 -> -0.0440083259 | K39: =I39/RTD("cqg.rtd",,"StudyData",A39, "ATR", "MaType=Sim,Period=10", "ATR","D","-1","ALL",,,"FALSE","T")/100 -> -0.007061068702 | L39: =RTD("cqg.rtd", ,"ContractData",A39, "OPen",, "T") -> 32.98 | M39: =RTD("cqg.rtd", ,"ContractData", A39, "HIgh",, "T") -> 33.9 | N39: =RTD("cqg.rtd", ,"ContractData",A39, "LOw",, "T") -> 32.09 | O39: =RTD("cqg.rtd", ,"ContractData",A39, "T_CVol",, "T") -> 17724 | Q39: =IFERROR(O39/RTD("cqg.rtd",,"StudyData",A39, "MA", "InputChoice=Vol,MAType=Sim,Period=21", "MA","D","-1","all",,,,"T"),"") -> 0.1108136858 | R39: =XBI!Q160 -> https://finance.yahoo.com/quote/AMTI
A40: =TRIM(XBI!O161) -> S.US.RVMD | B40: News | C40: =RTD("cqg.rtd", ,"ContractData",A40, "LongDescription",, "T")&" ("&RIGHT(A40,LEN(A40)-5)&")" -> Revolution Medicines, Inc. (RVMD) | H40: =RTD("cqg.rtd", ,"ContractData",A40, "LastTradeToday",, "T") -> 38.5 | I40: =RTD("cqg.rtd", ,"ContractData",A40, "NetLastTradeToday",, "T") -> -1.82 | J40: =RTD("cqg.rtd", ,"ContractData",A40, "PerCentNetLastTrade",, "T")/100 -> -0.04513888889 | K40: =I40/RTD("cqg.rtd",,"StudyData",A40, "ATR", "MaType=Sim,Period=10", "ATR","D","-1","ALL",,,"FALSE","T")/100 -> -0.007262569832 | L40: =RTD("cqg.rtd", ,"ContractData",A40, "OPen",, "T") -> 40.54 | M40: =RTD("cqg.rtd", ,"ContractData", A40, "HIgh",, "T") -> 41.2 | N40: =RTD("cqg.rtd", ,"ContractData",A40, "LOw",, "T") -> 38.37 | O40: =RTD("cqg.rtd", ,"ContractData",A40, "T_CVol",, "T") -> 144683 | Q40: =IFERROR(O40/RTD("cqg.rtd",,"StudyData",A40, "MA", "InputChoice=Vol,MAType=Sim,Period=21", "MA","D","-1","all",,,,"T"),"") -> 0.270369961 | R40: =XBI!Q161 -> https://finance.yahoo.com/quote/RVMD
A41: =TRIM(XBI!O162) -> S.US.BEAM | B41: News | C41: =RTD("cqg.rtd", ,"ContractData",A41, "LongDescription",, "T")&" ("&RIGHT(A41,LEN(A41)-5)&")" -> Beam Therapeutics Inc. (BEAM) | H41: =RTD("cqg.rtd", ,"ContractData",A41, "LastTradeToday",, "T") -> 96.51 | I41: =RTD("cqg.rtd", ,"ContractData",A41, "NetLastTradeToday",, "T") -> -5.16 | J41: =RTD("cqg.rtd", ,"ContractData",A41, "PerCentNetLastTrade",, "T")/100 -> -0.05075243435 | K41: =I41/RTD("cqg.rtd",,"StudyData",A41, "ATR", "MaType=Sim,Period=10", "ATR","D","-1","ALL",,,"FALSE","T")/100 -> -0.00506080816 | L41: =RTD("cqg.rtd", ,"ContractData",A41, "OPen",, "T") -> 101.77 | M41: =RTD("cqg.rtd", ,"ContractData", A41, "HIgh",, "T") -> 101.99 | N41: =RTD("cqg.rtd", ,"ContractData",A41, "LOw",, "T") -> 90.46 | O41: =RTD("cqg.rtd", ,"ContractData",A41, "T_CVol",, "T") -> 531925 | Q41: =IFERROR(O41/RTD("cqg.rtd",,"StudyData",A41, "MA", "InputChoice=Vol,MAType=Sim,Period=21", "MA","D","-1","all",,,,"T"),"") -> 0.4536809385 | R41: =XBI!Q162 -> https://finance.yahoo.com/quote/BEAM
A42: =TRIM(XBI!O163) -> S.US.RARE | B42: News | C42: =RTD("cqg.rtd", ,"ContractData",A42, "LongDescription",, "T")&" ("&RIGHT(A42,LEN(A42)-5)&")" -> Ultragenyx Pharmaceutical Inc. (RARE) | H42: =RTD("cqg.rtd", ,"ContractData",A42, "LastTradeToday",, "T") -> 142.41 | I42: =RTD("cqg.rtd", ,"ContractData",A42, "NetLastTradeToday",, "T") -> -8.18 | J42: =RTD("cqg.rtd", ,"ContractData",A42, "PerCentNetLastTrade",, "T")/100 -> -0.05431967594 | K42: =I42/RTD("cqg.rtd",,"StudyData",A42, "ATR", "MaType=Sim,Period=10", "ATR","D","-1","ALL",,,"FALSE","T")/100 -> -0.008174278005 | L42: =RTD("cqg.rtd", ,"ContractData",A42, "OPen",, "T") -> 150.83 | M42: =RTD("cqg.rtd", ,"ContractData", A42, "HIgh",, "T") -> 152.8 | N42: =RTD("cqg.rtd", ,"ContractData",A42, "LOw",, "T") -> 140.4 | O42: =RTD("cqg.rtd", ,"ContractData",A42, "T_CVol",, "T") -> 401924 | Q42: =IFERROR(O42/RTD("cqg.rtd",,"StudyData",A42, "MA", "InputChoice=Vol,MAType=Sim,Period=21", "MA","D","-1","all",,,,"T"),"") -> 0.6304061085 | R42: =XBI!Q163 -> https://finance.yahoo.com/quote/RARE
A43: =TRIM(XBI!O164) -> S.US.VCEL | B43: News | C43: =RTD("cqg.rtd", ,"ContractData",A43, "LongDescription",, "T")&" ("&RIGHT(A43,LEN(A43)-5)&")" -> Vericel Corporation (VCEL) | H43: =RTD("cqg.rtd", ,"ContractData",A43, "LastTradeToday",, "T") -> 34.15 | I43: =RTD("cqg.rtd", ,"ContractData",A43, "NetLastTradeToday",, "T") -> -2.02 | J43: =RTD("cqg.rtd", ,"ContractData",A43, "PerCentNetLastTrade",, "T")/100 -> -0.05584738734 | K43: =I43/RTD("cqg.rtd",,"StudyData",A43, "ATR", "MaType=Sim,Period=10", "ATR","D","-1","ALL",,,"FALSE","T")/100 -> -0.012899106 | L43: =RTD("cqg.rtd", ,"ContractData",A43, "OPen",, "T") -> 31.89 | M43: =RTD("cqg.rtd", ,"ContractData", A43, "HIgh",, "T") -> 34.82 | N43: =RTD("cqg.rtd", ,"ContractData",A43, "LOw",, "T") -> 30.6 | O43: =RTD("cqg.rtd", ,"ContractData",A43, "T_CVol",, "T") -> 619245 | Q43: =IFERROR(O43/RTD("cqg.rtd",,"StudyData",A43, "MA", "InputChoice=Vol,MAType=Sim,Period=21", "MA","D","-1","all",,,,"T"),"") -> 0.9421648786 | R43: =XBI!Q164 -> https://finance.yahoo.com/quote/VCEL
A44: =TRIM(XBI!O165) -> S.US.CYTK | B44: News | C44: =RTD("cqg.rtd", ,"ContractData",A44, "LongDescription",, "T")&" ("&RIGHT(A44,LEN(A44)-5)&")" -> Cytokinetics Inc (CYTK) | H44: =RTD("cqg.rtd", ,"ContractData",A44, "LastTradeToday",, "T") -> 20.18 | I44: =RTD("cqg.rtd", ,"ContractData",A44, "NetLastTradeToday",, "T") -> -1.37 | J44: =RTD("cqg.rtd", ,"ContractData",A44, "PerCentNetLastTrade",, "T")/100 -> -0.06357308585 | K44: =I44/RTD("cqg.rtd",,"StudyData",A44, "ATR", "MaType=Sim,Period=10", "ATR","D","-1","ALL",,,"FALSE","T")/100 -> -0.01199649737 | L44: =RTD("cqg.rtd", ,"ContractData",A44, "OPen",, "T") -> 21.73 | M44: =RTD("cqg.rtd", ,"ContractData", A44, "HIgh",, "T") -> 21.91 | N44: =RTD("cqg.rtd", ,"ContractData",A44, "LOw",, "T") -> 20.1 | O44: =RTD("cqg.rtd", ,"ContractData",A44, "T_CVol",, "T") -> 425294 | Q44: =IFERROR(O44/RTD("cqg.rtd",,"StudyData",A44, "MA", "InputChoice=Vol,MAType=Sim,Period=21", "MA","D","-1","all",,,,"T"),"") -> 0.3524411292 | R44: =XBI!Q165 -> https://finance.yahoo.com/quote/CYTK
A45: =TRIM(XBI!O166) -> S.US.KPTI | B45: News | C45: =RTD("cqg.rtd", ,"ContractData",A45, "LongDescription",, "T")&" ("&RIGHT(A45,LEN(A45)-5)&")" -> Karyopharm Therapeutics Inc. (KPTI) | H45: =RTD("cqg.rtd", ,"ContractData",A45, "LastTradeToday",, "T") -> 16.33 | I45: =RTD("cqg.rtd", ,"ContractData",A45, "NetLastTradeToday",, "T") -> -1.25 | J45: =RTD("cqg.rtd", ,"ContractData",A45, "PerCentNetLastTrade",, "T")/100 -> -0.07110352673 | K45: =I45/RTD("cqg.rtd",,"StudyData",A45, "ATR", "MaType=Sim,Period=10", "ATR","D","-1","ALL",,,"FALSE","T")/100 -> -0.01308900524 | L45: =RTD("cqg.rtd", ,"ContractData",A45, "OPen",, "T") -> 16.21 | M45: =RTD("cqg.rtd", ,"ContractData", A45, "HIgh",, "T") -> 16.87 | N45: =RTD("cqg.rtd", ,"ContractData",A45, "LOw",, "T") -> 15.91 | O45: =RTD("cqg.rtd", ,"ContractData",A45, "T_CVol",, "T") -> 2109564 | Q45: =IFERROR(O45/RTD("cqg.rtd",,"StudyData",A45, "MA", "InputChoice=Vol,MAType=Sim,Period=21", "MA","D","-1","all",,,,"T"),"") -> 0.7298539557 | R45: =XBI!Q166 -> https://finance.yahoo.com/quote/KPTI
A46: =TRIM(XBI!O167) -> S.US.BMRN | B46: News | C46: =RTD("cqg.rtd", ,"ContractData",A46, "LongDescription",, "T")&" ("&RIGHT(A46,LEN(A46)-5)&")" -> BioMarin Pharmaceutical Inc (BMRN) | H46: =RTD("cqg.rtd", ,"ContractData",A46, "LastTradeToday",, "T") -> 83.18 | I46: =RTD("cqg.rtd", ,"ContractData",A46, "NetLastTradeToday",, "T") -> -6.68 | J46: =RTD("cqg.rtd", ,"ContractData",A46, "PerCentNetLastTrade",, "T")/100 -> -0.07433785889 | K46: =I46/RTD("cqg.rtd",,"StudyData",A46, "ATR", "MaType=Sim,Period=10", "ATR","D","-1","ALL",,,"FALSE","T")/100 -> -0.02481426449 | L46: =RTD("cqg.rtd", ,"ContractData",A46, "OPen",, "T") -> 83.92 | M46: =RTD("cqg.rtd", ,"ContractData", A46, "HIgh",, "T") -> 84.99 | N46: =RTD("cqg.rtd", ,"ContractData",A46, "LOw",, "T") -> 81 | O46: =RTD("cqg.rtd", ,"ContractData",A46, "T_CVol",, "T") -> 2714215 | Q46: =IFERROR(O46/RTD("cqg.rtd",,"StudyData",A46, "MA", "InputChoice=Vol,MAType=Sim,Period=21", "MA","D","-1","all",,,,"T"),"") -> 1.536909272 | R46: =XBI!Q167 -> https://finance.yahoo.com/quote/BMRN
A47: =TRIM(XBI!O168) -> S.US.NVTA | B47: News | C47: =RTD("cqg.rtd", ,"ContractData",A47, "LongDescription",, "T")&" ("&RIGHT(A47,LEN(A47)-5)&")" -> Invitae Corp (NVTA) | H47: =RTD("cqg.rtd", ,"ContractData",A47, "LastTradeToday",, "T") -> 46.59 | I47: =RTD("cqg.rtd", ,"ContractData",A47, "NetLastTradeToday",, "T") -> -4.54 | J47: =RTD("cqg.rtd", ,"ContractData",A47, "PerCentNetLastTrade",, "T")/100 -> -0.08879327205 | K47: =I47/RTD("cqg.rtd",,"StudyData",A47, "ATR", "MaType=Sim,Period=10", "ATR","D","-1","ALL",,,"FALSE","T")/100 -> -0.0123202171 | L47: =RTD("cqg.rtd", ,"ContractData",A47, "OPen",, "T") -> 47.54 | M47: =RTD("cqg.rtd", ,"ContractData", A47, "HIgh",, "T") -> 48.18 | N47: =RTD("cqg.rtd", ,"ContractData",A47, "LOw",, "T") -> 45.2 | O47: =RTD("cqg.rtd", ,"ContractData",A47, "T_CVol",, "T") -> 5032758 | Q47: =IFERROR(O47/RTD("cqg.rtd",,"StudyData",A47, "MA", "InputChoice=Vol,MAType=Sim,Period=21", "MA","D","-1","all",,,,"T"),"") -> 0.9810106969 | R47: =XBI!Q168 -> https://finance.yahoo.com/quote/NVTA
A48: =TRIM(XBI!O169) -> S.US.EDIT | B48: News | C48: =RTD("cqg.rtd", ,"ContractData",A48, "LongDescription",, "T")&" ("&RIGHT(A48,LEN(A48)-5)&")" -> Editas Medicine, Inc. (EDIT) | H48: =RTD("cqg.rtd", ,"ContractData",A48, "LastTradeToday",, "T") -> 75.31 | I48: =RTD("cqg.rtd", ,"ContractData",A48, "NetLastTradeToday",, "T") -> -15.27 | J48: =RTD("cqg.rtd", ,"ContractData",A48, "PerCentNetLastTrade",, "T")/100 -> -0.1685802605 | K48: =I48/RTD("cqg.rtd",,"StudyData",A48, "ATR", "MaType=Sim,Period=10", "ATR","D","-1","ALL",,,"FALSE","T")/100 -> -0.01624122527 | L48: =RTD("cqg.rtd", ,"ContractData",A48, "OPen",, "T") -> 87.01 | M48: =RTD("cqg.rtd", ,"ContractData", A48, "HIgh",, "T") -> 88 | N48: =RTD("cqg.rtd", ,"ContractData",A48, "LOw",, "T") -> 75.09 | O48: =RTD("cqg.rtd", ,"ContractData",A48, "T_CVol",, "T") -> 3622839 | Q48: =IFERROR(O48/RTD("cqg.rtd",,"StudyData",A48, "MA", "InputChoice=Vol,MAType=Sim,Period=21", "MA","D","-1","all",,,,"T"),"") -> 0.9412138374 | R48: =XBI!Q169 -> https://finance.yahoo.com/quote/EDIT
C49: CQG Inc., Copyright © 2018 | G49: Designed by Thom Hartle | J49: Standard & Poor's®, S&P® and SPDR® are registered trademarks of Standard & Poor’s Financial Services LLC. | Z49: =XBI!AB170 -> 0.4970414201 | AA49: of the stocks in the ETF are higher today

Sheet XBI (hidden)
A1: =RTD("cqg.rtd", ,"ContractData",C1, "LongDescription",, "T") -> AbbVie Inc. | B1: S.US.ABBV | C1: S.US.ABBV | D1: =RTD("cqg.rtd", ,"ContractData",C1, "LongDescription",, "T") -> AbbVie Inc. | E1: =RTD("cqg.rtd", ,"ContractData",C1, "Open",, "T") -> 107.06 | F1: =RTD("cqg.rtd", ,"ContractData",C1, "High",, "T") -> 109.43 | G1: =RTD("cqg.rtd", ,"ContractData",C1, "Low",, "T") -> 107.06 | H1: =RTD("cqg.rtd", ,"ContractData",C1, "LastTradeToday",, "T") -> 109.36 | I1: =RTD("cqg.rtd", ,"ContractData",C1, "NetLastTradeToday",, "T") -> 2.09 | J1: =RTD("cqg.rtd", ,"ContractData",C1, "PerCentNetLastTrade",, "T")/100 -> 0.01948354619 | K1: =RTD("cqg.rtd", ,"ContractData", C1, "T_CVol",, "T") -> 2986081 | L1: 1 | M1: =RANK($J1,$J$1:J$169)+COUNTIF($J$1:J1,J1)-1 -> 36 | N1: =C1 -> S.US.ABBV | O1: =VLOOKUP($L1,$M$1:$N$169,2,FALSE) -> S.US.EXAS | P1: =RTD("cqg.rtd", ,"ContractData",O1, "PerCentNetLastTrade",, "T")/100 -> 0.1371472159 | Q1: ="https://finance.yahoo.com/quote/"&RIGHT(O1,(LEN(O1)-5)) -> https://finance.yahoo.com/quote/EXAS | S1: =IF(P1>=0,P1,NA()) -> 0.1371472159 | T1: =IF(P1>=0,NA(),-1*P1) ->  | V1: =RTD("cqg.rtd", ,"ContractData",O1, "LongDescription",, "T") -> EXACT Sciences Corp | Y1: =IFERROR(S1,P1) -> 0.1371472159 | AA1: =IF(S1="NA()",0,1) -> 1 | AB1: =IFERROR(AA1,0) -> 1 | AD1: =IFERROR(S1,"") -> 0.1371472159 | AE1: =IFERROR(T1,"") ->  | AF1: =IF(AE1="","",Y1) -> 
A2: =RTD("cqg.rtd", ,"ContractData",C2, "LongDescription",, "T") -> ACADIA Pharmaceuticals, Inc. | B2: S.US.ACAD | C2: S.US.ACAD | D2: =RTD("cqg.rtd", ,"ContractData",C2, "LongDescription",, "T") -> ACADIA Pharmaceuticals, Inc. | E2: =RTD("cqg.rtd", ,"ContractData",C2, "Open",, "T") -> 53.2 | F2: =RTD("cqg.rtd", ,"ContractData",C2, "High",, "T") -> 54.95 | G2: =RTD("cqg.rtd", ,"ContractData",C2, "Low",, "T") -> 52.08 | H2: =RTD("cqg.rtd", ,"ContractData",C2, "LastTradeToday",, "T") -> 54.85 | I2: =RTD("cqg.rtd", ,"ContractData",C2, "NetLastTradeToday",, "T") -> 1.72 | J2: =RTD("cqg.rtd", ,"ContractData",C2, "PerCentNetLastTrade",, "T")/100 -> 0.03237342368 | K2: =RTD("cqg.rtd", ,"ContractData", C2, "T_CVol",, "T") -> 489282 | L2: =L1+1 -> 2 | M2: =RANK($J2,$J$1:J$169)+COUNTIF($J$1:J2,J2)-1 -> 22 | N2: =C2 -> S.US.ACAD | O2: =VLOOKUP($L2,$M$1:$N$169,2,FALSE) -> S.US.CLVS | P2: =RTD("cqg.rtd", ,"ContractData",O2, "PerCentNetLastTrade",, "T")/100 -> 0.1188118812 | Q2: ="https://finance.yahoo.com/quote/"&RIGHT(O2,(LEN(O2)-5)) -> https://finance.yahoo.com/quote/CLVS | S2: =IF(P2>=0,P2,NA()) -> 0.1188118812 | T2: =IF(P2>=0,NA(),-1*P2) ->  | V2: =RTD("cqg.rtd", ,"ContractData",O2, "LongDescription",, "T") -> Clovis Oncology, Inc. | Y2: =IFERROR(S2,P2) -> 0.1188118812 | AA2: =IF(S2="NA()",0,1) -> 1 | AB2: =IFERROR(AA2,0) -> 1 | AD2: =IFERROR(S2,"") -> 0.1188118812 | AE2: =IFERROR(T2,"") ->  | AF2: =IF(AE2="","",Y2) -> 
A3: =RTD("cqg.rtd", ,"ContractData",C3, "LongDescription",, "T") -> Adverum Biotechnologies, Inc. | B3: S.US.ADVM | C3: S.US.ADVM | D3: =RTD("cqg.rtd", ,"ContractData",C3, "LongDescription",, "T") -> Adverum Biotechnologies, Inc. | E3: =RTD("cqg.rtd", ,"ContractData",C3, "Open",, "T") -> 11.8 | F3: =RTD("cqg.rtd", ,"ContractData",C3, "High",, "T") -> 12.12 | G3: =RTD("cqg.rtd", ,"ContractData",C3, "Low",, "T") -> 11.67 | H3: =RTD("cqg.rtd", ,"ContractData",C3, "LastTradeToday",, "T") -> 12.04 | I3: =RTD("cqg.rtd", ,"ContractData",C3, "NetLastTradeToday",, "T") -> 0.14 | J3: =RTD("cqg.rtd", ,"ContractData",C3, "PerCentNetLastTrade",, "T")/100 -> 0.01176470588 | K3: =RTD("cqg.rtd", ,"ContractData", C3, "T_CVol",, "T") -> 175614 | L3: =L2+1 -> 3 | M3: =RANK($J3,$J$1:J$169)+COUNTIF($J$1:J3,J3)-1 -> 49 | N3: S.US.ADVM | O3: S.US.ALVR | P3: =RTD("cqg.rtd", ,"ContractData",O3, "PerCentNetLastTrade",, "T")/100 -> 0.1179892949 | Q3: https://finance.yahoo.com/quote/ALVR | S3: 0.1179892949 | V3: =RTD("cqg.rtd", ,"ContractData",O3, "LongDescription",, "T") -> AlloVir, Inc. | Y3: 0.1179892949 | AA3: 1 | AB3: 1 | AD3: 0.1179892949
A4: =RTD("cqg.rtd", ,"ContractData",C4, "LongDescription",, "T") -> Agenus Inc. | B4: S.US.AGEN | C4: S.US.AGEN | D4: =RTD("cqg.rtd", ,"ContractData",C4, "LongDescription",, "T") -> Agenus Inc. | E4: =RTD("cqg.rtd", ,"ContractData",C4, "Open",, "T") -> 3.24 | F4: =RTD("cqg.rtd", ,"ContractData",C4, "High",, "T") -> 3.3 | G4: =RTD("cqg.rtd", ,"ContractData",C4, "Low",, "T") -> 3.16 | H4: =RTD("cqg.rtd", ,"ContractData",C4, "LastTradeToday",, "T") -> 3.28 | I4: =RTD("cqg.rtd", ,"ContractData",C4, "NetLastTradeToday",, "T") -> 0.03 | J4: =RTD("cqg.rtd", ,"ContractData",C4, "PerCentNetLastTrade",, "T")/100 -> 0.009230769231 | K4: =RTD("cqg.rtd", ,"ContractData", C4, "T_CVol",, "T") -> 918633 | L4: 4 | M4: =RANK($J4,$J$1:J$169)+COUNTIF($J$1:J4,J4)-1 -> 57 | N4: S.US.AGEN | O4: S.US.SRPT | P4: =RTD("cqg.rtd", ,"ContractData",O4, "PerCentNetLastTrade",, "T")/100 -> 0.09758172317 | Q4: https://finance.yahoo.com/quote/SRPT | S4: 0.09758172317 | V4: =RTD("cqg.rtd", ,"ContractData",O4, "LongDescription",, "T") -> Sarepta Therapeutics, Inc. | Y4: 0.09758172317 | AA4: 1 | AB4: 1 | AD4: 0.09758172317
A5: =RTD("cqg.rtd", ,"ContractData",C5, "LongDescription",, "T") -> Agios Pharmaceuticals, Inc. | B5: S.US.AGIO | C5: S.US.AGIO | D5: =RTD("cqg.rtd", ,"ContractData",C5, "LongDescription",, "T") -> Agios Pharmaceuticals, Inc. | E5: =RTD("cqg.rtd", ,"ContractData",C5, "Open",, "T") -> 45.61 | F5: =RTD("cqg.rtd", ,"ContractData",C5, "High",, "T") -> 47.48 | G5: =RTD("cqg.rtd", ,"ContractData",C5, "Low",, "T") -> 44.76 | H5: =RTD("cqg.rtd", ,"ContractData",C5, "LastTradeToday",, "T") -> 47.27 | I5: =RTD("cqg.rtd", ,"ContractData",C5, "NetLastTradeToday",, "T") -> 1.44 | J5: =RTD("cqg.rtd", ,"ContractData",C5, "PerCentNetLastTrade",, "T")/100 -> 0.03142046694 | K5: =RTD("cqg.rtd", ,"ContractData", C5, "T_CVol",, "T") -> 437397 | L5: 5 | M5: =RANK($J5,$J$1:J$169)+COUNTIF($J$1:J5,J5)-1 -> 24 | N5: S.US.AGIO | O5: S.US.GTHX | P5: =RTD("cqg.rtd", ,"ContractData",O5, "PerCentNetLastTrade",, "T")/100 -> 0.08811824901 | Q5: https://finance.yahoo.com/quote/GTHX | S5: 0.08811824901 | V5: =RTD("cqg.rtd", ,"ContractData",O5, "LongDescription",, "T") -> G1 Therapeutics, Inc. | Y5: 0.08811824901 | AA5: 1 | AB5: 1 | AD5: 0.08811824901
A6: =RTD("cqg.rtd", ,"ContractData",C6, "LongDescription",, "T") -> Akebia Therapeutics, Inc. | B6: S.US.AKBA | C6: S.US.AKBA | D6: =RTD("cqg.rtd", ,"ContractData",C6, "LongDescription",, "T") -> Akebia Therapeutics, Inc. | E6: =RTD("cqg.rtd", ,"ContractData",C6, "Open",, "T") -> 3.08 | F6: =RTD("cqg.rtd", ,"ContractData",C6, "High",, "T") -> 3.15 | G6: =RTD("cqg.rtd", ,"ContractData",C6, "Low",, "T") -> 3 | H6: =RTD("cqg.rtd", ,"ContractData",C6, "LastTradeToday",, "T") -> 3.13 | I6: =RTD("cqg.rtd", ,"ContractData",C6, "NetLastTradeToday",, "T") -> 0.03 | J6: =RTD("cqg.rtd", ,"ContractData",C6, "PerCentNetLastTrade",, "T")/100 -> 0.009677419355 | K6: =RTD("cqg.rtd", ,"ContractData", C6, "T_CVol",, "T") -> 2428565 | L6: 6 | M6: =RANK($J6,$J$1:J$169)+COUNTIF($J$1:J6,J6)-1 -> 56 | N6: S.US.AKBA | O6: S.US.BIIB | P6: =RTD("cqg.rtd", ,"ContractData",O6, "PerCentNetLastTrade",, "T")/100 -> 0.08374910905 | Q6: https://finance.yahoo.com/quote/BIIB | S6: 0.08374910905 | V6: =RTD("cqg.rtd", ,"ContractData",O6, "LongDescription",, "T") -> Biogen Inc. | Y6: 0.08374910905 | AA6: 1 | AB6: 1 | AD6: 0.08374910905
A7: =RTD("cqg.rtd", ,"ContractData",C7, "LongDescription",, "T") -> Akero Therapeutics, Inc. | B7: S.US.AKRO | C7: S.US.AKRO | D7: =RTD("cqg.rtd", ,"ContractData",C7, "LongDescription",, "T") -> Akero Therapeutics, Inc. | E7: =RTD("cqg.rtd", ,"ContractData",C7, "Open",, "T") -> 30.9 | F7: =RTD("cqg.rtd", ,"ContractData",C7, "High",, "T") -> 30.9 | G7: =RTD("cqg.rtd", ,"ContractData",C7, "Low",, "T") -> 28.52 | H7: =RTD("cqg.rtd", ,"ContractData",C7, "LastTradeToday",, "T") -> 29.05 | I7: =RTD("cqg.rtd", ,"ContractData",C7, "NetLastTradeToday",, "T") -> 0.16 | J7: =RTD("cqg.rtd", ,"ContractData",C7, "PerCentNetLastTrade",, "T")/100 -> 0.005538248529 | K7: =RTD("cqg.rtd", ,"ContractData", C7, "T_CVol",, "T") -> 522527 | L7: 7 | M7: =RANK($J7,$J$1:J$169)+COUNTIF($J$1:J7,J7)-1 -> 65 | N7: S.US.AKRO | O7: S.US.EXEL | P7: =RTD("cqg.rtd", ,"ContractData",O7, "PerCentNetLastTrade",, "T")/100 -> 0.07099035933 | Q7: https://finance.yahoo.com/quote/EXEL | S7: 0.07099035933 | V7: =RTD("cqg.rtd", ,"ContractData",O7, "LongDescription",, "T") -> Exelixis, Inc. | Y7: 0.07099035933 | AA7: 1 | AB7: 1 | AD7: 0.07099035933
A8: =RTD("cqg.rtd", ,"ContractData",C8, "LongDescription",, "T") -> Albireo Pharma, Inc. | B8: S.US.ALBO | C8: S.US.ALBO | D8: =RTD("cqg.rtd", ,"ContractData",C8, "LongDescription",, "T") -> Albireo Pharma, Inc. | E8: =RTD("cqg.rtd", ,"ContractData",C8, "Open",, "T") -> 37.33 | F8: =RTD("cqg.rtd", ,"ContractData",C8, "High",, "T") -> 37.52 | G8: =RTD("cqg.rtd", ,"ContractData",C8, "Low",, "T") -> 36.5 | H8: =RTD("cqg.rtd", ,"ContractData",C8, "LastTradeToday",, "T") -> 37.46 | I8: =RTD("cqg.rtd", ,"ContractData",C8, "NetLastTradeToday",, "T") -> -0.11 | J8: =RTD("cqg.rtd", ,"ContractData",C8, "PerCentNetLastTrade",, "T")/100 -> -0.00292786798 | K8: =RTD("cqg.rtd", ,"ContractData", C8, "T_CVol",, "T") -> 124948 | L8: 8 | M8: =RANK($J8,$J$1:J$169)+COUNTIF($J$1:J8,J8)-1 -> 95 | N8: S.US.ALBO | O8: S.US.RCUS | P8: =RTD("cqg.rtd", ,"ContractData",O8, "PerCentNetLastTrade",, "T")/100 -> 0.06325008109 | Q8: https://finance.yahoo.com/quote/RCUS | S8: 0.06325008109 | V8: =RTD("cqg.rtd", ,"ContractData",O8, "LongDescription",, "T") -> Arcus Biosciences, Inc. | Y8: 0.06325008109 | AA8: 1 | AB8: 1 | AD8: 0.06325008109
A9: =RTD("cqg.rtd", ,"ContractData",C9, "LongDescription",, "T") -> Alector, Inc. | B9: S.US.ALEC | C9: S.US.ALEC | D9: =RTD("cqg.rtd", ,"ContractData",C9, "LongDescription",, "T") -> Alector, Inc. | E9: =RTD("cqg.rtd", ,"ContractData",C9, "Open",, "T") -> 15.33 | F9: =RTD("cqg.rtd", ,"ContractData",C9, "High",, "T") -> 15.71 | G9: =RTD("cqg.rtd", ,"ContractData",C9, "Low",, "T") -> 15.08 | H9: =RTD("cqg.rtd", ,"ContractData",C9, "LastTradeToday",, "T") -> 15.65 | I9: =RTD("cqg.rtd", ,"ContractData",C9, "NetLastTradeToday",, "T") -> 0.25 | J9: =RTD("cqg.rtd", ,"ContractData",C9, "PerCentNetLastTrade",, "T")/100 -> 0.01623376623 | K9: =RTD("cqg.rtd", ,"ContractData", C9, "T_CVol",, "T") -> 172836 | L9: 9 | M9: =RANK($J9,$J$1:J$169)+COUNTIF($J$1:J9,J9)-1 -> 41 | N9: S.US.ALEC | O9: S.US.MRNA | P9: =RTD("cqg.rtd", ,"ContractData",O9, "PerCentNetLastTrade",, "T")/100 -> 0.06048780488 | Q9: https://finance.yahoo.com/quote/MRNA | S9: 0.06048780488 | V9: =RTD("cqg.rtd", ,"ContractData",O9, "LongDescription",, "T") -> Moderna, Inc. | Y9: 0.06048780488 | AA9: 1 | AB9: 1 | AD9: 0.06048780488
A10: =RTD("cqg.rtd", ,"ContractData",C10, "LongDescription",, "T") -> Alkermes plc | B10: S.US.ALKS | C10: S.US.ALKS | D10: =RTD("cqg.rtd", ,"ContractData",C10, "LongDescription",, "T") -> Alkermes plc | E10: =RTD("cqg.rtd", ,"ContractData",C10, "Open",, "T") -> 20.38 | F10: =RTD("cqg.rtd", ,"ContractData",C10, "High",, "T") -> 21.21 | G10: =RTD("cqg.rtd", ,"ContractData",C10, "Low",, "T") -> 20.1 | H10: =RTD("cqg.rtd", ,"ContractData",C10, "LastTradeToday",, "T") -> 21.05 | I10: =RTD("cqg.rtd", ,"ContractData",C10, "NetLastTradeToday",, "T") -> 0.67 | J10: =RTD("cqg.rtd", ,"ContractData",C10, "PerCentNetLastTrade",, "T")/100 -> 0.03287536801 | K10: =RTD("cqg.rtd", ,"ContractData", C10, "T_CVol",, "T") -> 512823 | L10: 10 | M10: =RANK($J10,$J$1:J$169)+COUNTIF($J$1:J10,J10)-1 -> 21 | N10: S.US.ALKS | O10: S.US.KNSA | P10: =RTD("cqg.rtd", ,"ContractData",O10, "PerCentNetLastTrade",, "T")/100 -> 0.04952581665 | Q10: https://finance.yahoo.com/quote/KNSA | S10: 0.04952581665 | V10: =RTD("cqg.rtd", ,"ContractData",O10, "LongDescription",, "T") -> Kiniksa Pharmaceuticals, Ltd. Class A | Y10: 0.04952581665 | AA10: 1 | AB10: 1 | AD10: 0.04952581665
A11: =RTD("cqg.rtd", ,"ContractData",C11, "LongDescription",, "T") -> Allakos Inc. | B11: S.US.ALLK | C11: S.US.ALLK | D11: =RTD("cqg.rtd", ,"ContractData",C11, "LongDescription",, "T") -> Allakos Inc. | E11: =RTD("cqg.rtd", ,"ContractData",C11, "Open",, "T") -> 126.06 | F11: =RTD("cqg.rtd", ,"ContractData",C11, "High",, "T") -> 127.75 | G11: =RTD("cqg.rtd", ,"ContractData",C11, "Low",, "T") -> 124.72 | H11: =RTD("cqg.rtd", ,"ContractData",C11, "LastTradeToday",, "T") -> 127.75 | I11: =RTD("cqg.rtd", ,"ContractData",C11, "NetLastTradeToday",, "T") -> 0.02 | J11: =RTD("cqg.rtd", ,"ContractData",C11, "PerCentNetLastTrade",, "T")/100 -> 0.0001565802865 | K11: =RTD("cqg.rtd", ,"ContractData", C11, "T_CVol",, "T") -> 180199 | L11: 11 | M11: =RANK($J11,$J$1:J$169)+COUNTIF($J$1:J11,J11)-1 -> 81 | N11: S.US.ALLK | O11: S.US.DRNA | P11: =RTD("cqg.rtd", ,"ContractData",O11, "PerCentNetLastTrade",, "T")/100 -> 0.04765993989 | Q11: https://finance.yahoo.com/quote/DRNA | S11: 0.04765993989 | V11: =RTD("cqg.rtd", ,"ContractData",O11, "LongDescription",, "T") -> Dicerna Pharmaceuticals, Inc. | Y11: 0.04765993989 | AA11: 1 | AB11: 1 | AD11: 0.04765993989
A12: =RTD("cqg.rtd", ,"ContractData",C12, "LongDescription",, "T") -> Allogene Therapeutics, Inc. | B12: S.US.ALLO | C12: S.US.ALLO | D12: =RTD("cqg.rtd", ,"ContractData",C12, "LongDescription",, "T") -> Allogene Therapeutics, Inc. | E12: =RTD("cqg.rtd", ,"ContractData",C12, "Open",, "T") -> 27.66 | F12: =RTD("cqg.rtd", ,"ContractData",C12, "High",, "T") -> 28.07 | G12: =RTD("cqg.rtd", ,"ContractData",C12, "Low",, "T") -> 27.02 | H12: =RTD("cqg.rtd", ,"ContractData",C12, "LastTradeToday",, "T") -> 27.98 | I12: =RTD("cqg.rtd", ,"ContractData",C12, "NetLastTradeToday",, "T") -> 0.11 | J12: =RTD("cqg.rtd", ,"ContractData",C12, "PerCentNetLastTrade",, "T")/100 -> 0.003946896304 | K12: =RTD("cqg.rtd", ,"ContractData", C12, "T_CVol",, "T") -> 172981 | L12: 12 | M12: =RANK($J12,$J$1:J$169)+COUNTIF($J$1:J12,J12)-1 -> 70 | N12: S.US.ALLO | O12: S.US.PBYI | P12: =RTD("cqg.rtd", ,"ContractData",O12, "PerCentNetLastTrade",, "T")/100 -> 0.0447761194 | Q12: https://finance.yahoo.com/quote/PBYI | S12: 0.0447761194 | V12: =RTD("cqg.rtd", ,"ContractData",O12, "LongDescription",, "T") -> Puma Biotechnology Inc. | Y12: 0.0447761194 | AA12: 1 | AB12: 1 | AD12: 0.0447761194
A13: =RTD("cqg.rtd", ,"ContractData",C13, "LongDescription",, "T") -> Alnylam Pharmaceuticals, Inc. | B13: S.US.ALNY | C13: S.US.ALNY | D13: =RTD("cqg.rtd", ,"ContractData",C13, "LongDescription",, "T") -> Alnylam Pharmaceuticals, Inc. | E13: =RTD("cqg.rtd", ,"ContractData",C13, "Open",, "T") -> 148.56 | F13: =RTD("cqg.rtd", ,"ContractData",C13, "High",, "T") -> 151.1 | G13: =RTD("cqg.rtd", ,"ContractData",C13, "Low",, "T") -> 146.42 | H13: =RTD("cqg.rtd", ,"ContractData",C13, "LastTradeToday",, "T") -> 150.81 | I13: =RTD("cqg.rtd", ,"ContractData",C13, "NetLastTradeToday",, "T") -> 4.15 | J13: =RTD("cqg.rtd", ,"ContractData",C13, "PerCentNetLastTrade",, "T")/100 -> 0.02829674076 | K13: =RTD("cqg.rtd", ,"ContractData", C13, "T_CVol",, "T") -> 672139 | L13: 13 | M13: =RANK($J13,$J$1:J$169)+COUNTIF($J$1:J13,J13)-1 -> 27 | N13: S.US.ALNY | O13: S.US.TWST | P13: =RTD("cqg.rtd", ,"ContractData",O13, "PerCentNetLastTrade",, "T")/100 -> 0.04288030749 | Q13: https://finance.yahoo.com/quote/TWST | S13: 0.04288030749 | V13: =RTD("cqg.rtd", ,"ContractData",O13, "LongDescription",, "T") -> Twist Bioscience Corporation | Y13: 0.04288030749 | AA13: 1 | AB13: 1 | AD13: 0.04288030749
A14: =RTD("cqg.rtd", ,"ContractData",C14, "LongDescription",, "T") -> AlloVir, Inc. | B14: S.US.ALVR | C14: S.US.ALVR | D14: =RTD("cqg.rtd", ,"ContractData",C14, "LongDescription",, "T") -> AlloVir, Inc. | E14: =RTD("cqg.rtd", ,"ContractData",C14, "Open",, "T") -> 42.85 | F14: =RTD("cqg.rtd", ,"ContractData",C14, "High",, "T") -> 48.31 | G14: =RTD("cqg.rtd", ,"ContractData",C14, "Low",, "T") -> 42.85 | H14: =RTD("cqg.rtd", ,"ContractData",C14, "LastTradeToday",, "T") -> 48.04 | I14: =RTD("cqg.rtd", ,"ContractData",C14, "NetLastTradeToday",, "T") -> 5.07 | J14: =RTD("cqg.rtd", ,"ContractData",C14, "PerCentNetLastTrade",, "T")/100 -> 0.1179892949 | K14: =RTD("cqg.rtd", ,"ContractData", C14, "T_CVol",, "T") -> 102365 | L14: 14 | M14: =RANK($J14,$J$1:J$169)+COUNTIF($J$1:J14,J14)-1 -> 3 | N14: S.US.ALVR | O14: S.US.RGNX | P14: =RTD("cqg.rtd", ,"ContractData",O14, "PerCentNetLastTrade",, "T")/100 -> 0.04152470187 | Q14: https://finance.yahoo.com/quote/RGNX | S14: 0.04152470187 | V14: =RTD("cqg.rtd", ,"ContractData",O14, "LongDescription",, "T") -> REGENXBIO Inc. | Y14: 0.04152470187 | AA14: 1 | AB14: 1 | AD14: 0.04152470187
A15: =RTD("cqg.rtd", ,"ContractData",C15, "LongDescription",, "T") -> Alexion Pharmaceuticals | B15: S.US.ALXN | C15: S.US.ALXN | D15: =RTD("cqg.rtd", ,"ContractData",C15, "LongDescription",, "T") -> Alexion Pharmaceuticals | E15: =RTD("cqg.rtd", ,"ContractData",C15, "Open",, "T") -> 156.88 | F15: =RTD("cqg.rtd", ,"ContractData",C15, "High",, "T") -> 157.91 | G15: =RTD("cqg.rtd", ,"ContractData",C15, "Low",, "T") -> 156.87 | H15: =RTD("cqg.rtd", ,"ContractData",C15, "LastTradeToday",, "T") -> 157.03 | I15: =RTD("cqg.rtd", ,"ContractData",C15, "NetLastTradeToday",, "T") -> -0.32 | J15: =RTD("cqg.rtd", ,"ContractData",C15, "PerCentNetLastTrade",, "T")/100 -> -0.002033682873 | K15: =RTD("cqg.rtd", ,"ContractData", C15, "T_CVol",, "T") -> 1832409 | L15: 15 | M15: =RANK($J15,$J$1:J$169)+COUNTIF($J$1:J15,J15)-1 -> 89 | N15: S.US.ALXN | O15: S.US.SRRK | P15: =RTD("cqg.rtd", ,"ContractData",O15, "PerCentNetLastTrade",, "T")/100 -> 0.04003481288 | Q15: https://finance.yahoo.com/quote/SRRK | S15: 0.04003481288 | V15: =RTD("cqg.rtd", ,"ContractData",O15, "LongDescription",, "T") -> Scholar Rock Holding Corporation | Y15: 0.04003481288 | AA15: 1 | AB15: 1 | AD15: 0.04003481288
A16: =RTD("cqg.rtd", ,"ContractData",C16, "LongDescription",, "T") -> ALX Oncology Holdings Inc. | B16: S.US.ALXO | C16: S.US.ALXO | D16: =RTD("cqg.rtd", ,"ContractData",C16, "LongDescription",, "T") -> ALX Oncology Holdings Inc. | E16: =RTD("cqg.rtd", ,"ContractData",C16, "Open",, "T") -> 84.94 | F16: =RTD("cqg.rtd", ,"ContractData",C16, "High",, "T") -> 88.7 | G16: =RTD("cqg.rtd", ,"ContractData",C16, "Low",, "T") -> 82.84 | H16: =RTD("cqg.rtd", ,"ContractData",C16, "LastTradeToday",, "T") -> 87.59 | I16: =RTD("cqg.rtd", ,"ContractData",C16, "NetLastTradeToday",, "T") -> 1.59 | J16: =RTD("cqg.rtd", ,"ContractData",C16, "PerCentNetLastTrade",, "T")/100 -> 0.01848837209 | K16: =RTD("cqg.rtd", ,"ContractData", C16, "T_CVol",, "T") -> 32883 | L16: 16 | M16: =RANK($J16,$J$1:J$169)+COUNTIF($J$1:J16,J16)-1 -> 39 | N16: S.US.ALXO | O16: S.US.BLUE | P16: =RTD("cqg.rtd", ,"ContractData",O16, "PerCentNetLastTrade",, "T")/100 -> 0.03996703749 | Q16: https://finance.yahoo.com/quote/BLUE | S16: 0.03996703749 | V16: =RTD("cqg.rtd", ,"ContractData",O16, "LongDescription",, "T") -> bluebird bio, Inc. | Y16: 0.03996703749 | AA16: 1 | AB16: 1 | AD16: 0.03996703749
A17: =RTD("cqg.rtd", ,"ContractData",C17, "LongDescription",, "T") -> Amgen Inc | B17: S.US.AMGN | C17: S.US.AMGN | D17: =RTD("cqg.rtd", ,"ContractData",C17, "LongDescription",, "T") -> Amgen Inc | E17: =RTD("cqg.rtd", ,"ContractData",C17, "Open",, "T") -> 240 | F17: =RTD("cqg.rtd", ,"ContractData",C17, "High",, "T") -> 240.35 | G17: =RTD("cqg.rtd", ,"ContractData",C17, "Low",, "T") -> 234.43 | H17: =RTD("cqg.rtd", ,"ContractData",C17, "LastTradeToday",, "T") -> 238.58 | I17: =RTD("cqg.rtd", ,"ContractData",C17, "NetLastTradeToday",, "T") -> 0.09 | J17: =RTD("cqg.rtd", ,"ContractData",C17, "PerCentNetLastTrade",, "T")/100 -> 0.0003773743134 | K17: =RTD("cqg.rtd", ,"ContractData", C17, "T_CVol",, "T") -> 1141483 | L17: 17 | M17: =RANK($J17,$J$1:J$169)+COUNTIF($J$1:J17,J17)-1 -> 80 | N17: S.US.AMGN | O17: S.US.NKTX | P17: =RTD("cqg.rtd", ,"ContractData",O17, "PerCentNetLastTrade",, "T")/100 -> 0.03916924759 | Q17: https://finance.yahoo.com/quote/NKTX | S17: 0.03916924759 | V17: =RTD("cqg.rtd", ,"ContractData",O17, "LongDescription",, "T") -> Nkarta, Inc. | Y17: 0.03916924759 | AA17: 1 | AB17: 1 | AD17: 0.03916924759
A18: =RTD("cqg.rtd", ,"ContractData",C18, "LongDescription",, "T") -> Applied Molecular Transport Inc. | B18: S.US.AMTI | C18: S.US.AMTI | D18: =RTD("cqg.rtd", ,"ContractData",C18, "LongDescription",, "T") -> Applied Molecular Transport Inc. | E18: =RTD("cqg.rtd", ,"ContractData",C18, "Open",, "T") -> 32.98 | F18: =RTD("cqg.rtd", ,"ContractData",C18, "High",, "T") -> 33.9 | G18: =RTD("cqg.rtd", ,"ContractData",C18, "Low",, "T") -> 32.09 | H18: =RTD("cqg.rtd", ,"ContractData",C18, "LastTradeToday",, "T") -> 32.15 | I18: =RTD("cqg.rtd", ,"ContractData",C18, "NetLastTradeToday",, "T") -> -1.48 | J18: =RTD("cqg.rtd", ,"ContractData",C18, "PerCentNetLastTrade",, "T")/100 -> -0.0440083259 | K18: =RTD("cqg.rtd", ,"ContractData", C18, "T_CVol",, "T") -> 17724 | L18: 18 | M18: =RANK($J18,$J$1:J$169)+COUNTIF($J$1:J18,J18)-1 -> 160 | N18: S.US.AMTI | O18: S.US.ENTA | P18: =RTD("cqg.rtd", ,"ContractData",O18, "PerCentNetLastTrade",, "T")/100 -> 0.03836877878 | Q18: https://finance.yahoo.com/quote/ENTA | S18: 0.03836877878 | V18: =RTD("cqg.rtd", ,"ContractData",O18, "LongDescription",, "T") -> Enanta Pharmaceuticals, Inc | Y18: 0.03836877878 | AA18: 1 | AB18: 1 | AD18: 0.03836877878
A19: =RTD("cqg.rtd", ,"ContractData",C19, "LongDescription",, "T") -> AnaptysBio, Inc. | B19: S.US.ANAB | C19: S.US.ANAB | D19: =RTD("cqg.rtd", ,"ContractData",C19, "LongDescription",, "T") -> AnaptysBio, Inc. | E19: =RTD("cqg.rtd", ,"ContractData",C19, "Open",, "T") -> 24.99 | F19: =RTD("cqg.rtd", ,"ContractData",C19, "High",, "T") -> 25.34 | G19: =RTD("cqg.rtd", ,"ContractData",C19, "Low",, "T") -> 24.26 | H19: =RTD("cqg.rtd", ,"ContractData",C19, "LastTradeToday",, "T") -> 24.7 | I19: =RTD("cqg.rtd", ,"ContractData",C19, "NetLastTradeToday",, "T") -> -0.64 | J19: =RTD("cqg.rtd", ,"ContractData",C19, "PerCentNetLastTrade",, "T")/100 -> -0.02525651144 | K19: =RTD("cqg.rtd", ,"ContractData", C19, "T_CVol",, "T") -> 377551 | L19: 19 | M19: =RANK($J19,$J$1:J$169)+COUNTIF($J$1:J19,J19)-1 -> 144 | N19: S.US.ANAB | O19: S.US.DTIL | P19: =RTD("cqg.rtd", ,"ContractData",O19, "PerCentNetLastTrade",, "T")/100 -> 0.03777544596 | Q19: https://finance.yahoo.com/quote/DTIL | S19: 0.03777544596 | V19: =RTD("cqg.rtd", ,"ContractData",O19, "LongDescription",, "T") -> Precision BioSciences, Inc. | Y19: 0.03777544596 | AA19: 1 | AB19: 1 | AD19: 0.03777544596
A20: =RTD("cqg.rtd", ,"ContractData",C20, "LongDescription",, "T") -> Anika Therapeutics Inc | B20: S.US.ANIK | C20: S.US.ANIK | D20: =RTD("cqg.rtd", ,"ContractData",C20, "LongDescription",, "T") -> Anika Therapeutics Inc | E20: =RTD("cqg.rtd", ,"ContractData",C20, "Open",, "T") -> 42.43 | F20: =RTD("cqg.rtd", ,"ContractData",C20, "High",, "T") -> 43.76 | G20: =RTD("cqg.rtd", ,"ContractData",C20, "Low",, "T") -> 41.29 | H20: =RTD("cqg.rtd", ,"ContractData",C20, "LastTradeToday",, "T") -> 41.45 | I20: =RTD("cqg.rtd", ,"ContractData",C20, "NetLastTradeToday",, "T") -> -1.41 | J20: =RTD("cqg.rtd", ,"ContractData",C20, "PerCentNetLastTrade",, "T")/100 -> -0.03289780681 | K20: =RTD("cqg.rtd", ,"ContractData", C20, "T_CVol",, "T") -> 30882 | L20: 20 | M20: =RANK($J20,$J$1:J$169)+COUNTIF($J$1:J20,J20)-1 -> 152 | N20: S.US.ANIK | O20: S.US.FMTX | P20: =RTD("cqg.rtd", ,"ContractData",O20, "PerCentNetLastTrade",, "T")/100 -> 0.03332399888 | Q20: https://finance.yahoo.com/quote/FMTX | S20: 0.03332399888 | V20: =RTD("cqg.rtd", ,"ContractData",O20, "LongDescription",, "T") -> Forma Therapeutics Holdings, Inc. | Y20: 0.03332399888 | AA20: 1 | AB20: 1 | AD20: 0.03332399888
A21: =RTD("cqg.rtd", ,"ContractData",C21, "LongDescription",, "T") -> Apellis Pharmaceuticals, Inc. | B21: S.US.APLS | C21: S.US.APLS | D21: =RTD("cqg.rtd", ,"ContractData",C21, "LongDescription",, "T") -> Apellis Pharmaceuticals, Inc. | E21: =RTD("cqg.rtd", ,"ContractData",C21, "Open",, "T") -> 57.6 | F21: =RTD("cqg.rtd", ,"ContractData",C21, "High",, "T") -> 57.6 | G21: =RTD("cqg.rtd", ,"ContractData",C21, "Low",, "T") -> 55.42 | H21: =RTD("cqg.rtd", ,"ContractData",C21, "LastTradeToday",, "T") -> 56.7 | I21: =RTD("cqg.rtd", ,"ContractData",C21, "NetLastTradeToday",, "T") -> -0.69 | J21: =RTD("cqg.rtd", ,"ContractData",C21, "PerCentNetLastTrade",, "T")/100 -> -0.01202300052 | K21: =RTD("cqg.rtd", ,"ContractData", C21, "T_CVol",, "T") -> 237539 | L21: 21 | M21: =RANK($J21,$J$1:J$169)+COUNTIF($J$1:J21,J21)-1 -> 122 | N21: S.US.APLS | O21: S.US.ALKS | P21: =RTD("cqg.rtd", ,"ContractData",O21, "PerCentNetLastTrade",, "T")/100 -> 0.03287536801 | Q21: https://finance.yahoo.com/quote/ALKS | S21: 0.03287536801 | V21: =RTD("cqg.rtd", ,"ContractData",O21, "LongDescription",, "T") -> Alkermes plc | Y21: 0.03287536801 | AA21: 1 | AB21: 1 | AD21: 0.03287536801 | AE21: =IFERROR(T21,"") -> 
A22: =RTD("cqg.rtd", ,"ContractData",C22, "LongDescription",, "T") -> Arcturus Therapeutics Holdings Inc. | B22: S.US.ARCT | C22: S.US.ARCT | D22: =RTD("cqg.rtd", ,"ContractData",C22, "LongDescription",, "T") -> Arcturus Therapeutics Holdings Inc. | E22: =RTD("cqg.rtd", ,"ContractData",C22, "Open",, "T") -> 68.7 | F22: =RTD("cqg.rtd", ,"ContractData",C22, "High",, "T") -> 69.52 | G22: =RTD("cqg.rtd", ,"ContractData",C22, "Low",, "T") -> 65.2 | H22: =RTD("cqg.rtd", ,"ContractData",C22, "LastTradeToday",, "T") -> 68.94 | I22: =RTD("cqg.rtd", ,"ContractData",C22, "NetLastTradeToday",, "T") -> -0.72 | J22: =RTD("cqg.rtd", ,"ContractData",C22, "PerCentNetLastTrade",, "T")/100 -> -0.01033591731 | K22: =RTD("cqg.rtd", ,"ContractData", C22, "T_CVol",, "T") -> 1103500 | L22: 22 | M22: =RANK($J22,$J$1:J$169)+COUNTIF($J$1:J22,J22)-1 -> 117 | N22: S.US.ARCT | O22: S.US.ACAD | P22: =RTD("cqg.rtd", ,"ContractData",O22, "PerCentNetLastTrade",, "T")/100 -> 0.03237342368 | Q22: https://finance.yahoo.com/quote/ACAD | S22: 0.03237342368 | V22: =RTD("cqg.rtd", ,"ContractData",O22, "LongDescription",, "T") -> ACADIA Pharmaceuticals, Inc. | Y22: 0.03237342368 | AA22: 1 | AB22: 1 | AD22: 0.03237342368
A23: =RTD("cqg.rtd", ,"ContractData",C23, "LongDescription",, "T") -> Ardelyx, Inc. | B23: S.US.ARDX | C23: S.US.ARDX | D23: =RTD("cqg.rtd", ,"ContractData",C23, "LongDescription",, "T") -> Ardelyx, Inc. | E23: =RTD("cqg.rtd", ,"ContractData",C23, "Open",, "T") -> 7.11 | F23: =RTD("cqg.rtd", ,"ContractData",C23, "High",, "T") -> 7.44 | G23: =RTD("cqg.rtd", ,"ContractData",C23, "Low",, "T") -> 7.02 | H23: =RTD("cqg.rtd", ,"ContractData",C23, "LastTradeToday",, "T") -> 7.13 | I23: =RTD("cqg.rtd", ,"ContractData",C23, "NetLastTradeToday",, "T") -> 0.13 | J23: =RTD("cqg.rtd", ,"ContractData",C23, "PerCentNetLastTrade",, "T")/100 -> 0.01857142857 | K23: =RTD("cqg.rtd", ,"ContractData", C23, "T_CVol",, "T") -> 384542 | L23: 23 | M23: =RANK($J23,$J$1:J$169)+COUNTIF($J$1:J23,J23)-1 -> 38 | N23: S.US.ARDX | O23: S.US.BBIO | P23: =RTD("cqg.rtd", ,"ContractData",O23, "PerCentNetLastTrade",, "T")/100 -> 0.03175087773 | Q23: https://finance.yahoo.com/quote/BBIO | S23: 0.03175087773 | V23: =RTD("cqg.rtd", ,"ContractData",O23, "LongDescription",, "T") -> BridgeBio Pharma, Inc. | Y23: 0.03175087773 | AA23: 1 | AB23: 1 | AD23: 0.03175087773 | AE23: =IFERROR(T23,"") -> 
A24: =RTD("cqg.rtd", ,"ContractData",C24, "LongDescription",, "T") -> Arena Pharmaceuticals Inc | B24: S.US.ARNA | C24: S.US.ARNA | D24: =RTD("cqg.rtd", ,"ContractData",C24, "LongDescription",, "T") -> Arena Pharmaceuticals Inc | E24: =RTD("cqg.rtd", ,"ContractData",C24, "Open",, "T") -> 76.86 | F24: =RTD("cqg.rtd", ,"ContractData",C24, "High",, "T") -> 77.31 | G24: =RTD("cqg.rtd", ,"ContractData",C24, "Low",, "T") -> 74.89 | H24: =RTD("cqg.rtd", ,"ContractData",C24, "LastTradeToday",, "T") -> 76.25 | I24: =RTD("cqg.rtd", ,"ContractData",C24, "NetLastTradeToday",, "T") -> -0.89 | J24: =RTD("cqg.rtd", ,"ContractData",C24, "PerCentNetLastTrade",, "T")/100 -> -0.01153746435 | K24: =RTD("cqg.rtd", ,"ContractData", C24, "T_CVol",, "T") -> 180211 | L24: 24 | M24: =RANK($J24,$J$1:J$169)+COUNTIF($J$1:J24,J24)-1 -> 121 | N24: S.US.ARNA | O24: S.US.AGIO | P24: =RTD("cqg.rtd", ,"ContractData",O24, "PerCentNetLastTrade",, "T")/100 -> 0.03142046694 | Q24: https://finance.yahoo.com/quote/AGIO | S24: 0.03142046694 | V24: =RTD("cqg.rtd", ,"ContractData",O24, "LongDescription",, "T") -> Agios Pharmaceuticals, Inc. | Y24: 0.03142046694 | AA24: 1 | AB24: 1 | AD24: 0.03142046694
A25: =RTD("cqg.rtd", ,"ContractData",C25, "LongDescription",, "T") -> Arcutis Biotherapeutics, Inc. | B25: S.US.ARQT | C25: S.US.ARQT | D25: =RTD("cqg.rtd", ,"ContractData",C25, "LongDescription",, "T") -> Arcutis Biotherapeutics, Inc. | E25: =RTD("cqg.rtd", ,"ContractData",C25, "Open",, "T") -> 27.61 | F25: =RTD("cqg.rtd", ,"ContractData",C25, "High",, "T") -> 28.42 | G25: =RTD("cqg.rtd", ,"ContractData",C25, "Low",, "T") -> 27.35 | H25: =RTD("cqg.rtd", ,"ContractData",C25, "LastTradeToday",, "T") -> 28.34 | I25: =RTD("cqg.rtd", ,"ContractData",C25, "NetLastTradeToday",, "T") -> 0.18 | J25: =RTD("cqg.rtd", ,"ContractData",C25, "PerCentNetLastTrade",, "T")/100 -> 0.006392045455 | K25: =RTD("cqg.rtd", ,"ContractData", C25, "T_CVol",, "T") -> 22197 | L25: 25 | M25: =RANK($J25,$J$1:J$169)+COUNTIF($J$1:J25,J25)-1 -> 64 | N25: S.US.ARQT | O25: S.US.UTHR | P25: =RTD("cqg.rtd", ,"ContractData",O25, "PerCentNetLastTrade",, "T")/100 -> 0.02962200145 | Q25: https://finance.yahoo.com/quote/UTHR | S25: 0.02962200145 | V25: =RTD("cqg.rtd", ,"ContractData",O25, "LongDescription",, "T") -> United Therapeutics Corp | Y25: 0.02962200145 | AA25: 1 | AB25: 1 | AD25: =IFERROR(S25,"") -> 0.02962200145 | AE25: =IFERROR(T25,"") -> 
A26: =RTD("cqg.rtd", ,"ContractData",C26, "LongDescription",, "T") -> Arrowhead Pharmaceuticals, Inc. | B26: S.US.ARWR | C26: S.US.ARWR | D26: =RTD("cqg.rtd", ,"ContractData",C26, "LongDescription",, "T") -> Arrowhead Pharmaceuticals, Inc. | E26: =RTD("cqg.rtd", ,"ContractData",C26, "Open",, "T") -> 79 | F26: =RTD("cqg.rtd", ,"ContractData",C26, "High",, "T") -> 81.22 | G26: =RTD("cqg.rtd", ,"ContractData",C26, "Low",, "T") -> 78.03 | H26: =RTD("cqg.rtd", ,"ContractData",C26, "LastTradeToday",, "T") -> 80.6 | I26: =RTD("cqg.rtd", ,"ContractData",C26, "NetLastTradeToday",, "T") -> 0.72 | J26: =RTD("cqg.rtd", ,"ContractData",C26, "PerCentNetLastTrade",, "T")/100 -> 0.00901352028 | K26: =RTD("cqg.rtd", ,"ContractData", C26, "T_CVol",, "T") -> 303081 | L26: 26 | M26: =RANK($J26,$J$1:J$169)+COUNTIF($J$1:J26,J26)-1 -> 58 | N26: S.US.ARWR | O26: S.US.MYGN | P26: =RTD("cqg.rtd", ,"ContractData",O26, "PerCentNetLastTrade",, "T")/100 -> 0.02936311001 | Q26: https://finance.yahoo.com/quote/MYGN | S26: 0.02936311001 | V26: =RTD("cqg.rtd", ,"ContractData",O26, "LongDescription",, "T") -> Myriad Genetics Inc | Y26: 0.02936311001 | AA26: 1 | AB26: 1 | AD26: 0.02936311001
A27: =RTD("cqg.rtd", ,"ContractData",C27, "LongDescription",, "T") -> Athersys, Inc. | B27: S.US.ATHX | C27: S.US.ATHX | D27: =RTD("cqg.rtd", ,"ContractData",C27, "LongDescription",, "T") -> Athersys, Inc. | E27: =RTD("cqg.rtd", ,"ContractData",C27, "Open",, "T") -> 1.92 | F27: =RTD("cqg.rtd", ,"ContractData",C27, "High",, "T") -> 1.99 | G27: =RTD("cqg.rtd", ,"ContractData",C27, "Low",, "T") -> 1.88 | H27: =RTD("cqg.rtd", ,"ContractData",C27, "LastTradeToday",, "T") -> 1.98 | I27: =RTD("cqg.rtd", ,"ContractData",C27, "NetLastTradeToday",, "T") -> 0.02 | J27: =RTD("cqg.rtd", ,"ContractData",C27, "PerCentNetLastTrade",, "T")/100 -> 0.01020408163 | K27: =RTD("cqg.rtd", ,"ContractData", C27, "T_CVol",, "T") -> 648184 | L27: 27 | M27: =RANK($J27,$J$1:J$169)+COUNTIF($J$1:J27,J27)-1 -> 54 | N27: S.US.ATHX | O27: S.US.ALNY | P27: =RTD("cqg.rtd", ,"ContractData",O27, "PerCentNetLastTrade",, "T")/100 -> 0.02829674076 | Q27: https://finance.yahoo.com/quote/ALNY | S27: 0.02829674076 | V27: =RTD("cqg.rtd", ,"ContractData",O27, "LongDescription",, "T") -> Alnylam Pharmaceuticals, Inc. | Y27: 0.02829674076 | AA27: 1 | AB27: 1 | AD27: 0.02829674076
A28: =RTD("cqg.rtd", ,"ContractData",C28, "LongDescription",, "T") -> Athenex, Inc. | B28: S.US.ATNX | C28: S.US.ATNX | D28: =RTD("cqg.rtd", ,"ContractData",C28, "LongDescription",, "T") -> Athenex, Inc. | E28: =RTD("cqg.rtd", ,"ContractData",C28, "Open",, "T") -> 11.78 | F28: =RTD("cqg.rtd", ,"ContractData",C28, "High",, "T") -> 11.8 | G28: =RTD("cqg.rtd", ,"ContractData",C28, "Low",, "T") -> 11.34 | H28: =RTD("cqg.rtd", ,"ContractData",C28, "LastTradeToday",, "T") -> 11.48 | I28: =RTD("cqg.rtd", ,"ContractData",C28, "NetLastTradeToday",, "T") -> -0.17 | J28: =RTD("cqg.rtd", ,"ContractData",C28, "PerCentNetLastTrade",, "T")/100 -> -0.01459227468 | K28: =RTD("cqg.rtd", ,"ContractData", C28, "T_CVol",, "T") -> 341695 | L28: 28 | M28: =RANK($J28,$J$1:J$169)+COUNTIF($J$1:J28,J28)-1 -> 126 | N28: S.US.ATNX | O28: S.US.LGND | P28: =RTD("cqg.rtd", ,"ContractData",O28, "PerCentNetLastTrade",, "T")/100 -> 0.02624153499 | Q28: https://finance.yahoo.com/quote/LGND | S28: 0.02624153499 | V28: =RTD("cqg.rtd", ,"ContractData",O28, "LongDescription",, "T") -> Ligand Pharmaceuticals Inc | Y28: 0.02624153499 | AA28: 1 | AB28: 1 | AD28: 0.02624153499
A29: =RTD("cqg.rtd", ,"ContractData",C29, "LongDescription",, "T") -> Atara Biotherapeutics, Inc. | B29: S.US.ATRA | C29: S.US.ATRA | D29: =RTD("cqg.rtd", ,"ContractData",C29, "LongDescription",, "T") -> Atara Biotherapeutics, Inc. | E29: =RTD("cqg.rtd", ,"ContractData",C29, "Open",, "T") -> 20.29 | F29: =RTD("cqg.rtd", ,"ContractData",C29, "High",, "T") -> 20.83 | G29: =RTD("cqg.rtd", ,"ContractData",C29, "Low",, "T") -> 19.9 | H29: =RTD("cqg.rtd", ,"ContractData",C29, "LastTradeToday",, "T") -> 20.63 | I29: =RTD("cqg.rtd", ,"ContractData",C29, "NetLastTradeToday",, "T") -> 0.22 | J29: =RTD("cqg.rtd", ,"ContractData",C29, "PerCentNetLastTrade",, "T")/100 -> 0.01077902989 | K29: =RTD("cqg.rtd", ,"ContractData", C29, "T_CVol",, "T") -> 296170 | L29: 29 | M29: =RANK($J29,$J$1:J$169)+COUNTIF($J$1:J29,J29)-1 -> 53 | N29: S.US.ATRA | O29: S.US.ESPR | P29: =RTD("cqg.rtd", ,"ContractData",O29, "PerCentNetLastTrade",, "T")/100 -> 0.02608695652 | Q29: https://finance.yahoo.com/quote/ESPR | S29: 0.02608695652 | V29: =RTD("cqg.rtd", ,"ContractData",O29, "LongDescription",, "T") -> Esperion Therapeutics, Inc. | Y29: 0.02608695652 | AA29: 1 | AB29: 1 | AD29: 0.02608695652
A30: =RTD("cqg.rtd", ,"ContractData",C30, "LongDescription",, "T") -> AVROBIO, Inc. | B30: S.US.AVRO | C30: S.US.AVRO | D30: =RTD("cqg.rtd", ,"ContractData",C30, "LongDescription",, "T") -> AVROBIO, Inc. | E30: =RTD("cqg.rtd", ,"ContractData",C30, "Open",, "T") -> 14.95 | F30: =RTD("cqg.rtd", ,"ContractData",C30, "High",, "T") -> 15.32 | G30: =RTD("cqg.rtd", ,"ContractData",C30, "Low",, "T") -> 14.6 | H30: =RTD("cqg.rtd", ,"ContractData",C30, "LastTradeToday",, "T") -> 15.1 | I30: =RTD("cqg.rtd", ,"ContractData",C30, "NetLastTradeToday",, "T") -> 0.02 | J30: =RTD("cqg.rtd", ,"ContractData",C30, "PerCentNetLastTrade",, "T")/100 -> 0.001326259947 | K30: =RTD("cqg.rtd", ,"ContractData", C30, "T_CVol",, "T") -> 95007 | L30: 30 | M30: =RANK($J30,$J$1:J$169)+COUNTIF($J$1:J30,J30)-1 -> 77 | N30: S.US.AVRO | O30: S.US.PCVX | P30: =RTD("cqg.rtd", ,"ContractData",O30, "PerCentNetLastTrade",, "T")/100 -> 0.02479969477 | Q30: https://finance.yahoo.com/quote/PCVX | S30: 0.02479969477 | V30: =RTD("cqg.rtd", ,"ContractData",O30, "LongDescription",, "T") -> Vaxcyte, Inc. | Y30: 0.02479969477 | AA30: 1 | AB30: 1 | AD30: 0.02479969477
A31: =RTD("cqg.rtd", ,"ContractData",C31, "LongDescription",, "T") -> BridgeBio Pharma, Inc. | B31: S.US.BBIO | C31: S.US.BBIO | D31: =RTD("cqg.rtd", ,"ContractData",C31, "LongDescription",, "T") -> BridgeBio Pharma, Inc. | E31: =RTD("cqg.rtd", ,"ContractData",C31, "Open",, "T") -> 66 | F31: =RTD("cqg.rtd", ,"ContractData",C31, "High",, "T") -> 67.59 | G31: =RTD("cqg.rtd", ,"ContractData",C31, "Low",, "T") -> 65.09 | H31: =RTD("cqg.rtd", ,"ContractData",C31, "LastTradeToday",, "T") -> 67.59 | I31: =RTD("cqg.rtd", ,"ContractData",C31, "NetLastTradeToday",, "T") -> 2.08 | J31: =RTD("cqg.rtd", ,"ContractData",C31, "PerCentNetLastTrade",, "T")/100 -> 0.03175087773 | K31: =RTD("cqg.rtd", ,"ContractData", C31, "T_CVol",, "T") -> 202813 | L31: 31 | M31: =RANK($J31,$J$1:J$169)+COUNTIF($J$1:J31,J31)-1 -> 23 | N31: S.US.BBIO | O31: S.US.TCRR | P31: =RTD("cqg.rtd", ,"ContractData",O31, "PerCentNetLastTrade",, "T")/100 -> 0.02414860681 | Q31: https://finance.yahoo.com/quote/TCRR | S31: 0.02414860681 | V31: =RTD("cqg.rtd", ,"ContractData",O31, "LongDescription",, "T") -> TCR2 Therapeutics Inc. | Y31: 0.02414860681 | AA31: 1 | AB31: 1 | AD31: 0.02414860681
A32: =RTD("cqg.rtd", ,"ContractData",C32, "LongDescription",, "T") -> Atreca, Inc. Class A | B32: S.US.BCEL | C32: S.US.BCEL | D32: =RTD("cqg.rtd", ,"ContractData",C32, "LongDescription",, "T") -> Atreca, Inc. Class A | E32: =RTD("cqg.rtd", ,"ContractData",C32, "Open",, "T") -> 15.14 | F32: =RTD("cqg.rtd", ,"ContractData",C32, "High",, "T") -> 15.24 | G32: =RTD("cqg.rtd", ,"ContractData",C32, "Low",, "T") -> 14.61 | H32: =RTD("cqg.rtd", ,"ContractData",C32, "LastTradeToday",, "T") -> 15.18 | I32: =RTD("cqg.rtd", ,"ContractData",C32, "NetLastTradeToday",, "T") -> -0.11 | J32: =RTD("cqg.rtd", ,"ContractData",C32, "PerCentNetLastTrade",, "T")/100 -> -0.007194244604 | K32: =RTD("cqg.rtd", ,"ContractData", C32, "T_CVol",, "T") -> 95691 | L32: 32 | M32: =RANK($J32,$J$1:J$169)+COUNTIF($J$1:J32,J32)-1 -> 110 | N32: S.US.BCEL | O32: S.US.VIR | P32: =RTD("cqg.rtd", ,"ContractData",O32, "PerCentNetLastTrade",, "T")/100 -> 0.02336448598 | Q32: https://finance.yahoo.com/quote/VIR | S32: 0.02336448598 | V32: =RTD("cqg.rtd", ,"ContractData",O32, "LongDescription",, "T") -> Vir Biotechnology, Inc. | Y32: 0.02336448598 | AA32: 1 | AB32: 1 | AD32: 0.02336448598
A33: =RTD("cqg.rtd", ,"ContractData",C33, "LongDescription",, "T") -> Biocryst Pharmaceuticals Inc | B33: S.US.BCRX | C33: S.US.BCRX | D33: =RTD("cqg.rtd", ,"ContractData",C33, "LongDescription",, "T") -> Biocryst Pharmaceuticals Inc | E33: =RTD("cqg.rtd", ,"ContractData",C33, "Open",, "T") -> 7.7 | F33: =RTD("cqg.rtd", ,"ContractData",C33, "High",, "T") -> 7.75 | G33: =RTD("cqg.rtd", ,"ContractData",C33, "Low",, "T") -> 7.45 | H33: =RTD("cqg.rtd", ,"ContractData",C33, "LastTradeToday",, "T") -> 7.52 | I33: =RTD("cqg.rtd", ,"ContractData",C33, "NetLastTradeToday",, "T") -> -0.22 | J33: =RTD("cqg.rtd", ,"ContractData",C33, "PerCentNetLastTrade",, "T")/100 -> -0.02842377261 | K33: =RTD("cqg.rtd", ,"ContractData", C33, "T_CVol",, "T") -> 2333113 | L33: 33 | M33: =RANK($J33,$J$1:J$169)+COUNTIF($J$1:J33,J33)-1 -> 148 | N33: S.US.BCRX | O33: S.US.BDTX | P33: =RTD("cqg.rtd", ,"ContractData",O33, "PerCentNetLastTrade",, "T")/100 -> 0.0219876869 | Q33: https://finance.yahoo.com/quote/BDTX | S33: 0.0219876869 | V33: =RTD("cqg.rtd", ,"ContractData",O33, "LongDescription",, "T") -> Black Diamond Therapeutics, Inc. | Y33: 0.0219876869 | AA33: 1 | AB33: 1 | AD33: 0.0219876869
A34: =RTD("cqg.rtd", ,"ContractData",C34, "LongDescription",, "T") -> Black Diamond Therapeutics, Inc. | B34: S.US.BDTX | C34: S.US.BDTX | D34: =RTD("cqg.rtd", ,"ContractData",C34, "LongDescription",, "T") -> Black Diamond Therapeutics, Inc. | E34: =RTD("cqg.rtd", ,"ContractData",C34, "Open",, "T") -> 34.32 | F34: =RTD("cqg.rtd", ,"ContractData",C34, "High",, "T") -> 35.15 | G34: =RTD("cqg.rtd", ,"ContractData",C34, "Low",, "T") -> 34.32 | H34: =RTD("cqg.rtd", ,"ContractData",C34, "LastTradeToday",, "T") -> 34.86 | I34: =RTD("cqg.rtd", ,"ContractData",C34, "NetLastTradeToday",, "T") -> 0.75 | J34: =RTD("cqg.rtd", ,"ContractData",C34, "PerCentNetLastTrade",, "T")/100 -> 0.0219876869 | K34: =RTD("cqg.rtd", ,"ContractData", C34, "T_CVol",, "T") -> 248390 | L34: 34 | M34: =RANK($J34,$J$1:J$169)+COUNTIF($J$1:J34,J34)-1 -> 33 | N34: S.US.BDTX | O34: S.US.CTMX | P34: =RTD("cqg.rtd", ,"ContractData",O34, "PerCentNetLastTrade",, "T")/100 -> 0.02162162162 | Q34: https://finance.yahoo.com/quote/CTMX | S34: 0.02162162162 | V34: =RTD("cqg.rtd", ,"ContractData",O34, "LongDescription",, "T") -> CytomX Therapeutics, Inc. | Y34: 0.02162162162 | AA34: 1 | AB34: 1 | AD34: 0.02162162162
A35: =RTD("cqg.rtd", ,"ContractData",C35, "LongDescription",, "T") -> Beam Therapeutics Inc. | B35: S.US.BEAM | C35: S.US.BEAM | D35: =RTD("cqg.rtd", ,"ContractData",C35, "LongDescription",, "T") -> Beam Therapeutics Inc. | E35: =RTD("cqg.rtd", ,"ContractData",C35, "Open",, "T") -> 101.77 | F35: =RTD("cqg.rtd", ,"ContractData",C35, "High",, "T") -> 101.99 | G35: =RTD("cqg.rtd", ,"ContractData",C35, "Low",, "T") -> 90.46 | H35: =RTD("cqg.rtd", ,"ContractData",C35, "LastTradeToday",, "T") -> 96.51 | I35: =RTD("cqg.rtd", ,"ContractData",C35, "NetLastTradeToday",, "T") -> -5.16 | J35: =RTD("cqg.rtd", ,"ContractData",C35, "PerCentNetLastTrade",, "T")/100 -> -0.05075243435 | K35: =RTD("cqg.rtd", ,"ContractData", C35, "T_CVol",, "T") -> 531925 | L35: 35 | M35: =RANK($J35,$J$1:J$169)+COUNTIF($J$1:J35,J35)-1 -> 162 | N35: S.US.BEAM | O35: S.US.FPRX | P35: =RTD("cqg.rtd", ,"ContractData",O35, "PerCentNetLastTrade",, "T")/100 -> 0.01983002833 | Q35: https://finance.yahoo.com/quote/FPRX | S35: 0.01983002833 | V35: =RTD("cqg.rtd", ,"ContractData",O35, "LongDescription",, "T") -> Five Prime Therapeutics, Inc. | Y35: 0.01983002833 | AA35: 1 | AB35: 1 | AD35: 0.01983002833
A36: =RTD("cqg.rtd", ,"ContractData",C36, "LongDescription",, "T") -> Biohaven Pharmaceutical Holding Co Ltd. | B36: S.US.BHVN | C36: S.US.BHVN | D36: =RTD("cqg.rtd", ,"ContractData",C36, "LongDescription",, "T") -> Biohaven Pharmaceutical Holding Co Ltd. | E36: =RTD("cqg.rtd", ,"ContractData",C36, "Open",, "T") -> 85.5 | F36: =RTD("cqg.rtd", ,"ContractData",C36, "High",, "T") -> 86.02 | G36: =RTD("cqg.rtd", ,"ContractData",C36, "Low",, "T") -> 84.02 | H36: =RTD("cqg.rtd", ,"ContractData",C36, "LastTradeToday",, "T") -> 86.02 | I36: =RTD("cqg.rtd", ,"ContractData",C36, "NetLastTradeToday",, "T") -> 0.3 | J36: =RTD("cqg.rtd", ,"ContractData",C36, "PerCentNetLastTrade",, "T")/100 -> 0.003499766682 | K36: =RTD("cqg.rtd", ,"ContractData", C36, "T_CVol",, "T") -> 169982 | L36: 36 | M36: =RANK($J36,$J$1:J$169)+COUNTIF($J$1:J36,J36)-1 -> 72 | N36: S.US.BHVN | O36: S.US.ABBV | P36: =RTD("cqg.rtd", ,"ContractData",O36, "PerCentNetLastTrade",, "T")/100 -> 0.01948354619 | Q36: https://finance.yahoo.com/quote/ABBV | S36: 0.01948354619 | V36: =RTD("cqg.rtd", ,"ContractData",O36, "LongDescription",, "T") -> AbbVie Inc. | Y36: 0.01948354619 | AA36: 1 | AB36: 1 | AD36: 0.01948354619
A37: =RTD("cqg.rtd", ,"ContractData",C37, "LongDescription",, "T") -> Biogen Inc. | B37: S.US.BIIB | C37: S.US.BIIB | D37: =RTD("cqg.rtd", ,"ContractData",C37, "LongDescription",, "T") -> Biogen Inc. | E37: =RTD("cqg.rtd", ,"ContractData",C37, "Open",, "T") -> 255.86 | F37: =RTD("cqg.rtd", ,"ContractData",C37, "High",, "T") -> 275.49 | G37: =RTD("cqg.rtd", ,"ContractData",C37, "Low",, "T") -> 253.31 | H37: =RTD("cqg.rtd", ,"ContractData",C37, "LastTradeToday",, "T") -> 273.69 | I37: =RTD("cqg.rtd", ,"ContractData",C37, "NetLastTradeToday",, "T") -> 21.15 | J37: =RTD("cqg.rtd", ,"ContractData",C37, "PerCentNetLastTrade",, "T")/100 -> 0.08374910905 | K37: =RTD("cqg.rtd", ,"ContractData", C37, "T_CVol",, "T") -> 1914099 | L37: 37 | M37: =RANK($J37,$J$1:J$169)+COUNTIF($J$1:J37,J37)-1 -> 6 | N37: S.US.BIIB | O37: S.US.SNDX | P37: =RTD("cqg.rtd", ,"ContractData",O37, "PerCentNetLastTrade",, "T")/100 -> 0.01867572156 | Q37: https://finance.yahoo.com/quote/SNDX | S37: 0.01867572156 | V37: =RTD("cqg.rtd", ,"ContractData",O37, "LongDescription",, "T") -> Syndax Pharmaceuticals, Inc. | Y37: 0.01867572156 | AA37: 1 | AB37: 1 | AD37: 0.01867572156
A38: =RTD("cqg.rtd", ,"ContractData",C38, "LongDescription",, "T") -> bluebird bio, Inc. | B38: S.US.BLUE | C38: S.US.BLUE | D38: =RTD("cqg.rtd", ,"ContractData",C38, "LongDescription",, "T") -> bluebird bio, Inc. | E38: =RTD("cqg.rtd", ,"ContractData",C38, "Open",, "T") -> 49.61 | F38: =RTD("cqg.rtd", ,"ContractData",C38, "High",, "T") -> 50.61 | G38: =RTD("cqg.rtd", ,"ContractData",C38, "Low",, "T") -> 46.58 | H38: =RTD("cqg.rtd", ,"ContractData",C38, "LastTradeToday",, "T") -> 50.48 | I38: =RTD("cqg.rtd", ,"ContractData",C38, "NetLastTradeToday",, "T") -> 1.94 | J38: =RTD("cqg.rtd", ,"ContractData",C38, "PerCentNetLastTrade",, "T")/100 -> 0.03996703749 | K38: =RTD("cqg.rtd", ,"ContractData", C38, "T_CVol",, "T") -> 1003200 | L38: 38 | M38: =RANK($J38,$J$1:J$169)+COUNTIF($J$1:J38,J38)-1 -> 16 | N38: S.US.BLUE | O38: S.US.ARDX | P38: =RTD("cqg.rtd", ,"ContractData",O38, "PerCentNetLastTrade",, "T")/100 -> 0.01857142857 | Q38: https://finance.yahoo.com/quote/ARDX | S38: 0.01857142857 | V38: =RTD("cqg.rtd", ,"ContractData",O38, "LongDescription",, "T") -> Ardelyx, Inc. | Y38: 0.01857142857 | AA38: 1 | AB38: 1 | AD38: 0.01857142857
A39: =RTD("cqg.rtd", ,"ContractData",C39, "LongDescription",, "T") -> BioMarin Pharmaceutical Inc | B39: S.US.BMRN | C39: S.US.BMRN | D39: =RTD("cqg.rtd", ,"ContractData",C39, "LongDescription",, "T") -> BioMarin Pharmaceutical Inc | E39: =RTD("cqg.rtd", ,"ContractData",C39, "Open",, "T") -> 83.92 | F39: =RTD("cqg.rtd", ,"ContractData",C39, "High",, "T") -> 84.99 | G39: =RTD("cqg.rtd", ,"ContractData",C39, "Low",, "T") -> 81 | H39: =RTD("cqg.rtd", ,"ContractData",C39, "LastTradeToday",, "T") -> 83.18 | I39: =RTD("cqg.rtd", ,"ContractData",C39, "NetLastTradeToday",, "T") -> -6.68 | J39: =RTD("cqg.rtd", ,"ContractData",C39, "PerCentNetLastTrade",, "T")/100 -> -0.07433785889 | K39: =RTD("cqg.rtd", ,"ContractData", C39, "T_CVol",, "T") -> 2714215 | L39: 39 | M39: =RANK($J39,$J$1:J$169)+COUNTIF($J$1:J39,J39)-1 -> 167 | N39: S.US.BMRN | O39: S.US.ALXO | P39: =RTD("cqg.rtd", ,"ContractData",O39, "PerCentNetLastTrade",, "T")/100 -> 0.01848837209 | Q39: https://finance.yahoo.com/quote/ALXO | S39: 0.01848837209 | V39: =RTD("cqg.rtd", ,"ContractData",O39, "LongDescription",, "T") -> ALX Oncology Holdings Inc. | Y39: 0.01848837209 | AA39: =IF(S39="#N/A",0,1) -> 1 | AB39: 1 | AD39: 0.01848837209
A40: =RTD("cqg.rtd", ,"ContractData",C40, "LongDescription",, "T") -> Blueprint Medicines Corp | B40: S.US.BPMC | C40: S.US.BPMC | D40: =RTD("cqg.rtd", ,"ContractData",C40, "LongDescription",, "T") -> Blueprint Medicines Corp | E40: =RTD("cqg.rtd", ,"ContractData",C40, "Open",, "T") -> 105.73 | F40: =RTD("cqg.rtd", ,"ContractData",C40, "High",, "T") -> 107.97 | G40: =RTD("cqg.rtd", ,"ContractData",C40, "Low",, "T") -> 100.01 | H40: =RTD("cqg.rtd", ,"ContractData",C40, "LastTradeToday",, "T") -> 107.88 | I40: =RTD("cqg.rtd", ,"ContractData",C40, "NetLastTradeToday",, "T") -> -0.4 | J40: =RTD("cqg.rtd", ,"ContractData",C40, "PerCentNetLastTrade",, "T")/100 -> -0.003694126339 | K40: =RTD("cqg.rtd", ,"ContractData", C40, "T_CVol",, "T") -> 215900 | L40: 40 | M40: =RANK($J40,$J$1:J$169)+COUNTIF($J$1:J40,J40)-1 -> 98 | N40: S.US.BPMC | O40: S.US.FGEN | P40: =RTD("cqg.rtd", ,"ContractData",O40, "PerCentNetLastTrade",, "T")/100 -> 0.01796875 | Q40: https://finance.yahoo.com/quote/FGEN | S40: 0.01796875 | V40: =RTD("cqg.rtd", ,"ContractData",O40, "LongDescription",, "T") -> FibroGen, Inc. | Y40: 0.01796875 | AA40: 1 | AB40: 1 | AD40: 0.01796875
A41: =RTD("cqg.rtd", ,"ContractData",C41, "LongDescription",, "T") -> BioXcel Therapeutics, Inc. | B41: S.US.BTAI | C41: S.US.BTAI | D41: =RTD("cqg.rtd", ,"ContractData",C41, "LongDescription",, "T") -> BioXcel Therapeutics, Inc. | E41: =RTD("cqg.rtd", ,"ContractData",C41, "Open",, "T") -> 51.63 | F41: =RTD("cqg.rtd", ,"ContractData",C41, "High",, "T") -> 52.34 | G41: =RTD("cqg.rtd", ,"ContractData",C41, "Low",, "T") -> 49.71 | H41: =RTD("cqg.rtd", ,"ContractData",C41, "LastTradeToday",, "T") -> 52.19 | I41: =RTD("cqg.rtd", ,"ContractData",C41, "NetLastTradeToday",, "T") -> -0.42 | J41: =RTD("cqg.rtd", ,"ContractData",C41, "PerCentNetLastTrade",, "T")/100 -> -0.007983273142 | K41: =RTD("cqg.rtd", ,"ContractData", C41, "T_CVol",, "T") -> 295610 | L41: 41 | M41: =RANK($J41,$J$1:J$169)+COUNTIF($J$1:J41,J41)-1 -> 112 | N41: S.US.BTAI | O41: S.US.ALEC | P41: =RTD("cqg.rtd", ,"ContractData",O41, "PerCentNetLastTrade",, "T")/100 -> 0.01623376623 | Q41: https://finance.yahoo.com/quote/ALEC | S41: 0.01623376623 | V41: =RTD("cqg.rtd", ,"ContractData",O41, "LongDescription",, "T") -> Alector, Inc. | Y41: 0.01623376623 | AA41: 1 | AB41: 1 | AD41: 0.01623376623
A42: =RTD("cqg.rtd", ,"ContractData",C42, "LongDescription",, "T") -> ChemoCentryx, Inc. | B42: S.US.CCXI | C42: S.US.CCXI | D42: =RTD("cqg.rtd", ,"ContractData",C42, "LongDescription",, "T") -> ChemoCentryx, Inc. | E42: =RTD("cqg.rtd", ,"ContractData",C42, "Open",, "T") -> 62.8 | F42: =RTD("cqg.rtd", ,"ContractData",C42, "High",, "T") -> 63.05 | G42: =RTD("cqg.rtd", ,"ContractData",C42, "Low",, "T") -> 61.04 | H42: =RTD("cqg.rtd", ,"ContractData",C42, "LastTradeToday",, "T") -> 62.39 | I42: =RTD("cqg.rtd", ,"ContractData",C42, "NetLastTradeToday",, "T") -> -0.39 | J42: =RTD("cqg.rtd", ,"ContractData",C42, "PerCentNetLastTrade",, "T")/100 -> -0.006212169481 | K42: =RTD("cqg.rtd", ,"ContractData", C42, "T_CVol",, "T") -> 134096 | L42: 42 | M42: =RANK($J42,$J$1:J$169)+COUNTIF($J$1:J42,J42)-1 -> 107 | N42: S.US.CCXI | O42: S.US.EBS | P42: =RTD("cqg.rtd", ,"ContractData",O42, "PerCentNetLastTrade",, "T")/100 -> 0.01604443073 | Q42: https://finance.yahoo.com/quote/EBS | S42: 0.01604443073 | V42: =RTD("cqg.rtd", ,"ContractData",O42, "LongDescription",, "T") -> Emergent Biosolutions | Y42: 0.01604443073 | AA42: 1 | AB42: 1 | AD42: 0.01604443073
A43: =RTD("cqg.rtd", ,"ContractData",C43, "LongDescription",, "T") -> CareDx, Inc. | B43: S.US.CDNA | C43: S.US.CDNA | D43: =RTD("cqg.rtd", ,"ContractData",C43, "LongDescription",, "T") -> CareDx, Inc. | E43: =RTD("cqg.rtd", ,"ContractData",C43, "Open",, "T") -> 81.54 | F43: =RTD("cqg.rtd", ,"ContractData",C43, "High",, "T") -> 83.02 | G43: =RTD("cqg.rtd", ,"ContractData",C43, "Low",, "T") -> 79.48 | H43: =RTD("cqg.rtd", ,"ContractData",C43, "LastTradeToday",, "T") -> 80.59 | I43: =RTD("cqg.rtd", ,"ContractData",C43, "NetLastTradeToday",, "T") -> -0.17 | J43: =RTD("cqg.rtd", ,"ContractData",C43, "PerCentNetLastTrade",, "T")/100 -> -0.002105002476 | K43: =RTD("cqg.rtd", ,"ContractData", C43, "T_CVol",, "T") -> 443519 | L43: 43 | M43: =RANK($J43,$J$1:J$169)+COUNTIF($J$1:J43,J43)-1 -> 90 | N43: S.US.CDNA | O43: S.US.KROS | P43: =RTD("cqg.rtd", ,"ContractData",O43, "PerCentNetLastTrade",, "T")/100 -> 0.01564923164 | Q43: https://finance.yahoo.com/quote/KROS | S43: 0.01564923164 | V43: =RTD("cqg.rtd", ,"ContractData",O43, "LongDescription",, "T") -> Keros Therapeutics, Inc. | Y43: 0.01564923164 | AA43: 1 | AB43: 1 | AD43: 0.01564923164
A44: =RTD("cqg.rtd", ,"ContractData",C44, "LongDescription",, "T") -> Coherus BioSciences, Inc. | B44: S.US.CHRS | C44: S.US.CHRS | D44: =RTD("cqg.rtd", ,"ContractData",C44, "LongDescription",, "T") -> Coherus BioSciences, Inc. | E44: =RTD("cqg.rtd", ,"ContractData",C44, "Open",, "T") -> 18.27 | F44: =RTD("cqg.rtd", ,"ContractData",C44, "High",, "T") -> 18.38 | G44: =RTD("cqg.rtd", ,"ContractData",C44, "Low",, "T") -> 17.89 | H44: =RTD("cqg.rtd", ,"ContractData",C44, "LastTradeToday",, "T") -> 18.05 | I44: =RTD("cqg.rtd", ,"ContractData",C44, "NetLastTradeToday",, "T") -> -0.13 | J44: =RTD("cqg.rtd", ,"ContractData",C44, "PerCentNetLastTrade",, "T")/100 -> -0.007150715072 | K44: =RTD("cqg.rtd", ,"ContractData", C44, "T_CVol",, "T") -> 256975 | L44: 44 | M44: =RANK($J44,$J$1:J$169)+COUNTIF($J$1:J44,J44)-1 -> 109 | N44: S.US.CHRS | O44: S.US.PTGX | P44: =RTD("cqg.rtd", ,"ContractData",O44, "PerCentNetLastTrade",, "T")/100 -> 0.01501210654 | Q44: https://finance.yahoo.com/quote/PTGX | S44: 0.01501210654 | V44: =RTD("cqg.rtd", ,"ContractData",O44, "LongDescription",, "T") -> Protagonist Therapeutics, Inc. | Y44: 0.01501210654 | AA44: 1 | AB44: 1 | AD44: 0.01501210654
A45: =RTD("cqg.rtd", ,"ContractData",C45, "LongDescription",, "T") -> Celldex Therapeutics Inc | B45: S.US.CLDX | C45: S.US.CLDX | D45: =RTD("cqg.rtd", ,"ContractData",C45, "LongDescription",, "T") -> Celldex Therapeutics Inc | E45: =RTD("cqg.rtd", ,"ContractData",C45, "Open",, "T") -> 17.5 | F45: =RTD("cqg.rtd", ,"ContractData",C45, "High",, "T") -> 17.87 | G45: =RTD("cqg.rtd", ,"ContractData",C45, "Low",, "T") -> 17.19 | H45: =RTD("cqg.rtd", ,"ContractData",C45, "LastTradeToday",, "T") -> 17.52 | I45: =RTD("cqg.rtd", ,"ContractData",C45, "NetLastTradeToday",, "T") -> -0.01 | J45: =RTD("cqg.rtd", ,"ContractData",C45, "PerCentNetLastTrade",, "T")/100 -> -0.000570450656 | K45: =RTD("cqg.rtd", ,"ContractData", C45, "T_CVol",, "T") -> 177138 | L45: 45 | M45: =RANK($J45,$J$1:J$169)+COUNTIF($J$1:J45,J45)-1 -> 85 | N45: S.US.CLDX | O45: S.US.CRTX | P45: =RTD("cqg.rtd", ,"ContractData",O45, "PerCentNetLastTrade",, "T")/100 -> 0.01379763469 | Q45: https://finance.yahoo.com/quote/CRTX | S45: 0.01379763469 | V45: =RTD("cqg.rtd", ,"ContractData",O45, "LongDescription",, "T") -> Cortexyme, Inc. | Y45: 0.01379763469 | AA45: 1 | AB45: 1 | AD45: 0.01379763469
A46: =RTD("cqg.rtd", ,"ContractData",C46, "LongDescription",, "T") -> Clovis Oncology, Inc. | B46: S.US.CLVS | C46: S.US.CLVS | D46: =RTD("cqg.rtd", ,"ContractData",C46, "LongDescription",, "T") -> Clovis Oncology, Inc. | E46: =RTD("cqg.rtd", ,"ContractData",C46, "Open",, "T") -> 5.22 | F46: =RTD("cqg.rtd", ,"ContractData",C46, "High",, "T") -> 5.74 | G46: =RTD("cqg.rtd", ,"ContractData",C46, "Low",, "T") -> 5.1 | H46: =RTD("cqg.rtd", ,"ContractData",C46, "LastTradeToday",, "T") -> 5.65 | I46: =RTD("cqg.rtd", ,"ContractData",C46, "NetLastTradeToday",, "T") -> 0.6 | J46: =RTD("cqg.rtd", ,"ContractData",C46, "PerCentNetLastTrade",, "T")/100 -> 0.1188118812 | K46: =RTD("cqg.rtd", ,"ContractData", C46, "T_CVol",, "T") -> 6539403 | L46: 46 | M46: =RANK($J46,$J$1:J$169)+COUNTIF($J$1:J46,J46)-1 -> 2 | N46: S.US.CLVS | O46: S.US.GOSS | P46: =RTD("cqg.rtd", ,"ContractData",O46, "PerCentNetLastTrade",, "T")/100 -> 0.01325757576 | Q46: https://finance.yahoo.com/quote/GOSS | S46: 0.01325757576 | V46: =RTD("cqg.rtd", ,"ContractData",O46, "LongDescription",, "T") -> Gossamer Bio, Inc. | Y46: 0.01325757576 | AA46: 1 | AB46: 1 | AD46: 0.01325757576
A47: =RTD("cqg.rtd", ,"ContractData",C47, "LongDescription",, "T") -> Constellation Pharmaceuticals, Inc. | B47: S.US.CNST | C47: S.US.CNST | D47: =RTD("cqg.rtd", ,"ContractData",C47, "LongDescription",, "T") -> Constellation Pharmaceuticals, Inc. | E47: =RTD("cqg.rtd", ,"ContractData",C47, "Open",, "T") -> 27.28 | F47: =RTD("cqg.rtd", ,"ContractData",C47, "High",, "T") -> 28.21 | G47: =RTD("cqg.rtd", ,"ContractData",C47, "Low",, "T") -> 26.5 | H47: =RTD("cqg.rtd", ,"ContractData",C47, "LastTradeToday",, "T") -> 27.89 | I47: =RTD("cqg.rtd", ,"ContractData",C47, "NetLastTradeToday",, "T") -> 0.21 | J47: =RTD("cqg.rtd", ,"ContractData",C47, "PerCentNetLastTrade",, "T")/100 -> 0.007586705202 | K47: =RTD("cqg.rtd", ,"ContractData", C47, "T_CVol",, "T") -> 212280 | L47: 47 | M47: =RANK($J47,$J$1:J$169)+COUNTIF($J$1:J47,J47)-1 -> 60 | N47: S.US.CNST | O47: S.US.SAGE | P47: =RTD("cqg.rtd", ,"ContractData",O47, "PerCentNetLastTrade",, "T")/100 -> 0.01309419014 | Q47: https://finance.yahoo.com/quote/SAGE | S47: 0.01309419014 | V47: =RTD("cqg.rtd", ,"ContractData",O47, "LongDescription",, "T") -> Sage Therapeutics, Inc. | Y47: 0.01309419014 | AA47: 1 | AB47: 1 | AD47: 0.01309419014
A48: =RTD("cqg.rtd", ,"ContractData",C48, "LongDescription",, "T") -> Catalyst Pharmaceuticals, Inc. | B48: S.US.CPRX | C48: S.US.CPRX | D48: =RTD("cqg.rtd", ,"ContractData",C48, "LongDescription",, "T") -> Catalyst Pharmaceuticals, Inc. | E48: =RTD("cqg.rtd", ,"ContractData",C48, "Open",, "T") -> 3.46 | F48: =RTD("cqg.rtd", ,"ContractData",C48, "High",, "T") -> 3.5 | G48: =RTD("cqg.rtd", ,"ContractData",C48, "Low",, "T") -> 3.42 | H48: =RTD("cqg.rtd", ,"ContractData",C48, "LastTradeToday",, "T") -> 3.47 | I48: =RTD("cqg.rtd", ,"ContractData",C48, "NetLastTradeToday",, "T") -> -0.01 | J48: =RTD("cqg.rtd", ,"ContractData",C48, "PerCentNetLastTrade",, "T")/100 -> -0.002873563218 | K48: =RTD("cqg.rtd", ,"ContractData", C48, "T_CVol",, "T") -> 748275 | L48: 48 | M48: =RANK($J48,$J$1:J$169)+COUNTIF($J$1:J48,J48)-1 -> 94 | N48: S.US.CPRX | O48: S.US.VNDA | P48: =RTD("cqg.rtd", ,"ContractData",O48, "PerCentNetLastTrade",, "T")/100 -> 0.01231884058 | Q48: https://finance.yahoo.com/quote/VNDA | S48: 0.01231884058 | V48: =RTD("cqg.rtd", ,"ContractData",O48, "LongDescription",, "T") -> Vanda Pharma | Y48: 0.01231884058 | AA48: 1 | AB48: 1 | AD48: 0.01231884058
A49: =RTD("cqg.rtd", ,"ContractData",C49, "LongDescription",, "T") -> Cardiff Oncology, Inc. | B49: S.US.CRDF | C49: S.US.CRDF | D49: =RTD("cqg.rtd", ,"ContractData",C49, "LongDescription",, "T") -> Cardiff Oncology, Inc. | E49: =RTD("cqg.rtd", ,"ContractData",C49, "Open",, "T") -> 18.12 | F49: =RTD("cqg.rtd", ,"ContractData",C49, "High",, "T") -> 18.72 | G49: =RTD("cqg.rtd", ,"ContractData",C49, "Low",, "T") -> 17.62 | H49: =RTD("cqg.rtd", ,"ContractData",C49, "LastTradeToday",, "T") -> 18.06 | I49: =RTD("cqg.rtd", ,"ContractData",C49, "NetLastTradeToday",, "T") -> -0.26 | J49: =RTD("cqg.rtd", ,"ContractData",C49, "PerCentNetLastTrade",, "T")/100 -> -0.01419213974 | K49: =RTD("cqg.rtd", ,"ContractData", C49, "T_CVol",, "T") -> 509151 | L49: 49 | M49: =RANK($J49,$J$1:J$169)+COUNTIF($J$1:J49,J49)-1 -> 124 | N49: S.US.CRDF | O49: S.US.ADVM | P49: =RTD("cqg.rtd", ,"ContractData",O49, "PerCentNetLastTrade",, "T")/100 -> 0.01176470588 | Q49: https://finance.yahoo.com/quote/ADVM | S49: 0.01176470588 | V49: =RTD("cqg.rtd", ,"ContractData",O49, "LongDescription",, "T") -> Adverum Biotechnologies, Inc. | Y49: 0.01176470588 | AA49: 1 | AB49: 1 | AD49: 0.01176470588
A50: =RTD("cqg.rtd", ,"ContractData",C50, "LongDescription",, "T") -> Cortexyme, Inc. | B50: S.US.CRTX | C50: S.US.CRTX | D50: =RTD("cqg.rtd", ,"ContractData",C50, "LongDescription",, "T") -> Cortexyme, Inc. | E50: =RTD("cqg.rtd", ,"ContractData",C50, "Open",, "T") -> 30.4 | F50: =RTD("cqg.rtd", ,"ContractData",C50, "High",, "T") -> 31.17 | G50: =RTD("cqg.rtd", ,"ContractData",C50, "Low",, "T") -> 29.11 | H50: =RTD("cqg.rtd", ,"ContractData",C50, "LastTradeToday",, "T") -> 30.86 | I50: =RTD("cqg.rtd", ,"ContractData",C50, "NetLastTradeToday",, "T") -> 0.42 | J50: =RTD("cqg.rtd", ,"ContractData",C50, "PerCentNetLastTrade",, "T")/100 -> 0.01379763469 | K50: =RTD("cqg.rtd", ,"ContractData", C50, "T_CVol",, "T") -> 86543 | L50: 50 | M50: =RANK($J50,$J$1:J$169)+COUNTIF($J$1:J50,J50)-1 -> 45 | N50: S.US.CRTX | O50: S.US.IGMS | P50: =RTD("cqg.rtd", ,"ContractData",O50, "PerCentNetLastTrade",, "T")/100 -> 0.01168555241 | Q50: https://finance.yahoo.com/quote/IGMS | S50: 0.01168555241 | V50: =RTD("cqg.rtd", ,"ContractData",O50, "LongDescription",, "T") -> IGM Biosciences, Inc. | Y50: 0.01168555241 | AA50: 1 | AB50: 1 | AD50: 0.01168555241
A51: =RTD("cqg.rtd", ,"ContractData",C51, "LongDescription",, "T") -> CytomX Therapeutics, Inc. | B51: S.US.CTMX | C51: S.US.CTMX | D51: =RTD("cqg.rtd", ,"ContractData",C51, "LongDescription",, "T") -> CytomX Therapeutics, Inc. | E51: =RTD("cqg.rtd", ,"ContractData",C51, "Open",, "T") -> 7.43 | F51: =RTD("cqg.rtd", ,"ContractData",C51, "High",, "T") -> 7.57 | G51: =RTD("cqg.rtd", ,"ContractData",C51, "Low",, "T") -> 7.27 | H51: =RTD("cqg.rtd", ,"ContractData",C51, "LastTradeToday",, "T") -> 7.56 | I51: =RTD("cqg.rtd", ,"ContractData",C51, "NetLastTradeToday",, "T") -> 0.16 | J51: =RTD("cqg.rtd", ,"ContractData",C51, "PerCentNetLastTrade",, "T")/100 -> 0.02162162162 | K51: =RTD("cqg.rtd", ,"ContractData", C51, "T_CVol",, "T") -> 208219 | L51: 51 | M51: =RANK($J51,$J$1:J$169)+COUNTIF($J$1:J51,J51)-1 -> 34 | N51: S.US.CTMX | O51: S.US.SGEN | P51: =RTD("cqg.rtd", ,"ContractData",O51, "PerCentNetLastTrade",, "T")/100 -> 0.01142631994 | Q51: https://finance.yahoo.com/quote/SGEN | S51: 0.01142631994 | V51: =RTD("cqg.rtd", ,"ContractData",O51, "LongDescription",, "T") -> Seagen Inc. | Y51: 0.01142631994 | AA51: 1 | AB51: 1 | AD51: 0.01142631994
A52: =RTD("cqg.rtd", ,"ContractData",C52, "LongDescription",, "T") -> Cue Biopharma, Inc. | B52: S.US.CUE | C52: S.US.CUE | D52: =RTD("cqg.rtd", ,"ContractData",C52, "LongDescription",, "T") -> Cue Biopharma, Inc. | E52: =RTD("cqg.rtd", ,"ContractData",C52, "Open",, "T") -> 12.92 | F52: =RTD("cqg.rtd", ,"ContractData",C52, "High",, "T") -> 13.1 | G52: =RTD("cqg.rtd", ,"ContractData",C52, "Low",, "T") -> 12.63 | H52: =RTD("cqg.rtd", ,"ContractData",C52, "LastTradeToday",, "T") -> 13.03 | I52: =RTD("cqg.rtd", ,"ContractData",C52, "NetLastTradeToday",, "T") -> 0.04 | J52: =RTD("cqg.rtd", ,"ContractData",C52, "PerCentNetLastTrade",, "T")/100 -> 0.003079291763 | K52: =RTD("cqg.rtd", ,"ContractData", C52, "T_CVol",, "T") -> 60224 | L52: 52 | M52: =RANK($J52,$J$1:J$169)+COUNTIF($J$1:J52,J52)-1 -> 73 | N52: S.US.CUE | O52: S.US.IONS | P52: =RTD("cqg.rtd", ,"ContractData",O52, "PerCentNetLastTrade",, "T")/100 -> 0.01081258191 | Q52: https://finance.yahoo.com/quote/IONS | S52: 0.01081258191 | V52: =RTD("cqg.rtd", ,"ContractData",O52, "LongDescription",, "T") -> Ionis Pharmaceuticals, Inc. | Y52: 0.01081258191 | AA52: 1 | AB52: 1 | AD52: 0.01081258191
A53: =RTD("cqg.rtd", ,"ContractData",C53, "LongDescription",, "T") -> CEL-SCI Corp | B53: S.US.CVM | C53: S.US.CVM | D53: =RTD("cqg.rtd", ,"ContractData",C53, "LongDescription",, "T") -> CEL-SCI Corp | E53: =RTD("cqg.rtd", ,"ContractData",C53, "Open",, "T") -> 13.57 | F53: =RTD("cqg.rtd", ,"ContractData",C53, "High",, "T") -> 13.99 | G53: =RTD("cqg.rtd", ,"ContractData",C53, "Low",, "T") -> 13.3 | H53: =RTD("cqg.rtd", ,"ContractData",C53, "LastTradeToday",, "T") -> 13.9 | I53: =RTD("cqg.rtd", ,"ContractData",C53, "NetLastTradeToday",, "T") -> 0 | J53: =RTD("cqg.rtd", ,"ContractData",C53, "PerCentNetLastTrade",, "T")/100 -> 0 | K53: =RTD("cqg.rtd", ,"ContractData", C53, "T_CVol",, "T") -> 362584 | L53: 53 | M53: =RANK($J53,$J$1:J$169)+COUNTIF($J$1:J53,J53)-1 -> 82 | N53: S.US.CVM | O53: S.US.ATRA | P53: =RTD("cqg.rtd", ,"ContractData",O53, "PerCentNetLastTrade",, "T")/100 -> 0.01077902989 | Q53: https://finance.yahoo.com/quote/ATRA | S53: 0.01077902989 | V53: =RTD("cqg.rtd", ,"ContractData",O53, "LongDescription",, "T") -> Atara Biotherapeutics, Inc. | Y53: 0.01077902989 | AA53: 1 | AB53: 1 | AD53: 0.01077902989
A54: =RTD("cqg.rtd", ,"ContractData",C54, "LongDescription",, "T") -> Cytokinetics Inc | B54: S.US.CYTK | C54: S.US.CYTK | D54: =RTD("cqg.rtd", ,"ContractData",C54, "LongDescription",, "T") -> Cytokinetics Inc | E54: =RTD("cqg.rtd", ,"ContractData",C54, "Open",, "T") -> 21.73 | F54: =RTD("cqg.rtd", ,"ContractData",C54, "High",, "T") -> 21.91 | G54: =RTD("cqg.rtd", ,"ContractData",C54, "Low",, "T") -> 20.1 | H54: =RTD("cqg.rtd", ,"ContractData",C54, "LastTradeToday",, "T") -> 20.18 | I54: =RTD("cqg.rtd", ,"ContractData",C54, "NetLastTradeToday",, "T") -> -1.37 | J54: =RTD("cqg.rtd", ,"ContractData",C54, "PerCentNetLastTrade",, "T")/100 -> -0.06357308585 | K54: =RTD("cqg.rtd", ,"ContractData", C54, "T_CVol",, "T") -> 425294 | L54: 54 | M54: =RANK($J54,$J$1:J$169)+COUNTIF($J$1:J54,J54)-1 -> 165 | N54: S.US.CYTK | O54: S.US.ATHX | P54: =RTD("cqg.rtd", ,"ContractData",O54, "PerCentNetLastTrade",, "T")/100 -> 0.01020408163 | Q54: https://finance.yahoo.com/quote/ATHX | S54: 0.01020408163 | V54: =RTD("cqg.rtd", ,"ContractData",O54, "LongDescription",, "T") -> Athersys, Inc. | Y54: 0.01020408163 | AA54: 1 | AB54: 1 | AD54: 0.01020408163
A55: =RTD("cqg.rtd", ,"ContractData",C55, "LongDescription",, "T") -> Deciphera Pharmaceuticals, Inc. | B55: S.US.DCPH | C55: S.US.DCPH | D55: =RTD("cqg.rtd", ,"ContractData",C55, "LongDescription",, "T") -> Deciphera Pharmaceuticals, Inc. | E55: =RTD("cqg.rtd", ,"ContractData",C55, "Open",, "T") -> 56.24 | F55: =RTD("cqg.rtd", ,"ContractData",C55, "High",, "T") -> 56.88 | G55: =RTD("cqg.rtd", ,"ContractData",C55, "Low",, "T") -> 53.12 | H55: =RTD("cqg.rtd", ,"ContractData",C55, "LastTradeToday",, "T") -> 53.82 | I55: =RTD("cqg.rtd", ,"ContractData",C55, "NetLastTradeToday",, "T") -> -2.42 | J55: =RTD("cqg.rtd", ,"ContractData",C55, "PerCentNetLastTrade",, "T")/100 -> -0.04302987198 | K55: =RTD("cqg.rtd", ,"ContractData", C55, "T_CVol",, "T") -> 114702 | L55: 55 | M55: =RANK($J55,$J$1:J$169)+COUNTIF($J$1:J55,J55)-1 -> 158 | N55: S.US.DCPH | O55: S.US.IOVA | P55: =RTD("cqg.rtd", ,"ContractData",O55, "PerCentNetLastTrade",, "T")/100 -> 0.009897070467 | Q55: https://finance.yahoo.com/quote/IOVA | S55: 0.009897070467 | V55: =RTD("cqg.rtd", ,"ContractData",O55, "LongDescription",, "T") -> Iovance Biotherapeutics, Inc. | Y55: 0.009897070467 | AA55: 1 | AB55: 1 | AD55: 0.009897070467
A56: =RTD("cqg.rtd", ,"ContractData",C56, "LongDescription",, "T") -> Denali Therapeutics Inc. | B56: S.US.DNLI | C56: S.US.DNLI | D56: =RTD("cqg.rtd", ,"ContractData",C56, "LongDescription",, "T") -> Denali Therapeutics Inc. | E56: =RTD("cqg.rtd", ,"ContractData",C56, "Open",, "T") -> 79.99 | F56: =RTD("cqg.rtd", ,"ContractData",C56, "High",, "T") -> 79.99 | G56: =RTD("cqg.rtd", ,"ContractData",C56, "Low",, "T") -> 76.26 | H56: =RTD("cqg.rtd", ,"ContractData",C56, "LastTradeToday",, "T") -> 76.82 | I56: =RTD("cqg.rtd", ,"ContractData",C56, "NetLastTradeToday",, "T") -> -3.21 | J56: =RTD("cqg.rtd", ,"ContractData",C56, "PerCentNetLastTrade",, "T")/100 -> -0.04010995877 | K56: =RTD("cqg.rtd", ,"ContractData", C56, "T_CVol",, "T") -> 281802 | L56: 56 | M56: =RANK($J56,$J$1:J$169)+COUNTIF($J$1:J56,J56)-1 -> 156 | N56: S.US.DNLI | O56: S.US.AKBA | P56: =RTD("cqg.rtd", ,"ContractData",O56, "PerCentNetLastTrade",, "T")/100 -> 0.009677419355 | Q56: https://finance.yahoo.com/quote/AKBA | S56: 0.009677419355 | V56: =RTD("cqg.rtd", ,"ContractData",O56, "LongDescription",, "T") -> Akebia Therapeutics, Inc. | Y56: 0.009677419355 | AA56: 1 | AB56: 1 | AD56: 0.009677419355
A57: =RTD("cqg.rtd", ,"ContractData",C57, "LongDescription",, "T") -> Dicerna Pharmaceuticals, Inc. | B57: S.US.DRNA | C57: S.US.DRNA | D57: =RTD("cqg.rtd", ,"ContractData",C57, "LongDescription",, "T") -> Dicerna Pharmaceuticals, Inc. | E57: =RTD("cqg.rtd", ,"ContractData",C57, "Open",, "T") -> 23.74 | F57: =RTD("cqg.rtd", ,"ContractData",C57, "High",, "T") -> 24.41 | G57: =RTD("cqg.rtd", ,"ContractData",C57, "Low",, "T") -> 23.3 | H57: =RTD("cqg.rtd", ,"ContractData",C57, "LastTradeToday",, "T") -> 24.4 | I57: =RTD("cqg.rtd", ,"ContractData",C57, "NetLastTradeToday",, "T") -> 1.11 | J57: =RTD("cqg.rtd", ,"ContractData",C57, "PerCentNetLastTrade",, "T")/100 -> 0.04765993989 | K57: =RTD("cqg.rtd", ,"ContractData", C57, "T_CVol",, "T") -> 223361 | L57: 57 | M57: =RANK($J57,$J$1:J$169)+COUNTIF($J$1:J57,J57)-1 -> 11 | N57: S.US.DRNA | O57: S.US.AGEN | P57: =RTD("cqg.rtd", ,"ContractData",O57, "PerCentNetLastTrade",, "T")/100 -> 0.009230769231 | Q57: https://finance.yahoo.com/quote/AGEN | S57: 0.009230769231 | V57: =RTD("cqg.rtd", ,"ContractData",O57, "LongDescription",, "T") -> Agenus Inc. | Y57: 0.009230769231 | AA57: 1 | AB57: 1 | AD57: 0.009230769231
A58: =RTD("cqg.rtd", ,"ContractData",C58, "LongDescription",, "T") -> Precision BioSciences, Inc. | B58: S.US.DTIL | C58: S.US.DTIL | D58: =RTD("cqg.rtd", ,"ContractData",C58, "LongDescription",, "T") -> Precision BioSciences, Inc. | E58: =RTD("cqg.rtd", ,"ContractData",C58, "Open",, "T") -> 9.63 | F58: =RTD("cqg.rtd", ,"ContractData",C58, "High",, "T") -> 10 | G58: =RTD("cqg.rtd", ,"ContractData",C58, "Low",, "T") -> 9.4 | H58: =RTD("cqg.rtd", ,"ContractData",C58, "LastTradeToday",, "T") -> 9.89 | I58: =RTD("cqg.rtd", ,"ContractData",C58, "NetLastTradeToday",, "T") -> 0.36 | J58: =RTD("cqg.rtd", ,"ContractData",C58, "PerCentNetLastTrade",, "T")/100 -> 0.03777544596 | K58: =RTD("cqg.rtd", ,"ContractData", C58, "T_CVol",, "T") -> 378850 | L58: 58 | M58: =RANK($J58,$J$1:J$169)+COUNTIF($J$1:J58,J58)-1 -> 19 | N58: S.US.DTIL | O58: S.US.ARWR | P58: =RTD("cqg.rtd", ,"ContractData",O58, "PerCentNetLastTrade",, "T")/100 -> 0.00901352028 | Q58: https://finance.yahoo.com/quote/ARWR | S58: 0.00901352028 | V58: =RTD("cqg.rtd", ,"ContractData",O58, "LongDescription",, "T") -> Arrowhead Pharmaceuticals, Inc. | Y58: 0.00901352028 | AA58: 1 | AB58: 1 | AD58: 0.00901352028
A59: =RTD("cqg.rtd", ,"ContractData",C59, "LongDescription",, "T") -> Dynavax Technologies Corporation | B59: S.US.DVAX | C59: S.US.DVAX | D59: =RTD("cqg.rtd", ,"ContractData",C59, "LongDescription",, "T") -> Dynavax Technologies Corporation | E59: =RTD("cqg.rtd", ,"ContractData",C59, "Open",, "T") -> 4.92 | F59: =RTD("cqg.rtd", ,"ContractData",C59, "High",, "T") -> 5.08 | G59: =RTD("cqg.rtd", ,"ContractData",C59, "Low",, "T") -> 4.78 | H59: =RTD("cqg.rtd", ,"ContractData",C59, "LastTradeToday",, "T") -> 4.99 | I59: =RTD("cqg.rtd", ,"ContractData",C59, "NetLastTradeToday",, "T") -> 0 | J59: =RTD("cqg.rtd", ,"ContractData",C59, "PerCentNetLastTrade",, "T")/100 -> 0 | K59: =RTD("cqg.rtd", ,"ContractData", C59, "T_CVol",, "T") -> 1035891 | L59: 59 | M59: =RANK($J59,$J$1:J$169)+COUNTIF($J$1:J59,J59)-1 -> 83 | N59: S.US.DVAX | O59: S.US.MGNX | P59: =RTD("cqg.rtd", ,"ContractData",O59, "PerCentNetLastTrade",, "T")/100 -> 0.007797270955 | Q59: https://finance.yahoo.com/quote/MGNX | S59: 0.007797270955 | V59: =RTD("cqg.rtd", ,"ContractData",O59, "LongDescription",, "T") -> MacroGenics, Inc. | Y59: 0.007797270955 | AA59: 1 | AB59: 1 | AD59: 0.007797270955
A60: =RTD("cqg.rtd", ,"ContractData",C60, "LongDescription",, "T") -> Emergent Biosolutions | B60: S.US.EBS | C60: S.US.EBS | D60: =RTD("cqg.rtd", ,"ContractData",C60, "LongDescription",, "T") -> Emergent Biosolutions | E60: =RTD("cqg.rtd", ,"ContractData",C60, "Open",, "T") -> 102.1 | F60: =RTD("cqg.rtd", ,"ContractData",C60, "High",, "T") -> 102.1 | G60: =RTD("cqg.rtd", ,"ContractData",C60, "Low",, "T") -> 97.54 | H60: =RTD("cqg.rtd", ,"ContractData",C60, "LastTradeToday",, "T") -> 98.79 | I60: =RTD("cqg.rtd", ,"ContractData",C60, "NetLastTradeToday",, "T") -> 1.56 | J60: =RTD("cqg.rtd", ,"ContractData",C60, "PerCentNetLastTrade",, "T")/100 -> 0.01604443073 | K60: =RTD("cqg.rtd", ,"ContractData", C60, "T_CVol",, "T") -> 192555 | L60: 60 | M60: =RANK($J60,$J$1:J$169)+COUNTIF($J$1:J60,J60)-1 -> 42 | N60: S.US.EBS | O60: S.US.CNST | P60: =RTD("cqg.rtd", ,"ContractData",O60, "PerCentNetLastTrade",, "T")/100 -> 0.007586705202 | Q60: https://finance.yahoo.com/quote/CNST | S60: 0.007586705202 | V60: =RTD("cqg.rtd", ,"ContractData",O60, "LongDescription",, "T") -> Constellation Pharmaceuticals, Inc. | Y60: 0.007586705202 | AA60: 1 | AB60: 1 | AD60: 0.007586705202
A61: =RTD("cqg.rtd", ,"ContractData",C61, "LongDescription",, "T") -> Editas Medicine, Inc. | B61: S.US.EDIT | C61: S.US.EDIT | D61: =RTD("cqg.rtd", ,"ContractData",C61, "LongDescription",, "T") -> Editas Medicine, Inc. | E61: =RTD("cqg.rtd", ,"ContractData",C61, "Open",, "T") -> 87.01 | F61: =RTD("cqg.rtd", ,"ContractData",C61, "High",, "T") -> 88 | G61: =RTD("cqg.rtd", ,"ContractData",C61, "Low",, "T") -> 75.09 | H61: =RTD("cqg.rtd", ,"ContractData",C61, "LastTradeToday",, "T") -> 75.31 | I61: =RTD("cqg.rtd", ,"ContractData",C61, "NetLastTradeToday",, "T") -> -15.27 | J61: =RTD("cqg.rtd", ,"ContractData",C61, "PerCentNetLastTrade",, "T")/100 -> -0.1685802605 | K61: =RTD("cqg.rtd", ,"ContractData", C61, "T_CVol",, "T") -> 3622839 | L61: 61 | M61: =RANK($J61,$J$1:J$169)+COUNTIF($J$1:J61,J61)-1 -> 169 | N61: S.US.EDIT | O61: S.US.VKTX | P61: =RTD("cqg.rtd", ,"ContractData",O61, "PerCentNetLastTrade",, "T")/100 -> 0.007530120482 | Q61: https://finance.yahoo.com/quote/VKTX | S61: 0.007530120482 | V61: =RTD("cqg.rtd", ,"ContractData",O61, "LongDescription",, "T") -> Viking Therapeutics, Inc. | Y61: 0.007530120482 | AA61: 1 | AB61: 1 | AD61: 0.007530120482
A62: =RTD("cqg.rtd", ,"ContractData",C62, "LongDescription",, "T") -> Eagle Pharmaceuticals, Inc. | B62: S.US.EGRX | C62: S.US.EGRX | D62: =RTD("cqg.rtd", ,"ContractData",C62, "LongDescription",, "T") -> Eagle Pharmaceuticals, Inc. | E62: =RTD("cqg.rtd", ,"ContractData",C62, "Open",, "T") -> 49.25 | F62: =RTD("cqg.rtd", ,"ContractData",C62, "High",, "T") -> 50.48 | G62: =RTD("cqg.rtd", ,"ContractData",C62, "Low",, "T") -> 48.98 | H62: =RTD("cqg.rtd", ,"ContractData",C62, "LastTradeToday",, "T") -> 48.98 | I62: =RTD("cqg.rtd", ,"ContractData",C62, "NetLastTradeToday",, "T") -> -0.71 | J62: =RTD("cqg.rtd", ,"ContractData",C62, "PerCentNetLastTrade",, "T")/100 -> -0.01428858925 | K62: =RTD("cqg.rtd", ,"ContractData", C62, "T_CVol",, "T") -> 36612 | L62: 62 | M62: =RANK($J62,$J$1:J$169)+COUNTIF($J$1:J62,J62)-1 -> 125 | N62: S.US.EGRX | O62: S.US.TBIO | P62: =RTD("cqg.rtd", ,"ContractData",O62, "PerCentNetLastTrade",, "T")/100 -> 0.006925207756 | Q62: https://finance.yahoo.com/quote/TBIO | S62: 0.006925207756 | V62: =RTD("cqg.rtd", ,"ContractData",O62, "LongDescription",, "T") -> Translate Bio, Inc. | Y62: 0.006925207756 | AA62: 1 | AB62: 1 | AD62: 0.006925207756
A63: =RTD("cqg.rtd", ,"ContractData",C63, "LongDescription",, "T") -> Enanta Pharmaceuticals, Inc | B63: S.US.ENTA | C63: S.US.ENTA | D63: =RTD("cqg.rtd", ,"ContractData",C63, "LongDescription",, "T") -> Enanta Pharmaceuticals, Inc | E63: =RTD("cqg.rtd", ,"ContractData",C63, "Open",, "T") -> 45.58 | F63: =RTD("cqg.rtd", ,"ContractData",C63, "High",, "T") -> 47.36 | G63: =RTD("cqg.rtd", ,"ContractData",C63, "Low",, "T") -> 45.19 | H63: =RTD("cqg.rtd", ,"ContractData",C63, "LastTradeToday",, "T") -> 47.36 | I63: =RTD("cqg.rtd", ,"ContractData",C63, "NetLastTradeToday",, "T") -> 1.75 | J63: =RTD("cqg.rtd", ,"ContractData",C63, "PerCentNetLastTrade",, "T")/100 -> 0.03836877878 | K63: =RTD("cqg.rtd", ,"ContractData", C63, "T_CVol",, "T") -> 100623 | L63: 63 | M63: =RANK($J63,$J$1:J$169)+COUNTIF($J$1:J63,J63)-1 -> 18 | N63: S.US.ENTA | O63: S.US.HRTX | P63: =RTD("cqg.rtd", ,"ContractData",O63, "PerCentNetLastTrade",, "T")/100 -> 0.006625891947 | Q63: https://finance.yahoo.com/quote/HRTX | S63: 0.006625891947 | V63: =RTD("cqg.rtd", ,"ContractData",O63, "LongDescription",, "T") -> Heron Therapeutics, Inc. | Y63: 0.006625891947 | AA63: 1 | AB63: 1 | AD63: 0.006625891947
A64: =RTD("cqg.rtd", ,"ContractData",C64, "LongDescription",, "T") -> Epizyme, Inc. | B64: S.US.EPZM | C64: S.US.EPZM | D64: =RTD("cqg.rtd", ,"ContractData",C64, "LongDescription",, "T") -> Epizyme, Inc. | E64: =RTD("cqg.rtd", ,"ContractData",C64, "Open",, "T") -> 12.27 | F64: =RTD("cqg.rtd", ,"ContractData",C64, "High",, "T") -> 12.41 | G64: =RTD("cqg.rtd", ,"ContractData",C64, "Low",, "T") -> 11.79 | H64: =RTD("cqg.rtd", ,"ContractData",C64, "LastTradeToday",, "T") -> 12.07 | I64: =RTD("cqg.rtd", ,"ContractData",C64, "NetLastTradeToday",, "T") -> -0.25 | J64: =RTD("cqg.rtd", ,"ContractData",C64, "PerCentNetLastTrade",, "T")/100 -> -0.02029220779 | K64: =RTD("cqg.rtd", ,"ContractData", C64, "T_CVol",, "T") -> 219079 | L64: 64 | M64: =RANK($J64,$J$1:J$169)+COUNTIF($J$1:J64,J64)-1 -> 134 | N64: S.US.EPZM | O64: S.US.ARQT | P64: =RTD("cqg.rtd", ,"ContractData",O64, "PerCentNetLastTrade",, "T")/100 -> 0.006392045455 | Q64: https://finance.yahoo.com/quote/ARQT | S64: 0.006392045455 | V64: =RTD("cqg.rtd", ,"ContractData",O64, "LongDescription",, "T") -> Arcutis Biotherapeutics, Inc. | Y64: 0.006392045455 | AA64: 1 | AB64: 1 | AD64: 0.006392045455
A65: =RTD("cqg.rtd", ,"ContractData",C65, "LongDescription",, "T") -> Esperion Therapeutics, Inc. | B65: S.US.ESPR | C65: S.US.ESPR | D65: =RTD("cqg.rtd", ,"ContractData",C65, "LongDescription",, "T") -> Esperion Therapeutics, Inc. | E65: =RTD("cqg.rtd", ,"ContractData",C65, "Open",, "T") -> 31.23 | F65: =RTD("cqg.rtd", ,"ContractData",C65, "High",, "T") -> 31.98 | G65: =RTD("cqg.rtd", ,"ContractData",C65, "Low",, "T") -> 30.1 | H65: =RTD("cqg.rtd", ,"ContractData",C65, "LastTradeToday",, "T") -> 31.86 | I65: =RTD("cqg.rtd", ,"ContractData",C65, "NetLastTradeToday",, "T") -> 0.81 | J65: =RTD("cqg.rtd", ,"ContractData",C65, "PerCentNetLastTrade",, "T")/100 -> 0.02608695652 | K65: =RTD("cqg.rtd", ,"ContractData", C65, "T_CVol",, "T") -> 195339 | L65: 65 | M65: =RANK($J65,$J$1:J$169)+COUNTIF($J$1:J65,J65)-1 -> 29 | N65: S.US.ESPR | O65: S.US.AKRO | P65: =RTD("cqg.rtd", ,"ContractData",O65, "PerCentNetLastTrade",, "T")/100 -> 0.005538248529 | Q65: https://finance.yahoo.com/quote/AKRO | S65: 0.005538248529 | V65: =RTD("cqg.rtd", ,"ContractData",O65, "LongDescription",, "T") -> Akero Therapeutics, Inc. | Y65: 0.005538248529 | AA65: 1 | AB65: 1 | AD65: 0.005538248529
A66: =RTD("cqg.rtd", ,"ContractData",C66, "LongDescription",, "T") -> EXACT Sciences Corp | B66: S.US.EXAS | C66: S.US.EXAS | D66: =RTD("cqg.rtd", ,"ContractData",C66, "LongDescription",, "T") -> EXACT Sciences Corp | E66: =RTD("cqg.rtd", ,"ContractData",C66, "Open",, "T") -> 132.93 | F66: =RTD("cqg.rtd", ,"ContractData",C66, "High",, "T") -> 152.48 | G66: =RTD("cqg.rtd", ,"ContractData",C66, "Low",, "T") -> 132.49 | H66: =RTD("cqg.rtd", ,"ContractData",C66, "LastTradeToday",, "T") -> 149.08 | I66: =RTD("cqg.rtd", ,"ContractData",C66, "NetLastTradeToday",, "T") -> 17.98 | J66: =RTD("cqg.rtd", ,"ContractData",C66, "PerCentNetLastTrade",, "T")/100 -> 0.1371472159 | K66: =RTD("cqg.rtd", ,"ContractData", C66, "T_CVol",, "T") -> 4412475 | L66: 66 | M66: =RANK($J66,$J$1:J$169)+COUNTIF($J$1:J66,J66)-1 -> 1 | N66: =C66 -> S.US.EXAS | O66: =VLOOKUP($L66,$M$1:$N$169,2,FALSE) -> S.US.RDUS | P66: =RTD("cqg.rtd", ,"ContractData",O66, "PerCentNetLastTrade",, "T")/100 -> 0.005517241379 | Q66: ="https://finance.yahoo.com/quote/"&RIGHT(O66,(LEN(O66)-5)) -> https://finance.yahoo.com/quote/RDUS | S66: =IF(P66>=0,P66,NA()) -> 0.005517241379 | T66: =IF(P66>=0,NA(),-1*P66) ->  | V66: =RTD("cqg.rtd", ,"ContractData",O66, "LongDescription",, "T") -> Radius Health, Inc. | Y66: =IFERROR(S66,P66) -> 0.005517241379 | AA66: =IF(S66="NA()",0,1) -> 1 | AB66: =IFERROR(AA66,0) -> 1 | AD66: 0.005517241379 | AF66: =IF(AE66="","",Y66) -> 
A67: =RTD("cqg.rtd", ,"ContractData",C67, "LongDescription",, "T") -> Exelixis, Inc. | B67: S.US.EXEL | C67: S.US.EXEL | D67: =RTD("cqg.rtd", ,"ContractData",C67, "LongDescription",, "T") -> Exelixis, Inc. | E67: =RTD("cqg.rtd", ,"ContractData",C67, "Open",, "T") -> 24.1 | F67: =RTD("cqg.rtd", ,"ContractData",C67, "High",, "T") -> 24.49 | G67: =RTD("cqg.rtd", ,"ContractData",C67, "Low",, "T") -> 23.52 | H67: =RTD("cqg.rtd", ,"ContractData",C67, "LastTradeToday",, "T") -> 24.44 | I67: =RTD("cqg.rtd", ,"ContractData",C67, "NetLastTradeToday",, "T") -> 1.62 | J67: =RTD("cqg.rtd", ,"ContractData",C67, "PerCentNetLastTrade",, "T")/100 -> 0.07099035933 | K67: =RTD("cqg.rtd", ,"ContractData", C67, "T_CVol",, "T") -> 2198232 | L67: =L66+1 -> 67 | M67: =RANK($J67,$J$1:J$169)+COUNTIF($J$1:J67,J67)-1 -> 7 | N67: S.US.EXEL | O67: S.US.YMAB | P67: =RTD("cqg.rtd", ,"ContractData",O67, "PerCentNetLastTrade",, "T")/100 -> 0.005452775073 | Q67: https://finance.yahoo.com/quote/YMAB | S67: 0.005452775073 | V67: =RTD("cqg.rtd", ,"ContractData",O67, "LongDescription",, "T") -> Y-mAbs Therapeutics, Inc. | Y67: 0.005452775073 | AA67: 1 | AB67: 1 | AD67: 0.005452775073
A68: =RTD("cqg.rtd", ,"ContractData",C68, "LongDescription",, "T") -> Fate Therapeutics, Inc. | B68: S.US.FATE | C68: S.US.FATE | D68: =RTD("cqg.rtd", ,"ContractData",C68, "LongDescription",, "T") -> Fate Therapeutics, Inc. | E68: =RTD("cqg.rtd", ,"ContractData",C68, "Open",, "T") -> 114.01 | F68: =RTD("cqg.rtd", ,"ContractData",C68, "High",, "T") -> 114.79 | G68: =RTD("cqg.rtd", ,"ContractData",C68, "Low",, "T") -> 107.39 | H68: =RTD("cqg.rtd", ,"ContractData",C68, "LastTradeToday",, "T") -> 111.98 | I68: =RTD("cqg.rtd", ,"ContractData",C68, "NetLastTradeToday",, "T") -> -4.33 | J68: =RTD("cqg.rtd", ,"ContractData",C68, "PerCentNetLastTrade",, "T")/100 -> -0.03722809733 | K68: =RTD("cqg.rtd", ,"ContractData", C68, "T_CVol",, "T") -> 522211 | L68: 68 | M68: =RANK($J68,$J$1:J$169)+COUNTIF($J$1:J68,J68)-1 -> 154 | N68: S.US.FATE | O68: S.US.KRYS | P68: =RTD("cqg.rtd", ,"ContractData",O68, "PerCentNetLastTrade",, "T")/100 -> 0.004221317654 | Q68: https://finance.yahoo.com/quote/KRYS | S68: 0.004221317654 | V68: =RTD("cqg.rtd", ,"ContractData",O68, "LongDescription",, "T") -> Krytsal Biotech, Inc. | Y68: 0.004221317654 | AA68: 1 | AB68: 1 | AD68: 0.004221317654
A69: =RTD("cqg.rtd", ,"ContractData",C69, "LongDescription",, "T") -> FibroGen, Inc. | B69: S.US.FGEN | C69: S.US.FGEN | D69: =RTD("cqg.rtd", ,"ContractData",C69, "LongDescription",, "T") -> FibroGen, Inc. | E69: =RTD("cqg.rtd", ,"ContractData",C69, "Open",, "T") -> 38.39 | F69: =RTD("cqg.rtd", ,"ContractData",C69, "High",, "T") -> 39.3 | G69: =RTD("cqg.rtd", ,"ContractData",C69, "Low",, "T") -> 38.01 | H69: =RTD("cqg.rtd", ,"ContractData",C69, "LastTradeToday",, "T") -> 39.09 | I69: =RTD("cqg.rtd", ,"ContractData",C69, "NetLastTradeToday",, "T") -> 0.69 | J69: =RTD("cqg.rtd", ,"ContractData",C69, "PerCentNetLastTrade",, "T")/100 -> 0.01796875 | K69: =RTD("cqg.rtd", ,"ContractData", C69, "T_CVol",, "T") -> 189690 | L69: 69 | M69: =RANK($J69,$J$1:J$169)+COUNTIF($J$1:J69,J69)-1 -> 40 | N69: S.US.FGEN | O69: S.US.IRWD | P69: =RTD("cqg.rtd", ,"ContractData",O69, "PerCentNetLastTrade",, "T")/100 -> 0.004215851602 | Q69: https://finance.yahoo.com/quote/IRWD | S69: 0.004215851602 | V69: =RTD("cqg.rtd", ,"ContractData",O69, "LongDescription",, "T") -> Ironwood Pharmaceuticals, Inc. | Y69: 0.004215851602 | AA69: 1 | AB69: 1 | AD69: 0.004215851602
A70: =RTD("cqg.rtd", ,"ContractData",C70, "LongDescription",, "T") -> Flexion Therapeutics, Inc. | B70: S.US.FLXN | C70: S.US.FLXN | D70: =RTD("cqg.rtd", ,"ContractData",C70, "LongDescription",, "T") -> Flexion Therapeutics, Inc. | E70: =RTD("cqg.rtd", ,"ContractData",C70, "Open",, "T") -> 12.12 | F70: =RTD("cqg.rtd", ,"ContractData",C70, "High",, "T") -> 12.43 | G70: =RTD("cqg.rtd", ,"ContractData",C70, "Low",, "T") -> 11.86 | H70: =RTD("cqg.rtd", ,"ContractData",C70, "LastTradeToday",, "T") -> 12.34 | I70: =RTD("cqg.rtd", ,"ContractData",C70, "NetLastTradeToday",, "T") -> 0.02 | J70: =RTD("cqg.rtd", ,"ContractData",C70, "PerCentNetLastTrade",, "T")/100 -> 0.001623376623 | K70: =RTD("cqg.rtd", ,"ContractData", C70, "T_CVol",, "T") -> 179528 | L70: 70 | M70: =RANK($J70,$J$1:J$169)+COUNTIF($J$1:J70,J70)-1 -> 76 | N70: S.US.FLXN | O70: S.US.ALLO | P70: =RTD("cqg.rtd", ,"ContractData",O70, "PerCentNetLastTrade",, "T")/100 -> 0.003946896304 | Q70: https://finance.yahoo.com/quote/ALLO | S70: 0.003946896304 | V70: =RTD("cqg.rtd", ,"ContractData",O70, "LongDescription",, "T") -> Allogene Therapeutics, Inc. | Y70: 0.003946896304 | AA70: 1 | AB70: 1 | AD70: 0.003946896304
A71: =RTD("cqg.rtd", ,"ContractData",C71, "LongDescription",, "T") -> Forma Therapeutics Holdings, Inc. | B71: S.US.FMTX | C71: S.US.FMTX | D71: =RTD("cqg.rtd", ,"ContractData",C71, "LongDescription",, "T") -> Forma Therapeutics Holdings, Inc. | E71: =RTD("cqg.rtd", ,"ContractData",C71, "Open",, "T") -> 35.04 | F71: =RTD("cqg.rtd", ,"ContractData",C71, "High",, "T") -> 37.4 | G71: =RTD("cqg.rtd", ,"ContractData",C71, "Low",, "T") -> 35 | H71: =RTD("cqg.rtd", ,"ContractData",C71, "LastTradeToday",, "T") -> 36.9 | I71: =RTD("cqg.rtd", ,"ContractData",C71, "NetLastTradeToday",, "T") -> 1.19 | J71: =RTD("cqg.rtd", ,"ContractData",C71, "PerCentNetLastTrade",, "T")/100 -> 0.03332399888 | K71: =RTD("cqg.rtd", ,"ContractData", C71, "T_CVol",, "T") -> 174565 | L71: 71 | M71: =RANK($J71,$J$1:J$169)+COUNTIF($J$1:J71,J71)-1 -> 20 | N71: S.US.FMTX | O71: S.US.RLAY | P71: =RTD("cqg.rtd", ,"ContractData",O71, "PerCentNetLastTrade",, "T")/100 -> 0.003934103762 | Q71: https://finance.yahoo.com/quote/RLAY | S71: 0.003934103762 | V71: =RTD("cqg.rtd", ,"ContractData",O71, "LongDescription",, "T") -> Relay Therapeutics, Inc. | Y71: 0.003934103762 | AA71: 1 | AB71: 1 | AD71: 0.003934103762
A72: =RTD("cqg.rtd", ,"ContractData",C72, "LongDescription",, "T") -> Amicus Therapeutics Inc | B72: S.US.FOLD | C72: S.US.FOLD | D72: =RTD("cqg.rtd", ,"ContractData",C72, "LongDescription",, "T") -> Amicus Therapeutics Inc | E72: =RTD("cqg.rtd", ,"ContractData",C72, "Open",, "T") -> 23.26 | F72: =RTD("cqg.rtd", ,"ContractData",C72, "High",, "T") -> 23.53 | G72: =RTD("cqg.rtd", ,"ContractData",C72, "Low",, "T") -> 22.55 | H72: =RTD("cqg.rtd", ,"ContractData",C72, "LastTradeToday",, "T") -> 23.18 | I72: =RTD("cqg.rtd", ,"ContractData",C72, "NetLastTradeToday",, "T") -> 0.03 | J72: =RTD("cqg.rtd", ,"ContractData",C72, "PerCentNetLastTrade",, "T")/100 -> 0.001295896328 | K72: =RTD("cqg.rtd", ,"ContractData", C72, "T_CVol",, "T") -> 572377 | L72: 72 | M72: =RANK($J72,$J$1:J$169)+COUNTIF($J$1:J72,J72)-1 -> 78 | N72: S.US.FOLD | O72: S.US.BHVN | P72: =RTD("cqg.rtd", ,"ContractData",O72, "PerCentNetLastTrade",, "T")/100 -> 0.003499766682 | Q72: https://finance.yahoo.com/quote/BHVN | S72: 0.003499766682 | V72: =RTD("cqg.rtd", ,"ContractData",O72, "LongDescription",, "T") -> Biohaven Pharmaceutical Holding Co Ltd. | Y72: 0.003499766682 | AA72: 1 | AB72: 1 | AD72: 0.003499766682
A73: =RTD("cqg.rtd", ,"ContractData",C73, "LongDescription",, "T") -> Five Prime Therapeutics, Inc. | B73: S.US.FPRX | C73: S.US.FPRX | D73: =RTD("cqg.rtd", ,"ContractData",C73, "LongDescription",, "T") -> Five Prime Therapeutics, Inc. | E73: =RTD("cqg.rtd", ,"ContractData",C73, "Open",, "T") -> 17.8 | F73: =RTD("cqg.rtd", ,"ContractData",C73, "High",, "T") -> 18.09 | G73: =RTD("cqg.rtd", ,"ContractData",C73, "Low",, "T") -> 17.07 | H73: =RTD("cqg.rtd", ,"ContractData",C73, "LastTradeToday",, "T") -> 18 | I73: =RTD("cqg.rtd", ,"ContractData",C73, "NetLastTradeToday",, "T") -> 0.35 | J73: =RTD("cqg.rtd", ,"ContractData",C73, "PerCentNetLastTrade",, "T")/100 -> 0.01983002833 | K73: =RTD("cqg.rtd", ,"ContractData", C73, "T_CVol",, "T") -> 496119 | L73: 73 | M73: =RANK($J73,$J$1:J$169)+COUNTIF($J$1:J73,J73)-1 -> 35 | N73: S.US.FPRX | O73: S.US.CUE | P73: =RTD("cqg.rtd", ,"ContractData",O73, "PerCentNetLastTrade",, "T")/100 -> 0.003079291763 | Q73: https://finance.yahoo.com/quote/CUE | S73: 0.003079291763 | V73: =RTD("cqg.rtd", ,"ContractData",O73, "LongDescription",, "T") -> Cue Biopharma, Inc. | Y73: 0.003079291763 | AA73: 1 | AB73: 1 | AD73: 0.003079291763
A74: =RTD("cqg.rtd", ,"ContractData",C74, "LongDescription",, "T") -> Frequency Therapeutics, Inc. | B74: S.US.FREQ | C74: S.US.FREQ | D74: =RTD("cqg.rtd", ,"ContractData",C74, "LongDescription",, "T") -> Frequency Therapeutics, Inc. | E74: =RTD("cqg.rtd", ,"ContractData",C74, "Open",, "T") -> 35.77 | F74: =RTD("cqg.rtd", ,"ContractData",C74, "High",, "T") -> 36.81 | G74: =RTD("cqg.rtd", ,"ContractData",C74, "Low",, "T") -> 34.61 | H74: =RTD("cqg.rtd", ,"ContractData",C74, "LastTradeToday",, "T") -> 35.22 | I74: =RTD("cqg.rtd", ,"ContractData",C74, "NetLastTradeToday",, "T") -> -0.83 | J74: =RTD("cqg.rtd", ,"ContractData",C74, "PerCentNetLastTrade",, "T")/100 -> -0.02302357836 | K74: =RTD("cqg.rtd", ,"ContractData", C74, "T_CVol",, "T") -> 47023 | L74: 74 | M74: =RANK($J74,$J$1:J$169)+COUNTIF($J$1:J74,J74)-1 -> 138 | N74: S.US.FREQ | O74: S.US.GILD | P74: =RTD("cqg.rtd", ,"ContractData",O74, "PerCentNetLastTrade",, "T")/100 -> 0.002538071066 | Q74: https://finance.yahoo.com/quote/GILD | S74: 0.002538071066 | V74: =RTD("cqg.rtd", ,"ContractData",O74, "LongDescription",, "T") -> Gilead Sciences Inc | Y74: 0.002538071066 | AA74: 1 | AB74: 1 | AD74: 0.002538071066
A75: =RTD("cqg.rtd", ,"ContractData",C75, "LongDescription",, "T") -> Generation Bio Co. | B75: S.US.GBIO | C75: S.US.GBIO | D75: =RTD("cqg.rtd", ,"ContractData",C75, "LongDescription",, "T") -> Generation Bio Co. | E75: =RTD("cqg.rtd", ,"ContractData",C75, "Open",, "T") -> 27.61 | F75: =RTD("cqg.rtd", ,"ContractData",C75, "High",, "T") -> 29 | G75: =RTD("cqg.rtd", ,"ContractData",C75, "Low",, "T") -> 26.99 | H75: =RTD("cqg.rtd", ,"ContractData",C75, "LastTradeToday",, "T") -> 27.19 | I75: =RTD("cqg.rtd", ,"ContractData",C75, "NetLastTradeToday",, "T") -> -0.74 | J75: =RTD("cqg.rtd", ,"ContractData",C75, "PerCentNetLastTrade",, "T")/100 -> -0.02649480845 | K75: =RTD("cqg.rtd", ,"ContractData", C75, "T_CVol",, "T") -> 399236 | L75: 75 | M75: =RANK($J75,$J$1:J$169)+COUNTIF($J$1:J75,J75)-1 -> 145 | N75: S.US.GBIO | O75: S.US.ICPT | P75: =RTD("cqg.rtd", ,"ContractData",O75, "PerCentNetLastTrade",, "T")/100 -> 0.002251527822 | Q75: https://finance.yahoo.com/quote/ICPT | S75: 0.002251527822 | V75: =RTD("cqg.rtd", ,"ContractData",O75, "LongDescription",, "T") -> Intercept Pharmaceuticals, Inc. | Y75: 0.002251527822 | AA75: 1 | AB75: 1 | AD75: 0.002251527822
A76: =RTD("cqg.rtd", ,"ContractData",C76, "LongDescription",, "T") -> Global Blood Therapeutics, Inc. | B76: S.US.GBT | C76: S.US.GBT | D76: =RTD("cqg.rtd", ,"ContractData",C76, "LongDescription",, "T") -> Global Blood Therapeutics, Inc. | E76: =RTD("cqg.rtd", ,"ContractData",C76, "Open",, "T") -> 47.5 | F76: =RTD("cqg.rtd", ,"ContractData",C76, "High",, "T") -> 47.77 | G76: =RTD("cqg.rtd", ,"ContractData",C76, "Low",, "T") -> 44.46 | H76: =RTD("cqg.rtd", ,"ContractData",C76, "LastTradeToday",, "T") -> 46.73 | I76: =RTD("cqg.rtd", ,"ContractData",C76, "NetLastTradeToday",, "T") -> -2.08 | J76: =RTD("cqg.rtd", ,"ContractData",C76, "PerCentNetLastTrade",, "T")/100 -> -0.0426142184 | K76: =RTD("cqg.rtd", ,"ContractData", C76, "T_CVol",, "T") -> 759888 | L76: 76 | M76: =RANK($J76,$J$1:J$169)+COUNTIF($J$1:J76,J76)-1 -> 157 | N76: S.US.GBT | O76: S.US.FLXN | P76: =RTD("cqg.rtd", ,"ContractData",O76, "PerCentNetLastTrade",, "T")/100 -> 0.001623376623 | Q76: https://finance.yahoo.com/quote/FLXN | S76: 0.001623376623 | V76: =RTD("cqg.rtd", ,"ContractData",O76, "LongDescription",, "T") -> Flexion Therapeutics, Inc. | Y76: 0.001623376623 | AA76: 1 | AB76: 1 | AD76: 0.001623376623
A77: =RTD("cqg.rtd", ,"ContractData",C77, "LongDescription",, "T") -> Geron Corporation | B77: S.US.GERN | C77: S.US.GERN | D77: =RTD("cqg.rtd", ,"ContractData",C77, "LongDescription",, "T") -> Geron Corporation | E77: =RTD("cqg.rtd", ,"ContractData",C77, "Open",, "T") -> 1.7 | F77: =RTD("cqg.rtd", ,"ContractData",C77, "High",, "T") -> 1.71 | G77: =RTD("cqg.rtd", ,"ContractData",C77, "Low",, "T") -> 1.64 | H77: =RTD("cqg.rtd", ,"ContractData",C77, "LastTradeToday",, "T") -> 1.66 | I77: =RTD("cqg.rtd", ,"ContractData",C77, "NetLastTradeToday",, "T") -> -0.05 | J77: =RTD("cqg.rtd", ,"ContractData",C77, "PerCentNetLastTrade",, "T")/100 -> -0.02923976608 | K77: =RTD("cqg.rtd", ,"ContractData", C77, "T_CVol",, "T") -> 865228 | L77: 77 | M77: =RANK($J77,$J$1:J$169)+COUNTIF($J$1:J77,J77)-1 -> 149 | N77: S.US.GERN | O77: S.US.AVRO | P77: =RTD("cqg.rtd", ,"ContractData",O77, "PerCentNetLastTrade",, "T")/100 -> 0.001326259947 | Q77: https://finance.yahoo.com/quote/AVRO | S77: 0.001326259947 | V77: =RTD("cqg.rtd", ,"ContractData",O77, "LongDescription",, "T") -> AVROBIO, Inc. | Y77: 0.001326259947 | AA77: 1 | AB77: 1 | AD77: 0.001326259947
A78: =RTD("cqg.rtd", ,"ContractData",C78, "LongDescription",, "T") -> Gilead Sciences Inc | B78: S.US.GILD | C78: S.US.GILD | D78: =RTD("cqg.rtd", ,"ContractData",C78, "LongDescription",, "T") -> Gilead Sciences Inc | E78: =RTD("cqg.rtd", ,"ContractData",C78, "Open",, "T") -> 63.75 | F78: =RTD("cqg.rtd", ,"ContractData",C78, "High",, "T") -> 64.18 | G78: =RTD("cqg.rtd", ,"ContractData",C78, "Low",, "T") -> 62.53 | H78: =RTD("cqg.rtd", ,"ContractData",C78, "LastTradeToday",, "T") -> 63.2 | I78: =RTD("cqg.rtd", ,"ContractData",C78, "NetLastTradeToday",, "T") -> 0.16 | J78: =RTD("cqg.rtd", ,"ContractData",C78, "PerCentNetLastTrade",, "T")/100 -> 0.002538071066 | K78: =RTD("cqg.rtd", ,"ContractData", C78, "T_CVol",, "T") -> 6106079 | L78: 78 | M78: =RANK($J78,$J$1:J$169)+COUNTIF($J$1:J78,J78)-1 -> 74 | N78: S.US.GILD | O78: S.US.FOLD | P78: =RTD("cqg.rtd", ,"ContractData",O78, "PerCentNetLastTrade",, "T")/100 -> 0.001295896328 | Q78: https://finance.yahoo.com/quote/FOLD | S78: 0.001295896328 | V78: =RTD("cqg.rtd", ,"ContractData",O78, "LongDescription",, "T") -> Amicus Therapeutics Inc | Y78: 0.001295896328 | AA78: 1 | AB78: 1 | AD78: 0.001295896328
A79: =RTD("cqg.rtd", ,"ContractData",C79, "LongDescription",, "T") -> Gossamer Bio, Inc. | B79: S.US.GOSS | C79: S.US.GOSS | D79: =RTD("cqg.rtd", ,"ContractData",C79, "LongDescription",, "T") -> Gossamer Bio, Inc. | E79: =RTD("cqg.rtd", ,"ContractData",C79, "Open",, "T") -> 10.48 | F79: =RTD("cqg.rtd", ,"ContractData",C79, "High",, "T") -> 10.73 | G79: =RTD("cqg.rtd", ,"ContractData",C79, "Low",, "T") -> 10.31 | H79: =RTD("cqg.rtd", ,"ContractData",C79, "LastTradeToday",, "T") -> 10.7 | I79: =RTD("cqg.rtd", ,"ContractData",C79, "NetLastTradeToday",, "T") -> 0.14 | J79: =RTD("cqg.rtd", ,"ContractData",C79, "PerCentNetLastTrade",, "T")/100 -> 0.01325757576 | K79: =RTD("cqg.rtd", ,"ContractData", C79, "T_CVol",, "T") -> 426349 | L79: 79 | M79: =RANK($J79,$J$1:J$169)+COUNTIF($J$1:J79,J79)-1 -> 46 | N79: S.US.GOSS | O79: S.US.NTRA | P79: =RTD("cqg.rtd", ,"ContractData",O79, "PerCentNetLastTrade",, "T")/100 -> 0.0008095709274 | Q79: https://finance.yahoo.com/quote/NTRA | S79: 0.0008095709274 | V79: =RTD("cqg.rtd", ,"ContractData",O79, "LongDescription",, "T") -> Natera, Inc. | Y79: 0.0008095709274 | AA79: 1 | AB79: 1 | AD79: 0.0008095709274
A80: =RTD("cqg.rtd", ,"ContractData",C80, "LongDescription",, "T") -> G1 Therapeutics, Inc. | B80: S.US.GTHX | C80: S.US.GTHX | D80: =RTD("cqg.rtd", ,"ContractData",C80, "LongDescription",, "T") -> G1 Therapeutics, Inc. | E80: =RTD("cqg.rtd", ,"ContractData",C80, "Open",, "T") -> 17.61 | F80: =RTD("cqg.rtd", ,"ContractData",C80, "High",, "T") -> 19.18 | G80: =RTD("cqg.rtd", ,"ContractData",C80, "Low",, "T") -> 17.5 | H80: =RTD("cqg.rtd", ,"ContractData",C80, "LastTradeToday",, "T") -> 19.14 | I80: =RTD("cqg.rtd", ,"ContractData",C80, "NetLastTradeToday",, "T") -> 1.55 | J80: =RTD("cqg.rtd", ,"ContractData",C80, "PerCentNetLastTrade",, "T")/100 -> 0.08811824901 | K80: =RTD("cqg.rtd", ,"ContractData", C80, "T_CVol",, "T") -> 692705 | L80: 80 | M80: =RANK($J80,$J$1:J$169)+COUNTIF($J$1:J80,J80)-1 -> 5 | N80: S.US.GTHX | O80: S.US.AMGN | P80: =RTD("cqg.rtd", ,"ContractData",O80, "PerCentNetLastTrade",, "T")/100 -> 0.0003773743134 | Q80: https://finance.yahoo.com/quote/AMGN | S80: 0.0003773743134 | V80: =RTD("cqg.rtd", ,"ContractData",O80, "LongDescription",, "T") -> Amgen Inc | Y80: 0.0003773743134 | AA80: 1 | AB80: 1 | AD80: 0.0003773743134
A81: =RTD("cqg.rtd", ,"ContractData",C81, "LongDescription",, "T") -> Halozyme Therapeutics | B81: S.US.HALO | C81: S.US.HALO | D81: =RTD("cqg.rtd", ,"ContractData",C81, "LongDescription",, "T") -> Halozyme Therapeutics | E81: =RTD("cqg.rtd", ,"ContractData",C81, "Open",, "T") -> 42.84 | F81: =RTD("cqg.rtd", ,"ContractData",C81, "High",, "T") -> 43.66 | G81: =RTD("cqg.rtd", ,"ContractData",C81, "Low",, "T") -> 41.02 | H81: =RTD("cqg.rtd", ,"ContractData",C81, "LastTradeToday",, "T") -> 43.44 | I81: =RTD("cqg.rtd", ,"ContractData",C81, "NetLastTradeToday",, "T") -> -0.13 | J81: =RTD("cqg.rtd", ,"ContractData",C81, "PerCentNetLastTrade",, "T")/100 -> -0.002983704384 | K81: =RTD("cqg.rtd", ,"ContractData", C81, "T_CVol",, "T") -> 577992 | L81: 81 | M81: =RANK($J81,$J$1:J$169)+COUNTIF($J$1:J81,J81)-1 -> 96 | N81: S.US.HALO | O81: S.US.ALLK | P81: =RTD("cqg.rtd", ,"ContractData",O81, "PerCentNetLastTrade",, "T")/100 -> 0.0001565802865 | Q81: https://finance.yahoo.com/quote/ALLK | S81: 0.0001565802865 | V81: =RTD("cqg.rtd", ,"ContractData",O81, "LongDescription",, "T") -> Allakos Inc. | Y81: 0.0001565802865 | AA81: 1 | AB81: 1 | AD81: 0.0001565802865
A82: =RTD("cqg.rtd", ,"ContractData",C82, "LongDescription",, "T") -> Heron Therapeutics, Inc. | B82: S.US.HRTX | C82: S.US.HRTX | D82: =RTD("cqg.rtd", ,"ContractData",C82, "LongDescription",, "T") -> Heron Therapeutics, Inc. | E82: =RTD("cqg.rtd", ,"ContractData",C82, "Open",, "T") -> 19.8 | F82: =RTD("cqg.rtd", ,"ContractData",C82, "High",, "T") -> 19.82 | G82: =RTD("cqg.rtd", ,"ContractData",C82, "Low",, "T") -> 18.87 | H82: =RTD("cqg.rtd", ,"ContractData",C82, "LastTradeToday",, "T") -> 19.75 | I82: =RTD("cqg.rtd", ,"ContractData",C82, "NetLastTradeToday",, "T") -> 0.13 | J82: =RTD("cqg.rtd", ,"ContractData",C82, "PerCentNetLastTrade",, "T")/100 -> 0.006625891947 | K82: =RTD("cqg.rtd", ,"ContractData", C82, "T_CVol",, "T") -> 552151 | L82: 82 | M82: =RANK($J82,$J$1:J$169)+COUNTIF($J$1:J82,J82)-1 -> 63 | N82: S.US.HRTX | O82: S.US.CVM | P82: =RTD("cqg.rtd", ,"ContractData",O82, "PerCentNetLastTrade",, "T")/100 -> 0 | Q82: https://finance.yahoo.com/quote/CVM | S82: 0 | V82: =RTD("cqg.rtd", ,"ContractData",O82, "LongDescription",, "T") -> CEL-SCI Corp | Y82: 0 | AA82: 1 | AB82: 1 | AD82: 0
A83: =RTD("cqg.rtd", ,"ContractData",C83, "LongDescription",, "T") -> Intercept Pharmaceuticals, Inc. | B83: S.US.ICPT | C83: S.US.ICPT | D83: =RTD("cqg.rtd", ,"ContractData",C83, "LongDescription",, "T") -> Intercept Pharmaceuticals, Inc. | E83: =RTD("cqg.rtd", ,"ContractData",C83, "Open",, "T") -> 31.11 | F83: =RTD("cqg.rtd", ,"ContractData",C83, "High",, "T") -> 31.52 | G83: =RTD("cqg.rtd", ,"ContractData",C83, "Low",, "T") -> 30.37 | H83: =RTD("cqg.rtd", ,"ContractData",C83, "LastTradeToday",, "T") -> 31.16 | I83: =RTD("cqg.rtd", ,"ContractData",C83, "NetLastTradeToday",, "T") -> 0.07 | J83: =RTD("cqg.rtd", ,"ContractData",C83, "PerCentNetLastTrade",, "T")/100 -> 0.002251527822 | K83: =RTD("cqg.rtd", ,"ContractData", C83, "T_CVol",, "T") -> 318416 | L83: 83 | M83: =RANK($J83,$J$1:J$169)+COUNTIF($J$1:J83,J83)-1 -> 75 | N83: S.US.ICPT | O83: S.US.DVAX | P83: =RTD("cqg.rtd", ,"ContractData",O83, "PerCentNetLastTrade",, "T")/100 -> 0 | Q83: https://finance.yahoo.com/quote/DVAX | S83: 0 | V83: =RTD("cqg.rtd", ,"ContractData",O83, "LongDescription",, "T") -> Dynavax Technologies Corporation | Y83: 0 | AA83: 1 | AB83: 1 | AD83: 0
A84: =RTD("cqg.rtd", ,"ContractData",C84, "LongDescription",, "T") -> IGM Biosciences, Inc. | B84: S.US.IGMS | C84: S.US.IGMS | D84: =RTD("cqg.rtd", ,"ContractData",C84, "LongDescription",, "T") -> IGM Biosciences, Inc. | E84: =RTD("cqg.rtd", ,"ContractData",C84, "Open",, "T") -> 83.09 | F84: =RTD("cqg.rtd", ,"ContractData",C84, "High",, "T") -> 86.14 | G84: =RTD("cqg.rtd", ,"ContractData",C84, "Low",, "T") -> 81.93 | H84: =RTD("cqg.rtd", ,"ContractData",C84, "LastTradeToday",, "T") -> 85.71 | I84: =RTD("cqg.rtd", ,"ContractData",C84, "NetLastTradeToday",, "T") -> 0.99 | J84: =RTD("cqg.rtd", ,"ContractData",C84, "PerCentNetLastTrade",, "T")/100 -> 0.01168555241 | K84: =RTD("cqg.rtd", ,"ContractData", C84, "T_CVol",, "T") -> 90727 | L84: 84 | M84: =RANK($J84,$J$1:J$169)+COUNTIF($J$1:J84,J84)-1 -> 50 | N84: S.US.IGMS | O84: S.US.MNKD | P84: =RTD("cqg.rtd", ,"ContractData",O84, "PerCentNetLastTrade",, "T")/100 -> 0 | Q84: https://finance.yahoo.com/quote/MNKD | S84: 0 | V84: =RTD("cqg.rtd", ,"ContractData",O84, "LongDescription",, "T") -> MannKind Corporation | Y84: 0 | AA84: 1 | AB84: 1 | AD84: 0
A85: =RTD("cqg.rtd", ,"ContractData",C85, "LongDescription",, "T") -> ImmunoGen Inc | B85: S.US.IMGN | C85: S.US.IMGN | D85: =RTD("cqg.rtd", ,"ContractData",C85, "LongDescription",, "T") -> ImmunoGen Inc | E85: =RTD("cqg.rtd", ,"ContractData",C85, "Open",, "T") -> 6.92 | F85: =RTD("cqg.rtd", ,"ContractData",C85, "High",, "T") -> 7.02 | G85: =RTD("cqg.rtd", ,"ContractData",C85, "Low",, "T") -> 6.82 | H85: =RTD("cqg.rtd", ,"ContractData",C85, "LastTradeToday",, "T") -> 6.92 | I85: =RTD("cqg.rtd", ,"ContractData",C85, "NetLastTradeToday",, "T") -> -0.06 | J85: =RTD("cqg.rtd", ,"ContractData",C85, "PerCentNetLastTrade",, "T")/100 -> -0.008595988539 | K85: =RTD("cqg.rtd", ,"ContractData", C85, "T_CVol",, "T") -> 754450 | L85: 85 | M85: =RANK($J85,$J$1:J$169)+COUNTIF($J$1:J85,J85)-1 -> 114 | N85: S.US.IMGN | O85: S.US.CLDX | P85: =RTD("cqg.rtd", ,"ContractData",O85, "PerCentNetLastTrade",, "T")/100 -> -0.000570450656 | Q85: https://finance.yahoo.com/quote/CLDX | T85: 0.000570450656 | V85: =RTD("cqg.rtd", ,"ContractData",O85, "LongDescription",, "T") -> Celldex Therapeutics Inc | Y85: -0.000570450656 | AB85: 0 | AE85: 0.000570450656 | AF85: -0.000570450656
A86: =RTD("cqg.rtd", ,"ContractData",C86, "LongDescription",, "T") -> Immunovant, Inc. | B86: S.US.IMVT | C86: S.US.IMVT | D86: =RTD("cqg.rtd", ,"ContractData",C86, "LongDescription",, "T") -> Immunovant, Inc. | E86: =RTD("cqg.rtd", ,"ContractData",C86, "Open",, "T") -> 49.05 | F86: =RTD("cqg.rtd", ,"ContractData",C86, "High",, "T") -> 50.32 | G86: =RTD("cqg.rtd", ,"ContractData",C86, "Low",, "T") -> 47.11 | H86: =RTD("cqg.rtd", ,"ContractData",C86, "LastTradeToday",, "T") -> 48 | I86: =RTD("cqg.rtd", ,"ContractData",C86, "NetLastTradeToday",, "T") -> -1.6 | J86: =RTD("cqg.rtd", ,"ContractData",C86, "PerCentNetLastTrade",, "T")/100 -> -0.03225806452 | K86: =RTD("cqg.rtd", ,"ContractData", C86, "T_CVol",, "T") -> 125273 | L86: 86 | M86: =RANK($J86,$J$1:J$169)+COUNTIF($J$1:J86,J86)-1 -> 151 | N86: S.US.IMVT | O86: S.US.KRTX | P86: =RTD("cqg.rtd", ,"ContractData",O86, "PerCentNetLastTrade",, "T")/100 -> -0.0008400224006 | Q86: https://finance.yahoo.com/quote/KRTX | T86: 0.0008400224006 | V86: =RTD("cqg.rtd", ,"ContractData",O86, "LongDescription",, "T") -> Karuna Therapeutics, Inc. | Y86: -0.0008400224006 | AB86: 0 | AE86: 0.0008400224006 | AF86: -0.0008400224006
A87: =RTD("cqg.rtd", ,"ContractData",C87, "LongDescription",, "T") -> Incyte Corporation | B87: S.US.INCY | C87: S.US.INCY | D87: =RTD("cqg.rtd", ,"ContractData",C87, "LongDescription",, "T") -> Incyte Corporation | E87: =RTD("cqg.rtd", ,"ContractData",C87, "Open",, "T") -> 93.24 | F87: =RTD("cqg.rtd", ,"ContractData",C87, "High",, "T") -> 93.77 | G87: =RTD("cqg.rtd", ,"ContractData",C87, "Low",, "T") -> 92.06 | H87: =RTD("cqg.rtd", ,"ContractData",C87, "LastTradeToday",, "T") -> 93.25 | I87: =RTD("cqg.rtd", ,"ContractData",C87, "NetLastTradeToday",, "T") -> -0.58 | J87: =RTD("cqg.rtd", ,"ContractData",C87, "PerCentNetLastTrade",, "T")/100 -> -0.006181391879 | K87: =RTD("cqg.rtd", ,"ContractData", C87, "T_CVol",, "T") -> 310868 | L87: 87 | M87: =RANK($J87,$J$1:J$169)+COUNTIF($J$1:J87,J87)-1 -> 106 | N87: S.US.INCY | O87: S.US.XLRN | P87: =RTD("cqg.rtd", ,"ContractData",O87, "PerCentNetLastTrade",, "T")/100 -> -0.0009499956818 | Q87: https://finance.yahoo.com/quote/XLRN | T87: 0.0009499956818 | V87: =RTD("cqg.rtd", ,"ContractData",O87, "LongDescription",, "T") -> Acceleron Pharma Inc. | Y87: -0.0009499956818 | AB87: 0 | AE87: 0.0009499956818 | AF87: -0.0009499956818
A88: =RTD("cqg.rtd", ,"ContractData",C88, "LongDescription",, "T") -> Inovio Pharmaceutical, Inc. | B88: S.US.INO | C88: S.US.INO | D88: =RTD("cqg.rtd", ,"ContractData",C88, "LongDescription",, "T") -> Inovio Pharmaceutical, Inc. | E88: =RTD("cqg.rtd", ,"ContractData",C88, "Open",, "T") -> 9.02 | F88: =RTD("cqg.rtd", ,"ContractData",C88, "High",, "T") -> 9.13 | G88: =RTD("cqg.rtd", ,"ContractData",C88, "Low",, "T") -> 8.85 | H88: =RTD("cqg.rtd", ,"ContractData",C88, "LastTradeToday",, "T") -> 9.05 | I88: =RTD("cqg.rtd", ,"ContractData",C88, "NetLastTradeToday",, "T") -> -0.17 | J88: =RTD("cqg.rtd", ,"ContractData",C88, "PerCentNetLastTrade",, "T")/100 -> -0.01843817787 | K88: =RTD("cqg.rtd", ,"ContractData", C88, "T_CVol",, "T") -> 4608159 | L88: 88 | M88: =RANK($J88,$J$1:J$169)+COUNTIF($J$1:J88,J88)-1 -> 130 | N88: S.US.INO | O88: S.US.MDGL | P88: =RTD("cqg.rtd", ,"ContractData",O88, "PerCentNetLastTrade",, "T")/100 -> -0.001816766156 | Q88: https://finance.yahoo.com/quote/MDGL | T88: 0.001816766156 | V88: =RTD("cqg.rtd", ,"ContractData",O88, "LongDescription",, "T") -> Madrigal Pharmaceuticals, Inc. | Y88: -0.001816766156 | AB88: 0 | AE88: 0.001816766156 | AF88: -0.001816766156
A89: =RTD("cqg.rtd", ,"ContractData",C89, "LongDescription",, "T") -> Insmed, Inc. | B89: S.US.INSM | C89: S.US.INSM | D89: =RTD("cqg.rtd", ,"ContractData",C89, "LongDescription",, "T") -> Insmed, Inc. | E89: =RTD("cqg.rtd", ,"ContractData",C89, "Open",, "T") -> 33.68 | F89: =RTD("cqg.rtd", ,"ContractData",C89, "High",, "T") -> 34 | G89: =RTD("cqg.rtd", ,"ContractData",C89, "Low",, "T") -> 32.7 | H89: =RTD("cqg.rtd", ,"ContractData",C89, "LastTradeToday",, "T") -> 33.44 | I89: =RTD("cqg.rtd", ,"ContractData",C89, "NetLastTradeToday",, "T") -> -0.19 | J89: =RTD("cqg.rtd", ,"ContractData",C89, "PerCentNetLastTrade",, "T")/100 -> -0.005649717514 | K89: =RTD("cqg.rtd", ,"ContractData", C89, "T_CVol",, "T") -> 258730 | L89: 89 | M89: =RANK($J89,$J$1:J$169)+COUNTIF($J$1:J89,J89)-1 -> 105 | N89: S.US.INSM | O89: S.US.ALXN | P89: =RTD("cqg.rtd", ,"ContractData",O89, "PerCentNetLastTrade",, "T")/100 -> -0.002033682873 | Q89: https://finance.yahoo.com/quote/ALXN | T89: 0.002033682873 | V89: =RTD("cqg.rtd", ,"ContractData",O89, "LongDescription",, "T") -> Alexion Pharmaceuticals | Y89: -0.002033682873 | AB89: 0 | AD89: =IFERROR(S89,"") ->  | AE89: 0.002033682873 | AF89: -0.002033682873
A90: =RTD("cqg.rtd", ,"ContractData",C90, "LongDescription",, "T") -> Ionis Pharmaceuticals, Inc. | B90: S.US.IONS | C90: S.US.IONS | D90: =RTD("cqg.rtd", ,"ContractData",C90, "LongDescription",, "T") -> Ionis Pharmaceuticals, Inc. | E90: =RTD("cqg.rtd", ,"ContractData",C90, "Open",, "T") -> 60.32 | F90: =RTD("cqg.rtd", ,"ContractData",C90, "High",, "T") -> 61.9 | G90: =RTD("cqg.rtd", ,"ContractData",C90, "Low",, "T") -> 59.57 | H90: =RTD("cqg.rtd", ,"ContractData",C90, "LastTradeToday",, "T") -> 61.7 | I90: =RTD("cqg.rtd", ,"ContractData",C90, "NetLastTradeToday",, "T") -> 0.66 | J90: =RTD("cqg.rtd", ,"ContractData",C90, "PerCentNetLastTrade",, "T")/100 -> 0.01081258191 | K90: =RTD("cqg.rtd", ,"ContractData", C90, "T_CVol",, "T") -> 380553 | L90: 90 | M90: =RANK($J90,$J$1:J$169)+COUNTIF($J$1:J90,J90)-1 -> 52 | N90: S.US.IONS | O90: S.US.CDNA | P90: =RTD("cqg.rtd", ,"ContractData",O90, "PerCentNetLastTrade",, "T")/100 -> -0.002105002476 | Q90: https://finance.yahoo.com/quote/CDNA | T90: 0.002105002476 | V90: =RTD("cqg.rtd", ,"ContractData",O90, "LongDescription",, "T") -> CareDx, Inc. | Y90: -0.002105002476 | AB90: 0 | AE90: 0.002105002476 | AF90: -0.002105002476
A91: =RTD("cqg.rtd", ,"ContractData",C91, "LongDescription",, "T") -> Iovance Biotherapeutics, Inc. | B91: S.US.IOVA | C91: S.US.IOVA | D91: =RTD("cqg.rtd", ,"ContractData",C91, "LongDescription",, "T") -> Iovance Biotherapeutics, Inc. | E91: =RTD("cqg.rtd", ,"ContractData",C91, "Open",, "T") -> 50 | F91: =RTD("cqg.rtd", ,"ContractData",C91, "High",, "T") -> 51.02 | G91: =RTD("cqg.rtd", ,"ContractData",C91, "Low",, "T") -> 48.5 | H91: =RTD("cqg.rtd", ,"ContractData",C91, "LastTradeToday",, "T") -> 51.02 | I91: =RTD("cqg.rtd", ,"ContractData",C91, "NetLastTradeToday",, "T") -> 0.5 | J91: =RTD("cqg.rtd", ,"ContractData",C91, "PerCentNetLastTrade",, "T")/100 -> 0.009897070467 | K91: =RTD("cqg.rtd", ,"ContractData", C91, "T_CVol",, "T") -> 610887 | L91: 91 | M91: =RANK($J91,$J$1:J$169)+COUNTIF($J$1:J91,J91)-1 -> 55 | N91: S.US.IOVA | O91: S.US.OPK | P91: =RTD("cqg.rtd", ,"ContractData",O91, "PerCentNetLastTrade",, "T")/100 -> -0.002272727273 | Q91: https://finance.yahoo.com/quote/OPK | T91: 0.002272727273 | V91: =RTD("cqg.rtd", ,"ContractData",O91, "LongDescription",, "T") -> Opko Health, Inc. | Y91: -0.002272727273 | AB91: 0 | AE91: 0.002272727273 | AF91: -0.002272727273
A92: =RTD("cqg.rtd", ,"ContractData",C92, "LongDescription",, "T") -> Ironwood Pharmaceuticals, Inc. | B92: S.US.IRWD | C92: S.US.IRWD | D92: =RTD("cqg.rtd", ,"ContractData",C92, "LongDescription",, "T") -> Ironwood Pharmaceuticals, Inc. | E92: =RTD("cqg.rtd", ,"ContractData",C92, "Open",, "T") -> 11.83 | F92: =RTD("cqg.rtd", ,"ContractData",C92, "High",, "T") -> 11.95 | G92: =RTD("cqg.rtd", ,"ContractData",C92, "Low",, "T") -> 11.79 | H92: =RTD("cqg.rtd", ,"ContractData",C92, "LastTradeToday",, "T") -> 11.91 | I92: =RTD("cqg.rtd", ,"ContractData",C92, "NetLastTradeToday",, "T") -> 0.05 | J92: =RTD("cqg.rtd", ,"ContractData",C92, "PerCentNetLastTrade",, "T")/100 -> 0.004215851602 | K92: =RTD("cqg.rtd", ,"ContractData", C92, "T_CVol",, "T") -> 283850 | L92: 92 | M92: =RANK($J92,$J$1:J$169)+COUNTIF($J$1:J92,J92)-1 -> 69 | N92: S.US.IRWD | O92: S.US.VCYT | P92: =RTD("cqg.rtd", ,"ContractData",O92, "PerCentNetLastTrade",, "T")/100 -> -0.002500480862 | Q92: https://finance.yahoo.com/quote/VCYT | T92: 0.002500480862 | V92: =RTD("cqg.rtd", ,"ContractData",O92, "LongDescription",, "T") -> Veracyte, Inc. | Y92: -0.002500480862 | AB92: 0 | AE92: 0.002500480862 | AF92: -0.002500480862
A93: =RTD("cqg.rtd", ,"ContractData",C93, "LongDescription",, "T") -> IVERIC bio, Inc. | B93: S.US.ISEE | C93: S.US.ISEE | D93: =RTD("cqg.rtd", ,"ContractData",C93, "LongDescription",, "T") -> IVERIC bio, Inc. | E93: =RTD("cqg.rtd", ,"ContractData",C93, "Open",, "T") -> 6.59 | F93: =RTD("cqg.rtd", ,"ContractData",C93, "High",, "T") -> 6.61 | G93: =RTD("cqg.rtd", ,"ContractData",C93, "Low",, "T") -> 6.26 | H93: =RTD("cqg.rtd", ,"ContractData",C93, "LastTradeToday",, "T") -> 6.34 | I93: =RTD("cqg.rtd", ,"ContractData",C93, "NetLastTradeToday",, "T") -> -0.29 | J93: =RTD("cqg.rtd", ,"ContractData",C93, "PerCentNetLastTrade",, "T")/100 -> -0.04374057315 | K93: =RTD("cqg.rtd", ,"ContractData", C93, "T_CVol",, "T") -> 229365 | L93: 93 | M93: =RANK($J93,$J$1:J$169)+COUNTIF($J$1:J93,J93)-1 -> 159 | N93: S.US.ISEE | O93: S.US.REGN | P93: =RTD("cqg.rtd", ,"ContractData",O93, "PerCentNetLastTrade",, "T")/100 -> -0.002626671746 | Q93: https://finance.yahoo.com/quote/REGN | T93: 0.002626671746 | V93: =RTD("cqg.rtd", ,"ContractData",O93, "LongDescription",, "T") -> Regeneron Pharm Inc | Y93: -0.002626671746 | AB93: 0 | AE93: 0.002626671746 | AF93: -0.002626671746
A94: =RTD("cqg.rtd", ,"ContractData",C94, "LongDescription",, "T") -> Kadmon Holdings, LLC | B94: S.US.KDMN | C94: S.US.KDMN | D94: =RTD("cqg.rtd", ,"ContractData",C94, "LongDescription",, "T") -> Kadmon Holdings, LLC | E94: =RTD("cqg.rtd", ,"ContractData",C94, "Open",, "T") -> 3.9 | F94: =RTD("cqg.rtd", ,"ContractData",C94, "High",, "T") -> 3.94 | G94: =RTD("cqg.rtd", ,"ContractData",C94, "Low",, "T") -> 3.83 | H94: =RTD("cqg.rtd", ,"ContractData",C94, "LastTradeToday",, "T") -> 3.88 | I94: =RTD("cqg.rtd", ,"ContractData",C94, "NetLastTradeToday",, "T") -> -0.08 | J94: =RTD("cqg.rtd", ,"ContractData",C94, "PerCentNetLastTrade",, "T")/100 -> -0.0202020202 | K94: =RTD("cqg.rtd", ,"ContractData", C94, "T_CVol",, "T") -> 923654 | L94: 94 | M94: =RANK($J94,$J$1:J$169)+COUNTIF($J$1:J94,J94)-1 -> 133 | N94: S.US.KDMN | O94: S.US.CPRX | P94: =RTD("cqg.rtd", ,"ContractData",O94, "PerCentNetLastTrade",, "T")/100 -> -0.002873563218 | Q94: https://finance.yahoo.com/quote/CPRX | T94: 0.002873563218 | V94: =RTD("cqg.rtd", ,"ContractData",O94, "LongDescription",, "T") -> Catalyst Pharmaceuticals, Inc. | Y94: -0.002873563218 | AB94: 0 | AE94: 0.002873563218 | AF94: -0.002873563218
A95: =RTD("cqg.rtd", ,"ContractData",C95, "LongDescription",, "T") -> Kiniksa Pharmaceuticals, Ltd. Class A | B95: S.US.KNSA | C95: S.US.KNSA | D95: =RTD("cqg.rtd", ,"ContractData",C95, "LongDescription",, "T") -> Kiniksa Pharmaceuticals, Ltd. Class A | E95: =RTD("cqg.rtd", ,"ContractData",C95, "Open",, "T") -> 18.89 | F95: =RTD("cqg.rtd", ,"ContractData",C95, "High",, "T") -> 19.98 | G95: =RTD("cqg.rtd", ,"ContractData",C95, "Low",, "T") -> 18.66 | H95: =RTD("cqg.rtd", ,"ContractData",C95, "LastTradeToday",, "T") -> 19.92 | I95: =RTD("cqg.rtd", ,"ContractData",C95, "NetLastTradeToday",, "T") -> 0.94 | J95: =RTD("cqg.rtd", ,"ContractData",C95, "PerCentNetLastTrade",, "T")/100 -> 0.04952581665 | K95: =RTD("cqg.rtd", ,"ContractData", C95, "T_CVol",, "T") -> 109566 | L95: 95 | M95: =RANK($J95,$J$1:J$169)+COUNTIF($J$1:J95,J95)-1 -> 10 | N95: S.US.KNSA | O95: S.US.ALBO | P95: =RTD("cqg.rtd", ,"ContractData",O95, "PerCentNetLastTrade",, "T")/100 -> -0.00292786798 | Q95: https://finance.yahoo.com/quote/ALBO | T95: 0.00292786798 | V95: =RTD("cqg.rtd", ,"ContractData",O95, "LongDescription",, "T") -> Albireo Pharma, Inc. | Y95: -0.00292786798 | AB95: 0 | AE95: 0.00292786798 | AF95: -0.00292786798
A96: =RTD("cqg.rtd", ,"ContractData",C96, "LongDescription",, "T") -> Kodiak Sciences Inc | B96: S.US.KOD | C96: S.US.KOD | D96: =RTD("cqg.rtd", ,"ContractData",C96, "LongDescription",, "T") -> Kodiak Sciences Inc | E96: =RTD("cqg.rtd", ,"ContractData",C96, "Open",, "T") -> 150.96 | F96: =RTD("cqg.rtd", ,"ContractData",C96, "High",, "T") -> 155.49 | G96: =RTD("cqg.rtd", ,"ContractData",C96, "Low",, "T") -> 150.96 | H96: =RTD("cqg.rtd", ,"ContractData",C96, "LastTradeToday",, "T") -> 152.94 | I96: =RTD("cqg.rtd", ,"ContractData",C96, "NetLastTradeToday",, "T") -> -0.85 | J96: =RTD("cqg.rtd", ,"ContractData",C96, "PerCentNetLastTrade",, "T")/100 -> -0.005527017361 | K96: =RTD("cqg.rtd", ,"ContractData", C96, "T_CVol",, "T") -> 79077 | L96: 96 | M96: =RANK($J96,$J$1:J$169)+COUNTIF($J$1:J96,J96)-1 -> 104 | N96: S.US.KOD | O96: S.US.HALO | P96: =RTD("cqg.rtd", ,"ContractData",O96, "PerCentNetLastTrade",, "T")/100 -> -0.002983704384 | Q96: https://finance.yahoo.com/quote/HALO | T96: 0.002983704384 | V96: =RTD("cqg.rtd", ,"ContractData",O96, "LongDescription",, "T") -> Halozyme Therapeutics | Y96: -0.002983704384 | AB96: 0 | AE96: 0.002983704384 | AF96: -0.002983704384
A97: =RTD("cqg.rtd", ,"ContractData",C97, "LongDescription",, "T") -> Karyopharm Therapeutics Inc. | B97: S.US.KPTI | C97: S.US.KPTI | D97: =RTD("cqg.rtd", ,"ContractData",C97, "LongDescription",, "T") -> Karyopharm Therapeutics Inc. | E97: =RTD("cqg.rtd", ,"ContractData",C97, "Open",, "T") -> 16.21 | F97: =RTD("cqg.rtd", ,"ContractData",C97, "High",, "T") -> 16.87 | G97: =RTD("cqg.rtd", ,"ContractData",C97, "Low",, "T") -> 15.91 | H97: =RTD("cqg.rtd", ,"ContractData",C97, "LastTradeToday",, "T") -> 16.33 | I97: =RTD("cqg.rtd", ,"ContractData",C97, "NetLastTradeToday",, "T") -> -1.25 | J97: =RTD("cqg.rtd", ,"ContractData",C97, "PerCentNetLastTrade",, "T")/100 -> -0.07110352673 | K97: =RTD("cqg.rtd", ,"ContractData", C97, "T_CVol",, "T") -> 2109564 | L97: 97 | M97: =RANK($J97,$J$1:J$169)+COUNTIF($J$1:J97,J97)-1 -> 166 | N97: S.US.KPTI | O97: S.US.ZIOP | P97: =RTD("cqg.rtd", ,"ContractData",O97, "PerCentNetLastTrade",, "T")/100 -> -0.003164556962 | Q97: https://finance.yahoo.com/quote/ZIOP | T97: 0.003164556962 | V97: =RTD("cqg.rtd", ,"ContractData",O97, "LongDescription",, "T") -> Ziopharm Oncology Inc | Y97: -0.003164556962 | AB97: 0 | AE97: 0.003164556962 | AF97: -0.003164556962
A98: =RTD("cqg.rtd", ,"ContractData",C98, "LongDescription",, "T") -> Keros Therapeutics, Inc. | B98: S.US.KROS | C98: S.US.KROS | D98: =RTD("cqg.rtd", ,"ContractData",C98, "LongDescription",, "T") -> Keros Therapeutics, Inc. | E98: =RTD("cqg.rtd", ,"ContractData",C98, "Open",, "T") -> 69.98 | F98: =RTD("cqg.rtd", ,"ContractData",C98, "High",, "T") -> 73.65 | G98: =RTD("cqg.rtd", ,"ContractData",C98, "Low",, "T") -> 68.68 | H98: =RTD("cqg.rtd", ,"ContractData",C98, "LastTradeToday",, "T") -> 72.04 | I98: =RTD("cqg.rtd", ,"ContractData",C98, "NetLastTradeToday",, "T") -> 1.11 | J98: =RTD("cqg.rtd", ,"ContractData",C98, "PerCentNetLastTrade",, "T")/100 -> 0.01564923164 | K98: =RTD("cqg.rtd", ,"ContractData", C98, "T_CVol",, "T") -> 32821 | L98: 98 | M98: =RANK($J98,$J$1:J$169)+COUNTIF($J$1:J98,J98)-1 -> 43 | N98: S.US.KROS | O98: S.US.BPMC | P98: =RTD("cqg.rtd", ,"ContractData",O98, "PerCentNetLastTrade",, "T")/100 -> -0.003694126339 | Q98: https://finance.yahoo.com/quote/BPMC | T98: 0.003694126339 | V98: =RTD("cqg.rtd", ,"ContractData",O98, "LongDescription",, "T") -> Blueprint Medicines Corp | Y98: -0.003694126339 | AB98: 0 | AE98: 0.003694126339 | AF98: -0.003694126339
A99: =RTD("cqg.rtd", ,"ContractData",C99, "LongDescription",, "T") -> Karuna Therapeutics, Inc. | B99: S.US.KRTX | C99: S.US.KRTX | D99: =RTD("cqg.rtd", ,"ContractData",C99, "LongDescription",, "T") -> Karuna Therapeutics, Inc. | E99: =RTD("cqg.rtd", ,"ContractData",C99, "Open",, "T") -> 105.11 | F99: =RTD("cqg.rtd", ,"ContractData",C99, "High",, "T") -> 107.67 | G99: =RTD("cqg.rtd", ,"ContractData",C99, "Low",, "T") -> 102.51 | H99: =RTD("cqg.rtd", ,"ContractData",C99, "LastTradeToday",, "T") -> 107.05 | I99: =RTD("cqg.rtd", ,"ContractData",C99, "NetLastTradeToday",, "T") -> -0.09 | J99: =RTD("cqg.rtd", ,"ContractData",C99, "PerCentNetLastTrade",, "T")/100 -> -0.0008400224006 | K99: =RTD("cqg.rtd", ,"ContractData", C99, "T_CVol",, "T") -> 31817 | L99: 99 | M99: =RANK($J99,$J$1:J$169)+COUNTIF($J$1:J99,J99)-1 -> 86 | N99: S.US.KRTX | O99: S.US.TVTX | P99: =RTD("cqg.rtd", ,"ContractData",O99, "PerCentNetLastTrade",, "T")/100 -> -0.003705075954 | Q99: https://finance.yahoo.com/quote/TVTX | T99: 0.003705075954 | V99: =RTD("cqg.rtd", ,"ContractData",O99, "LongDescription",, "T") -> Travere Therapeutics, Inc. | Y99: -0.003705075954 | AB99: 0 | AE99: 0.003705075954 | AF99: -0.003705075954
A100: =RTD("cqg.rtd", ,"ContractData",C100, "LongDescription",, "T") -> Krytsal Biotech, Inc. | B100: S.US.KRYS | C100: S.US.KRYS | D100: =RTD("cqg.rtd", ,"ContractData",C100, "LongDescription",, "T") -> Krytsal Biotech, Inc. | E100: =RTD("cqg.rtd", ,"ContractData",C100, "Open",, "T") -> 66 | F100: =RTD("cqg.rtd", ,"ContractData",C100, "High",, "T") -> 67.99 | G100: =RTD("cqg.rtd", ,"ContractData",C100, "Low",, "T") -> 63.9 | H100: =RTD("cqg.rtd", ,"ContractData",C100, "LastTradeToday",, "T") -> 66.61 | I100: =RTD("cqg.rtd", ,"ContractData",C100, "NetLastTradeToday",, "T") -> 0.28 | J100: =RTD("cqg.rtd", ,"ContractData",C100, "PerCentNetLastTrade",, "T")/100 -> 0.004221317654 | K100: =RTD("cqg.rtd", ,"ContractData", C100, "T_CVol",, "T") -> 22827 | L100: 100 | M100: =RANK($J100,$J$1:J$169)+COUNTIF($J$1:J100,J100)-1 -> 68 | N100: S.US.KRYS | O100: S.US.MRSN | P100: =RTD("cqg.rtd", ,"ContractData",O100, "PerCentNetLastTrade",, "T")/100 -> -0.004294149222 | Q100: https://finance.yahoo.com/quote/MRSN | T100: 0.004294149222 | V100: =RTD("cqg.rtd", ,"ContractData",O100, "LongDescription",, "T") -> Mersana Therapeutics, Inc. | Y100: -0.004294149222 | AB100: 0 | AE100: 0.004294149222 | AF100: -0.004294149222
A101: =RTD("cqg.rtd", ,"ContractData",C101, "LongDescription",, "T") -> Kura Oncology, Inc. | B101: S.US.KURA | C101: S.US.KURA | D101: =RTD("cqg.rtd", ,"ContractData",C101, "LongDescription",, "T") -> Kura Oncology, Inc. | E101: =RTD("cqg.rtd", ,"ContractData",C101, "Open",, "T") -> 38.69 | F101: =RTD("cqg.rtd", ,"ContractData",C101, "High",, "T") -> 39 | G101: =RTD("cqg.rtd", ,"ContractData",C101, "Low",, "T") -> 37.7 | H101: =RTD("cqg.rtd", ,"ContractData",C101, "LastTradeToday",, "T") -> 38.7 | I101: =RTD("cqg.rtd", ,"ContractData",C101, "NetLastTradeToday",, "T") -> -0.44 | J101: =RTD("cqg.rtd", ,"ContractData",C101, "PerCentNetLastTrade",, "T")/100 -> -0.01124169647 | K101: =RTD("cqg.rtd", ,"ContractData", C101, "T_CVol",, "T") -> 211904 | L101: 101 | M101: =RANK($J101,$J$1:J$169)+COUNTIF($J$1:J101,J101)-1 -> 120 | N101: S.US.KURA | O101: S.US.XNCR | P101: =RTD("cqg.rtd", ,"ContractData",O101, "PerCentNetLastTrade",, "T")/100 -> -0.004657756177 | Q101: https://finance.yahoo.com/quote/XNCR | T101: 0.004657756177 | V101: =RTD("cqg.rtd", ,"ContractData",O101, "LongDescription",, "T") -> Xencor, Inc. | Y101: -0.004657756177 | AB101: 0 | AE101: 0.004657756177 | AF101: -0.004657756177
A102: =RTD("cqg.rtd", ,"ContractData",C102, "LongDescription",, "T") -> Ligand Pharmaceuticals Inc | B102: S.US.LGND | C102: S.US.LGND | D102: =RTD("cqg.rtd", ,"ContractData",C102, "LongDescription",, "T") -> Ligand Pharmaceuticals Inc | E102: =RTD("cqg.rtd", ,"ContractData",C102, "Open",, "T") -> 106.62 | F102: =RTD("cqg.rtd", ,"ContractData",C102, "High",, "T") -> 109.48 | G102: =RTD("cqg.rtd", ,"ContractData",C102, "Low",, "T") -> 104.98 | H102: =RTD("cqg.rtd", ,"ContractData",C102, "LastTradeToday",, "T") -> 109.11 | I102: =RTD("cqg.rtd", ,"ContractData",C102, "NetLastTradeToday",, "T") -> 2.79 | J102: =RTD("cqg.rtd", ,"ContractData",C102, "PerCentNetLastTrade",, "T")/100 -> 0.02624153499 | K102: =RTD("cqg.rtd", ,"ContractData", C102, "T_CVol",, "T") -> 102085 | L102: 102 | M102: =RANK($J102,$J$1:J$169)+COUNTIF($J$1:J102,J102)-1 -> 28 | N102: S.US.LGND | O102: S.US.NRIX | P102: =RTD("cqg.rtd", ,"ContractData",O102, "PerCentNetLastTrade",, "T")/100 -> -0.004970178926 | Q102: https://finance.yahoo.com/quote/NRIX | T102: 0.004970178926 | V102: =RTD("cqg.rtd", ,"ContractData",O102, "LongDescription",, "T") -> Nurix Therapeutics, Inc | Y102: -0.004970178926 | AB102: 0 | AE102: 0.004970178926 | AF102: -0.004970178926
A103: =RTD("cqg.rtd", ,"ContractData",C103, "LongDescription",, "T") -> Seres Therapeutics, Inc. | B103: S.US.MCRB | C103: S.US.MCRB | D103: =RTD("cqg.rtd", ,"ContractData",C103, "LongDescription",, "T") -> Seres Therapeutics, Inc. | E103: =RTD("cqg.rtd", ,"ContractData",C103, "Open",, "T") -> 26.58 | F103: =RTD("cqg.rtd", ,"ContractData",C103, "High",, "T") -> 27.47 | G103: =RTD("cqg.rtd", ,"ContractData",C103, "Low",, "T") -> 26.33 | H103: =RTD("cqg.rtd", ,"ContractData",C103, "LastTradeToday",, "T") -> 26.96 | I103: =RTD("cqg.rtd", ,"ContractData",C103, "NetLastTradeToday",, "T") -> -0.64 | J103: =RTD("cqg.rtd", ,"ContractData",C103, "PerCentNetLastTrade",, "T")/100 -> -0.0231884058 | K103: =RTD("cqg.rtd", ,"ContractData", C103, "T_CVol",, "T") -> 468727 | L103: 103 | M103: =RANK($J103,$J$1:J$169)+COUNTIF($J$1:J103,J103)-1 -> 139 | N103: S.US.MCRB | O103: S.US.NLTX | P103: =RTD("cqg.rtd", ,"ContractData",O103, "PerCentNetLastTrade",, "T")/100 -> -0.004982206406 | Q103: https://finance.yahoo.com/quote/NLTX | T103: 0.004982206406 | V103: =RTD("cqg.rtd", ,"ContractData",O103, "LongDescription",, "T") -> Neoleukin Therapeutics, Inc | Y103: -0.004982206406 | AB103: 0 | AE103: 0.004982206406 | AF103: -0.004982206406
A104: =RTD("cqg.rtd", ,"ContractData",C104, "LongDescription",, "T") -> Madrigal Pharmaceuticals, Inc. | B104: S.US.MDGL | C104: S.US.MDGL | D104: =RTD("cqg.rtd", ,"ContractData",C104, "LongDescription",, "T") -> Madrigal Pharmaceuticals, Inc. | E104: =RTD("cqg.rtd", ,"ContractData",C104, "Open",, "T") -> 116.08 | F104: =RTD("cqg.rtd", ,"ContractData",C104, "High",, "T") -> 117.09 | G104: =RTD("cqg.rtd", ,"ContractData",C104, "Low",, "T") -> 113.4 | H104: =RTD("cqg.rtd", ,"ContractData",C104, "LastTradeToday",, "T") -> 115.38 | I104: =RTD("cqg.rtd", ,"ContractData",C104, "NetLastTradeToday",, "T") -> -0.21 | J104: =RTD("cqg.rtd", ,"ContractData",C104, "PerCentNetLastTrade",, "T")/100 -> -0.001816766156 | K104: =RTD("cqg.rtd", ,"ContractData", C104, "T_CVol",, "T") -> 63917 | L104: 104 | M104: =RANK($J104,$J$1:J$169)+COUNTIF($J$1:J104,J104)-1 -> 88 | N104: S.US.MDGL | O104: S.US.KOD | P104: =RTD("cqg.rtd", ,"ContractData",O104, "PerCentNetLastTrade",, "T")/100 -> -0.005527017361 | Q104: https://finance.yahoo.com/quote/KOD | T104: 0.005527017361 | V104: =RTD("cqg.rtd", ,"ContractData",O104, "LongDescription",, "T") -> Kodiak Sciences Inc | Y104: -0.005527017361 | AB104: 0 | AE104: 0.005527017361 | AF104: -0.005527017361
A105: =RTD("cqg.rtd", ,"ContractData",C105, "LongDescription",, "T") -> MacroGenics, Inc. | B105: S.US.MGNX | C105: S.US.MGNX | D105: =RTD("cqg.rtd", ,"ContractData",C105, "LongDescription",, "T") -> MacroGenics, Inc. | E105: =RTD("cqg.rtd", ,"ContractData",C105, "Open",, "T") -> 20.21 | F105: =RTD("cqg.rtd", ,"ContractData",C105, "High",, "T") -> 21.05 | G105: =RTD("cqg.rtd", ,"ContractData",C105, "Low",, "T") -> 20.21 | H105: =RTD("cqg.rtd", ,"ContractData",C105, "LastTradeToday",, "T") -> 20.68 | I105: =RTD("cqg.rtd", ,"ContractData",C105, "NetLastTradeToday",, "T") -> 0.16 | J105: =RTD("cqg.rtd", ,"ContractData",C105, "PerCentNetLastTrade",, "T")/100 -> 0.007797270955 | K105: =RTD("cqg.rtd", ,"ContractData", C105, "T_CVol",, "T") -> 460230 | L105: 105 | M105: =RANK($J105,$J$1:J$169)+COUNTIF($J$1:J105,J105)-1 -> 59 | N105: S.US.MGNX | O105: S.US.INSM | P105: =RTD("cqg.rtd", ,"ContractData",O105, "PerCentNetLastTrade",, "T")/100 -> -0.005649717514 | Q105: https://finance.yahoo.com/quote/INSM | T105: 0.005649717514 | V105: =RTD("cqg.rtd", ,"ContractData",O105, "LongDescription",, "T") -> Insmed, Inc. | Y105: -0.005649717514 | AB105: 0 | AE105: 0.005649717514 | AF105: -0.005649717514
A106: =RTD("cqg.rtd", ,"ContractData",C106, "LongDescription",, "T") -> MannKind Corporation | B106: S.US.MNKD | C106: S.US.MNKD | D106: =RTD("cqg.rtd", ,"ContractData",C106, "LongDescription",, "T") -> MannKind Corporation | E106: =RTD("cqg.rtd", ,"ContractData",C106, "Open",, "T") -> 3.4 | F106: =RTD("cqg.rtd", ,"ContractData",C106, "High",, "T") -> 3.46 | G106: =RTD("cqg.rtd", ,"ContractData",C106, "Low",, "T") -> 3.32 | H106: =RTD("cqg.rtd", ,"ContractData",C106, "LastTradeToday",, "T") -> 3.4 | I106: =RTD("cqg.rtd", ,"ContractData",C106, "NetLastTradeToday",, "T") -> 0 | J106: =RTD("cqg.rtd", ,"ContractData",C106, "PerCentNetLastTrade",, "T")/100 -> 0 | K106: =RTD("cqg.rtd", ,"ContractData", C106, "T_CVol",, "T") -> 928696 | L106: 106 | M106: =RANK($J106,$J$1:J$169)+COUNTIF($J$1:J106,J106)-1 -> 84 | N106: S.US.MNKD | O106: S.US.INCY | P106: =RTD("cqg.rtd", ,"ContractData",O106, "PerCentNetLastTrade",, "T")/100 -> -0.006181391879 | Q106: https://finance.yahoo.com/quote/INCY | T106: 0.006181391879 | V106: =RTD("cqg.rtd", ,"ContractData",O106, "LongDescription",, "T") -> Incyte Corporation | Y106: -0.006181391879 | AB106: 0 | AE106: 0.006181391879 | AF106: -0.006181391879
A107: =RTD("cqg.rtd", ,"ContractData",C107, "LongDescription",, "T") -> Moderna, Inc. | B107: S.US.MRNA | C107: S.US.MRNA | D107: =RTD("cqg.rtd", ,"ContractData",C107, "LongDescription",, "T") -> Moderna, Inc. | E107: =RTD("cqg.rtd", ,"ContractData",C107, "Open",, "T") -> 112.75 | F107: =RTD("cqg.rtd", ,"ContractData",C107, "High",, "T") -> 121.24 | G107: =RTD("cqg.rtd", ,"ContractData",C107, "Low",, "T") -> 112.62 | H107: =RTD("cqg.rtd", ,"ContractData",C107, "LastTradeToday",, "T") -> 119.57 | I107: =RTD("cqg.rtd", ,"ContractData",C107, "NetLastTradeToday",, "T") -> 6.82 | J107: =RTD("cqg.rtd", ,"ContractData",C107, "PerCentNetLastTrade",, "T")/100 -> 0.06048780488 | K107: =RTD("cqg.rtd", ,"ContractData", C107, "T_CVol",, "T") -> 11457215 | L107: 107 | M107: =RANK($J107,$J$1:J$169)+COUNTIF($J$1:J107,J107)-1 -> 9 | N107: S.US.MRNA | O107: S.US.CCXI | P107: =RTD("cqg.rtd", ,"ContractData",O107, "PerCentNetLastTrade",, "T")/100 -> -0.006212169481 | Q107: https://finance.yahoo.com/quote/CCXI | T107: 0.006212169481 | V107: =RTD("cqg.rtd", ,"ContractData",O107, "LongDescription",, "T") -> ChemoCentryx, Inc. | Y107: -0.006212169481 | AB107: 0 | AE107: 0.006212169481 | AF107: -0.006212169481
A108: =RTD("cqg.rtd", ,"ContractData",C108, "LongDescription",, "T") -> Mersana Therapeutics, Inc. | B108: S.US.MRSN | C108: S.US.MRSN | D108: =RTD("cqg.rtd", ,"ContractData",C108, "LongDescription",, "T") -> Mersana Therapeutics, Inc. | E108: =RTD("cqg.rtd", ,"ContractData",C108, "Open",, "T") -> 18.2 | F108: =RTD("cqg.rtd", ,"ContractData",C108, "High",, "T") -> 18.94 | G108: =RTD("cqg.rtd", ,"ContractData",C108, "Low",, "T") -> 17.94 | H108: =RTD("cqg.rtd", ,"ContractData",C108, "LastTradeToday",, "T") -> 18.55 | I108: =RTD("cqg.rtd", ,"ContractData",C108, "NetLastTradeToday",, "T") -> -0.08 | J108: =RTD("cqg.rtd", ,"ContractData",C108, "PerCentNetLastTrade",, "T")/100 -> -0.004294149222 | K108: =RTD("cqg.rtd", ,"ContractData", C108, "T_CVol",, "T") -> 434058 | L108: 108 | M108: =RANK($J108,$J$1:J$169)+COUNTIF($J$1:J108,J108)-1 -> 100 | N108: S.US.MRSN | O108: S.US.STOK | P108: =RTD("cqg.rtd", ,"ContractData",O108, "PerCentNetLastTrade",, "T")/100 -> -0.006376716808 | Q108: https://finance.yahoo.com/quote/STOK | T108: 0.006376716808 | V108: =RTD("cqg.rtd", ,"ContractData",O108, "LongDescription",, "T") -> Stoke Therapeutics, Inc. | Y108: -0.006376716808 | AB108: 0 | AE108: 0.006376716808 | AF108: -0.006376716808
A109: =RTD("cqg.rtd", ,"ContractData",C109, "LongDescription",, "T") -> Mirati Therapeutics, Inc. | B109: S.US.MRTX | C109: S.US.MRTX | D109: =RTD("cqg.rtd", ,"ContractData",C109, "LongDescription",, "T") -> Mirati Therapeutics, Inc. | E109: =RTD("cqg.rtd", ,"ContractData",C109, "Open",, "T") -> 214.33 | F109: =RTD("cqg.rtd", ,"ContractData",C109, "High",, "T") -> 215.54 | G109: =RTD("cqg.rtd", ,"ContractData",C109, "Low",, "T") -> 205.92 | H109: =RTD("cqg.rtd", ,"ContractData",C109, "LastTradeToday",, "T") -> 213.81 | I109: =RTD("cqg.rtd", ,"ContractData",C109, "NetLastTradeToday",, "T") -> -3.67 | J109: =RTD("cqg.rtd", ,"ContractData",C109, "PerCentNetLastTrade",, "T")/100 -> -0.01687511495 | K109: =RTD("cqg.rtd", ,"ContractData", C109, "T_CVol",, "T") -> 299170 | L109: 109 | M109: =RANK($J109,$J$1:J$169)+COUNTIF($J$1:J109,J109)-1 -> 129 | N109: S.US.MRTX | O109: S.US.CHRS | P109: =RTD("cqg.rtd", ,"ContractData",O109, "PerCentNetLastTrade",, "T")/100 -> -0.007150715072 | Q109: https://finance.yahoo.com/quote/CHRS | T109: 0.007150715072 | V109: =RTD("cqg.rtd", ,"ContractData",O109, "LongDescription",, "T") -> Coherus BioSciences, Inc. | Y109: -0.007150715072 | AB109: 0 | AE109: 0.007150715072 | AF109: -0.007150715072
A110: =RTD("cqg.rtd", ,"ContractData",C110, "LongDescription",, "T") -> Myriad Genetics Inc | B110: S.US.MYGN | C110: S.US.MYGN | D110: =RTD("cqg.rtd", ,"ContractData",C110, "LongDescription",, "T") -> Myriad Genetics Inc | E110: =RTD("cqg.rtd", ,"ContractData",C110, "Open",, "T") -> 23.78 | F110: =RTD("cqg.rtd", ,"ContractData",C110, "High",, "T") -> 25.17 | G110: =RTD("cqg.rtd", ,"ContractData",C110, "Low",, "T") -> 23.55 | H110: =RTD("cqg.rtd", ,"ContractData",C110, "LastTradeToday",, "T") -> 24.89 | I110: =RTD("cqg.rtd", ,"ContractData",C110, "NetLastTradeToday",, "T") -> 0.71 | J110: =RTD("cqg.rtd", ,"ContractData",C110, "PerCentNetLastTrade",, "T")/100 -> 0.02936311001 | K110: =RTD("cqg.rtd", ,"ContractData", C110, "T_CVol",, "T") -> 215601 | L110: 110 | M110: =RANK($J110,$J$1:J$169)+COUNTIF($J$1:J110,J110)-1 -> 26 | N110: S.US.MYGN | O110: S.US.BCEL | P110: =RTD("cqg.rtd", ,"ContractData",O110, "PerCentNetLastTrade",, "T")/100 -> -0.007194244604 | Q110: https://finance.yahoo.com/quote/BCEL | T110: 0.007194244604 | V110: =RTD("cqg.rtd", ,"ContractData",O110, "LongDescription",, "T") -> Atreca, Inc. Class A | Y110: -0.007194244604 | AB110: 0 | AE110: 0.007194244604 | AF110: -0.007194244604
A111: =RTD("cqg.rtd", ,"ContractData",C111, "LongDescription",, "T") -> Neurocrine Biosciences Inc | B111: S.US.NBIX | C111: S.US.NBIX | D111: =RTD("cqg.rtd", ,"ContractData",C111, "LongDescription",, "T") -> Neurocrine Biosciences Inc | E111: =RTD("cqg.rtd", ,"ContractData",C111, "Open",, "T") -> 111.11 | F111: =RTD("cqg.rtd", ,"ContractData",C111, "High",, "T") -> 111.55 | G111: =RTD("cqg.rtd", ,"ContractData",C111, "Low",, "T") -> 107.89 | H111: =RTD("cqg.rtd", ,"ContractData",C111, "LastTradeToday",, "T") -> 111.15 | I111: =RTD("cqg.rtd", ,"ContractData",C111, "NetLastTradeToday",, "T") -> -0.92 | J111: =RTD("cqg.rtd", ,"ContractData",C111, "PerCentNetLastTrade",, "T")/100 -> -0.008209154992 | K111: =RTD("cqg.rtd", ,"ContractData", C111, "T_CVol",, "T") -> 711740 | L111: 111 | M111: =RANK($J111,$J$1:J$169)+COUNTIF($J$1:J111,J111)-1 -> 113 | N111: S.US.NBIX | O111: S.US.PTCT | P111: =RTD("cqg.rtd", ,"ContractData",O111, "PerCentNetLastTrade",, "T")/100 -> -0.007546611423 | Q111: https://finance.yahoo.com/quote/PTCT | T111: 0.007546611423 | V111: =RTD("cqg.rtd", ,"ContractData",O111, "LongDescription",, "T") -> PTC Therapeutics, Inc | Y111: -0.007546611423 | AB111: 0 | AE111: 0.007546611423 | AF111: -0.007546611423
A112: =RTD("cqg.rtd", ,"ContractData",C112, "LongDescription",, "T") -> Nkarta, Inc. | B112: S.US.NKTX | C112: S.US.NKTX | D112: =RTD("cqg.rtd", ,"ContractData",C112, "LongDescription",, "T") -> Nkarta, Inc. | E112: =RTD("cqg.rtd", ,"ContractData",C112, "Open",, "T") -> 54.41 | F112: =RTD("cqg.rtd", ,"ContractData",C112, "High",, "T") -> 58.24 | G112: =RTD("cqg.rtd", ,"ContractData",C112, "Low",, "T") -> 53.31 | H112: =RTD("cqg.rtd", ,"ContractData",C112, "LastTradeToday",, "T") -> 57.04 | I112: =RTD("cqg.rtd", ,"ContractData",C112, "NetLastTradeToday",, "T") -> 2.15 | J112: =RTD("cqg.rtd", ,"ContractData",C112, "PerCentNetLastTrade",, "T")/100 -> 0.03916924759 | K112: =RTD("cqg.rtd", ,"ContractData", C112, "T_CVol",, "T") -> 79549 | L112: 112 | M112: =RANK($J112,$J$1:J$169)+COUNTIF($J$1:J112,J112)-1 -> 17 | N112: S.US.NKTX | O112: S.US.BTAI | P112: =RTD("cqg.rtd", ,"ContractData",O112, "PerCentNetLastTrade",, "T")/100 -> -0.007983273142 | Q112: https://finance.yahoo.com/quote/BTAI | T112: 0.007983273142 | V112: =RTD("cqg.rtd", ,"ContractData",O112, "LongDescription",, "T") -> BioXcel Therapeutics, Inc. | Y112: -0.007983273142 | AB112: 0 | AE112: 0.007983273142 | AF112: -0.007983273142
A113: =RTD("cqg.rtd", ,"ContractData",C113, "LongDescription",, "T") -> Neoleukin Therapeutics, Inc | B113: S.US.NLTX | C113: S.US.NLTX | D113: =RTD("cqg.rtd", ,"ContractData",C113, "LongDescription",, "T") -> Neoleukin Therapeutics, Inc | E113: =RTD("cqg.rtd", ,"ContractData",C113, "Open",, "T") -> 14.12 | F113: =RTD("cqg.rtd", ,"ContractData",C113, "High",, "T") -> 14.33 | G113: =RTD("cqg.rtd", ,"ContractData",C113, "Low",, "T") -> 13.4 | H113: =RTD("cqg.rtd", ,"ContractData",C113, "LastTradeToday",, "T") -> 13.98 | I113: =RTD("cqg.rtd", ,"ContractData",C113, "NetLastTradeToday",, "T") -> -0.07 | J113: =RTD("cqg.rtd", ,"ContractData",C113, "PerCentNetLastTrade",, "T")/100 -> -0.004982206406 | K113: =RTD("cqg.rtd", ,"ContractData", C113, "T_CVol",, "T") -> 226715 | L113: 113 | M113: =RANK($J113,$J$1:J$169)+COUNTIF($J$1:J113,J113)-1 -> 103 | N113: S.US.NLTX | O113: S.US.NBIX | P113: =RTD("cqg.rtd", ,"ContractData",O113, "PerCentNetLastTrade",, "T")/100 -> -0.008209154992 | Q113: https://finance.yahoo.com/quote/NBIX | T113: 0.008209154992 | V113: =RTD("cqg.rtd", ,"ContractData",O113, "LongDescription",, "T") -> Neurocrine Biosciences Inc | Y113: -0.008209154992 | AB113: 0 | AE113: 0.008209154992 | AF113: -0.008209154992
A114: =RTD("cqg.rtd", ,"ContractData",C114, "LongDescription",, "T") -> Nurix Therapeutics, Inc | B114: S.US.NRIX | C114: S.US.NRIX | D114: =RTD("cqg.rtd", ,"ContractData",C114, "LongDescription",, "T") -> Nurix Therapeutics, Inc | E114: =RTD("cqg.rtd", ,"ContractData",C114, "Open",, "T") -> 39.64 | F114: =RTD("cqg.rtd", ,"ContractData",C114, "High",, "T") -> 40.84 | G114: =RTD("cqg.rtd", ,"ContractData",C114, "Low",, "T") -> 37.64 | H114: =RTD("cqg.rtd", ,"ContractData",C114, "LastTradeToday",, "T") -> 40.04 | I114: =RTD("cqg.rtd", ,"ContractData",C114, "NetLastTradeToday",, "T") -> -0.2 | J114: =RTD("cqg.rtd", ,"ContractData",C114, "PerCentNetLastTrade",, "T")/100 -> -0.004970178926 | K114: =RTD("cqg.rtd", ,"ContractData", C114, "T_CVol",, "T") -> 145328 | L114: 114 | M114: =RANK($J114,$J$1:J$169)+COUNTIF($J$1:J114,J114)-1 -> 102 | N114: S.US.NRIX | O114: S.US.IMGN | P114: =RTD("cqg.rtd", ,"ContractData",O114, "PerCentNetLastTrade",, "T")/100 -> -0.008595988539 | Q114: https://finance.yahoo.com/quote/IMGN | T114: 0.008595988539 | V114: =RTD("cqg.rtd", ,"ContractData",O114, "LongDescription",, "T") -> ImmunoGen Inc | Y114: -0.008595988539 | AB114: 0 | AE114: 0.008595988539 | AF114: -0.008595988539
A115: =RTD("cqg.rtd", ,"ContractData",C115, "LongDescription",, "T") -> Intellia Therapeutics, Inc. | B115: S.US.NTLA | C115: S.US.NTLA | D115: =RTD("cqg.rtd", ,"ContractData",C115, "LongDescription",, "T") -> Intellia Therapeutics, Inc. | E115: =RTD("cqg.rtd", ,"ContractData",C115, "Open",, "T") -> 77.88 | F115: =RTD("cqg.rtd", ,"ContractData",C115, "High",, "T") -> 78.81 | G115: =RTD("cqg.rtd", ,"ContractData",C115, "Low",, "T") -> 71.33 | H115: =RTD("cqg.rtd", ,"ContractData",C115, "LastTradeToday",, "T") -> 76.7 | I115: =RTD("cqg.rtd", ,"ContractData",C115, "NetLastTradeToday",, "T") -> -1.66 | J115: =RTD("cqg.rtd", ,"ContractData",C115, "PerCentNetLastTrade",, "T")/100 -> -0.02118427769 | K115: =RTD("cqg.rtd", ,"ContractData", C115, "T_CVol",, "T") -> 1163199 | L115: 115 | M115: =RANK($J115,$J$1:J$169)+COUNTIF($J$1:J115,J115)-1 -> 136 | N115: S.US.NTLA | O115: S.US.VBIV | P115: =RTD("cqg.rtd", ,"ContractData",O115, "PerCentNetLastTrade",, "T")/100 -> -0.009584664537 | Q115: https://finance.yahoo.com/quote/VBIV | T115: 0.009584664537 | V115: =RTD("cqg.rtd", ,"ContractData",O115, "LongDescription",, "T") -> VBI Vaccines Inc. | Y115: -0.009584664537 | AB115: 0 | AE115: 0.009584664537 | AF115: -0.009584664537
A116: =RTD("cqg.rtd", ,"ContractData",C116, "LongDescription",, "T") -> Natera, Inc. | B116: S.US.NTRA | C116: S.US.NTRA | D116: =RTD("cqg.rtd", ,"ContractData",C116, "LongDescription",, "T") -> Natera, Inc. | E116: =RTD("cqg.rtd", ,"ContractData",C116, "Open",, "T") -> 110.37 | F116: =RTD("cqg.rtd", ,"ContractData",C116, "High",, "T") -> 113.8 | G116: =RTD("cqg.rtd", ,"ContractData",C116, "Low",, "T") -> 108.43 | H116: =RTD("cqg.rtd", ,"ContractData",C116, "LastTradeToday",, "T") -> 111.26 | I116: =RTD("cqg.rtd", ,"ContractData",C116, "NetLastTradeToday",, "T") -> 0.09 | J116: =RTD("cqg.rtd", ,"ContractData",C116, "PerCentNetLastTrade",, "T")/100 -> 0.0008095709274 | K116: =RTD("cqg.rtd", ,"ContractData", C116, "T_CVol",, "T") -> 320513 | L116: 116 | M116: =RANK($J116,$J$1:J$169)+COUNTIF($J$1:J116,J116)-1 -> 79 | N116: S.US.NTRA | O116: S.US.VRTX | P116: =RTD("cqg.rtd", ,"ContractData",O116, "PerCentNetLastTrade",, "T")/100 -> -0.009662447257 | Q116: ="https://finance.yahoo.com/quote/"&RIGHT(O116,(LEN(O116)-5)) -> https://finance.yahoo.com/quote/VRTX | S116: =IF(P116>=0,P116,NA()) ->  | T116: =IF(P116>=0,NA(),-1*P116) -> 0.009662447257 | V116: =RTD("cqg.rtd", ,"ContractData",O116, "LongDescription",, "T") -> Vertex Pharmaceuticals Incorporated | Y116: =IFERROR(S116,P116) -> -0.009662447257 | AA116: =IF(S116="NA()",0,1) ->  | AB116: =IFERROR(AA116,0) -> 0 | AD116: =IFERROR(S116,"") ->  | AE116: =IFERROR(T116,"") -> 0.009662447257 | AF116: =IF(AE116="","",Y116) -> -0.009662447257
A117: =RTD("cqg.rtd", ,"ContractData",C117, "LongDescription",, "T") -> Novavax Inc | B117: S.US.NVAX | C117: S.US.NVAX | D117: =RTD("cqg.rtd", ,"ContractData",C117, "LongDescription",, "T") -> Novavax Inc | E117: =RTD("cqg.rtd", ,"ContractData",C117, "Open",, "T") -> 118.43 | F117: =RTD("cqg.rtd", ,"ContractData",C117, "High",, "T") -> 122.11 | G117: =RTD("cqg.rtd", ,"ContractData",C117, "Low",, "T") -> 113.51 | H117: =RTD("cqg.rtd", ,"ContractData",C117, "LastTradeToday",, "T") -> 117.17 | I117: =RTD("cqg.rtd", ,"ContractData",C117, "NetLastTradeToday",, "T") -> -4.68 | J117: =RTD("cqg.rtd", ,"ContractData",C117, "PerCentNetLastTrade",, "T")/100 -> -0.03840787854 | K117: =RTD("cqg.rtd", ,"ContractData", C117, "T_CVol",, "T") -> 2883376 | L117: 117 | M117: =RANK($J117,$J$1:J$169)+COUNTIF($J$1:J117,J117)-1 -> 155 | N117: S.US.NVAX | O117: S.US.ARCT | P117: =RTD("cqg.rtd", ,"ContractData",O117, "PerCentNetLastTrade",, "T")/100 -> -0.01033591731 | Q117: https://finance.yahoo.com/quote/ARCT | T117: 0.01033591731 | V117: =RTD("cqg.rtd", ,"ContractData",O117, "LongDescription",, "T") -> Arcturus Therapeutics Holdings Inc. | Y117: -0.01033591731 | AB117: 0 | AE117: 0.01033591731 | AF117: -0.01033591731
A118: =RTD("cqg.rtd", ,"ContractData",C118, "LongDescription",, "T") -> Invitae Corp | B118: S.US.NVTA | C118: S.US.NVTA | D118: =RTD("cqg.rtd", ,"ContractData",C118, "LongDescription",, "T") -> Invitae Corp | E118: =RTD("cqg.rtd", ,"ContractData",C118, "Open",, "T") -> 47.54 | F118: =RTD("cqg.rtd", ,"ContractData",C118, "High",, "T") -> 48.18 | G118: =RTD("cqg.rtd", ,"ContractData",C118, "Low",, "T") -> 45.2 | H118: =RTD("cqg.rtd", ,"ContractData",C118, "LastTradeToday",, "T") -> 46.59 | I118: =RTD("cqg.rtd", ,"ContractData",C118, "NetLastTradeToday",, "T") -> -4.54 | J118: =RTD("cqg.rtd", ,"ContractData",C118, "PerCentNetLastTrade",, "T")/100 -> -0.08879327205 | K118: =RTD("cqg.rtd", ,"ContractData", C118, "T_CVol",, "T") -> 5032758 | L118: 118 | M118: =RANK($J118,$J$1:J$169)+COUNTIF($J$1:J118,J118)-1 -> 168 | N118: S.US.NVTA | O118: S.US.ZNTL | P118: =RTD("cqg.rtd", ,"ContractData",O118, "PerCentNetLastTrade",, "T")/100 -> -0.01049021586 | Q118: https://finance.yahoo.com/quote/ZNTL | T118: 0.01049021586 | V118: =RTD("cqg.rtd", ,"ContractData",O118, "LongDescription",, "T") -> Zentalis Pharmaceuticals, Inc. | Y118: -0.01049021586 | AB118: 0 | AE118: 0.01049021586 | AF118: -0.01049021586
A119: =RTD("cqg.rtd", ,"ContractData",C119, "LongDescription",, "T") -> Opko Health, Inc. | B119: S.US.OPK | C119: S.US.OPK | D119: =RTD("cqg.rtd", ,"ContractData",C119, "LongDescription",, "T") -> Opko Health, Inc. | E119: =RTD("cqg.rtd", ,"ContractData",C119, "Open",, "T") -> 4.41 | F119: =RTD("cqg.rtd", ,"ContractData",C119, "High",, "T") -> 4.43 | G119: =RTD("cqg.rtd", ,"ContractData",C119, "Low",, "T") -> 4.29 | H119: =RTD("cqg.rtd", ,"ContractData",C119, "LastTradeToday",, "T") -> 4.39 | I119: =RTD("cqg.rtd", ,"ContractData",C119, "NetLastTradeToday",, "T") -> -0.01 | J119: =RTD("cqg.rtd", ,"ContractData",C119, "PerCentNetLastTrade",, "T")/100 -> -0.002272727273 | K119: =RTD("cqg.rtd", ,"ContractData", C119, "T_CVol",, "T") -> 1893121 | L119: 119 | M119: =RANK($J119,$J$1:J$169)+COUNTIF($J$1:J119,J119)-1 -> 91 | N119: S.US.OPK | O119: S.US.REPL | P119: =RTD("cqg.rtd", ,"ContractData",O119, "PerCentNetLastTrade",, "T")/100 -> -0.01122019635 | Q119: https://finance.yahoo.com/quote/REPL | T119: 0.01122019635 | V119: =RTD("cqg.rtd", ,"ContractData",O119, "LongDescription",, "T") -> Replimune Group, Inc. | Y119: -0.01122019635 | AB119: 0 | AE119: 0.01122019635 | AF119: -0.01122019635
A120: =RTD("cqg.rtd", ,"ContractData",C120, "LongDescription",, "T") -> Puma Biotechnology Inc. | B120: S.US.PBYI | C120: S.US.PBYI | D120: =RTD("cqg.rtd", ,"ContractData",C120, "LongDescription",, "T") -> Puma Biotechnology Inc. | E120: =RTD("cqg.rtd", ,"ContractData",C120, "Open",, "T") -> 11.39 | F120: =RTD("cqg.rtd", ,"ContractData",C120, "High",, "T") -> 11.94 | G120: =RTD("cqg.rtd", ,"ContractData",C120, "Low",, "T") -> 11.38 | H120: =RTD("cqg.rtd", ,"ContractData",C120, "LastTradeToday",, "T") -> 11.9 | I120: =RTD("cqg.rtd", ,"ContractData",C120, "NetLastTradeToday",, "T") -> 0.51 | J120: =RTD("cqg.rtd", ,"ContractData",C120, "PerCentNetLastTrade",, "T")/100 -> 0.0447761194 | K120: =RTD("cqg.rtd", ,"ContractData", C120, "T_CVol",, "T") -> 136597 | L120: 120 | M120: =RANK($J120,$J$1:J$169)+COUNTIF($J$1:J120,J120)-1 -> 12 | N120: S.US.PBYI | O120: S.US.KURA | P120: =RTD("cqg.rtd", ,"ContractData",O120, "PerCentNetLastTrade",, "T")/100 -> -0.01124169647 | Q120: https://finance.yahoo.com/quote/KURA | T120: 0.01124169647 | V120: =RTD("cqg.rtd", ,"ContractData",O120, "LongDescription",, "T") -> Kura Oncology, Inc. | Y120: -0.01124169647 | AB120: 0 | AE120: 0.01124169647 | AF120: -0.01124169647
A121: =RTD("cqg.rtd", ,"ContractData",C121, "LongDescription",, "T") -> Vaxcyte, Inc. | B121: S.US.PCVX | C121: S.US.PCVX | D121: =RTD("cqg.rtd", ,"ContractData",C121, "LongDescription",, "T") -> Vaxcyte, Inc. | E121: =RTD("cqg.rtd", ,"ContractData",C121, "Open",, "T") -> 25.95 | F121: =RTD("cqg.rtd", ,"ContractData",C121, "High",, "T") -> 26.9 | G121: =RTD("cqg.rtd", ,"ContractData",C121, "Low",, "T") -> 24.64 | H121: =RTD("cqg.rtd", ,"ContractData",C121, "LastTradeToday",, "T") -> 26.86 | I121: =RTD("cqg.rtd", ,"ContractData",C121, "NetLastTradeToday",, "T") -> 0.65 | J121: =RTD("cqg.rtd", ,"ContractData",C121, "PerCentNetLastTrade",, "T")/100 -> 0.02479969477 | K121: =RTD("cqg.rtd", ,"ContractData", C121, "T_CVol",, "T") -> 175835 | L121: 121 | M121: =RANK($J121,$J$1:J$169)+COUNTIF($J$1:J121,J121)-1 -> 30 | N121: S.US.PCVX | O121: S.US.ARNA | P121: =RTD("cqg.rtd", ,"ContractData",O121, "PerCentNetLastTrade",, "T")/100 -> -0.01153746435 | Q121: https://finance.yahoo.com/quote/ARNA | T121: 0.01153746435 | V121: =RTD("cqg.rtd", ,"ContractData",O121, "LongDescription",, "T") -> Arena Pharmaceuticals Inc | Y121: -0.01153746435 | AB121: 0 | AE121: 0.01153746435 | AF121: -0.01153746435
A122: =RTD("cqg.rtd", ,"ContractData",C122, "LongDescription",, "T") -> Precigen, Inc. | B122: S.US.PGEN | C122: S.US.PGEN | D122: =RTD("cqg.rtd", ,"ContractData",C122, "LongDescription",, "T") -> Precigen, Inc. | E122: =RTD("cqg.rtd", ,"ContractData",C122, "Open",, "T") -> 9.11 | F122: =RTD("cqg.rtd", ,"ContractData",C122, "High",, "T") -> 9.25 | G122: =RTD("cqg.rtd", ,"ContractData",C122, "Low",, "T") -> 8.72 | H122: =RTD("cqg.rtd", ,"ContractData",C122, "LastTradeToday",, "T") -> 9.04 | I122: =RTD("cqg.rtd", ,"ContractData",C122, "NetLastTradeToday",, "T") -> -0.26 | J122: =RTD("cqg.rtd", ,"ContractData",C122, "PerCentNetLastTrade",, "T")/100 -> -0.02795698925 | K122: =RTD("cqg.rtd", ,"ContractData", C122, "T_CVol",, "T") -> 421659 | L122: 122 | M122: =RANK($J122,$J$1:J$169)+COUNTIF($J$1:J122,J122)-1 -> 147 | N122: S.US.PGEN | O122: S.US.APLS | P122: =RTD("cqg.rtd", ,"ContractData",O122, "PerCentNetLastTrade",, "T")/100 -> -0.01202300052 | Q122: https://finance.yahoo.com/quote/APLS | T122: 0.01202300052 | V122: =RTD("cqg.rtd", ,"ContractData",O122, "LongDescription",, "T") -> Apellis Pharmaceuticals, Inc. | Y122: -0.01202300052 | AB122: 0 | AE122: 0.01202300052 | AF122: -0.01202300052
A123: =RTD("cqg.rtd", ,"ContractData",C123, "LongDescription",, "T") -> PTC Therapeutics, Inc | B123: S.US.PTCT | C123: S.US.PTCT | D123: =RTD("cqg.rtd", ,"ContractData",C123, "LongDescription",, "T") -> PTC Therapeutics, Inc | E123: =RTD("cqg.rtd", ,"ContractData",C123, "Open",, "T") -> 66.36 | F123: =RTD("cqg.rtd", ,"ContractData",C123, "High",, "T") -> 67.81 | G123: =RTD("cqg.rtd", ,"ContractData",C123, "Low",, "T") -> 66.32 | H123: =RTD("cqg.rtd", ,"ContractData",C123, "LastTradeToday",, "T") -> 67.07 | I123: =RTD("cqg.rtd", ,"ContractData",C123, "NetLastTradeToday",, "T") -> -0.51 | J123: =RTD("cqg.rtd", ,"ContractData",C123, "PerCentNetLastTrade",, "T")/100 -> -0.007546611423 | K123: =RTD("cqg.rtd", ,"ContractData", C123, "T_CVol",, "T") -> 116850 | L123: 123 | M123: =RANK($J123,$J$1:J$169)+COUNTIF($J$1:J123,J123)-1 -> 111 | N123: S.US.PTCT | O123: S.US.RYTM | P123: =RTD("cqg.rtd", ,"ContractData",O123, "PerCentNetLastTrade",, "T")/100 -> -0.01298701299 | Q123: https://finance.yahoo.com/quote/RYTM | T123: 0.01298701299 | V123: =RTD("cqg.rtd", ,"ContractData",O123, "LongDescription",, "T") -> Rhythm Pharmaceuticals, Inc. | Y123: -0.01298701299 | AB123: 0 | AE123: 0.01298701299 | AF123: -0.01298701299
A124: =RTD("cqg.rtd", ,"ContractData",C124, "LongDescription",, "T") -> Protagonist Therapeutics, Inc. | B124: S.US.PTGX | C124: S.US.PTGX | D124: =RTD("cqg.rtd", ,"ContractData",C124, "LongDescription",, "T") -> Protagonist Therapeutics, Inc. | E124: =RTD("cqg.rtd", ,"ContractData",C124, "Open",, "T") -> 20.39 | F124: =RTD("cqg.rtd", ,"ContractData",C124, "High",, "T") -> 21.18 | G124: =RTD("cqg.rtd", ,"ContractData",C124, "Low",, "T") -> 20.12 | H124: =RTD("cqg.rtd", ,"ContractData",C124, "LastTradeToday",, "T") -> 20.96 | I124: =RTD("cqg.rtd", ,"ContractData",C124, "NetLastTradeToday",, "T") -> 0.31 | J124: =RTD("cqg.rtd", ,"ContractData",C124, "PerCentNetLastTrade",, "T")/100 -> 0.01501210654 | K124: =RTD("cqg.rtd", ,"ContractData", C124, "T_CVol",, "T") -> 93367 | L124: 124 | M124: =RANK($J124,$J$1:J$169)+COUNTIF($J$1:J124,J124)-1 -> 44 | N124: S.US.PTGX | O124: S.US.CRDF | P124: =RTD("cqg.rtd", ,"ContractData",O124, "PerCentNetLastTrade",, "T")/100 -> -0.01419213974 | Q124: https://finance.yahoo.com/quote/CRDF | T124: 0.01419213974 | V124: =RTD("cqg.rtd", ,"ContractData",O124, "LongDescription",, "T") -> Cardiff Oncology, Inc. | Y124: -0.01419213974 | AB124: 0 | AE124: 0.01419213974 | AF124: -0.01419213974
A125: =RTD("cqg.rtd", ,"ContractData",C125, "LongDescription",, "T") -> uniQure N.V. | B125: S.US.QURE | C125: S.US.QURE | D125: =RTD("cqg.rtd", ,"ContractData",C125, "LongDescription",, "T") -> uniQure N.V. | E125: =RTD("cqg.rtd", ,"ContractData",C125, "Open",, "T") -> 40.85 | F125: =RTD("cqg.rtd", ,"ContractData",C125, "High",, "T") -> 40.86 | G125: =RTD("cqg.rtd", ,"ContractData",C125, "Low",, "T") -> 39.56 | H125: =RTD("cqg.rtd", ,"ContractData",C125, "LastTradeToday",, "T") -> 40.07 | I125: =RTD("cqg.rtd", ,"ContractData",C125, "NetLastTradeToday",, "T") -> -0.91 | J125: =RTD("cqg.rtd", ,"ContractData",C125, "PerCentNetLastTrade",, "T")/100 -> -0.02220595412 | K125: =RTD("cqg.rtd", ,"ContractData", C125, "T_CVol",, "T") -> 193614 | L125: 125 | M125: =RANK($J125,$J$1:J$169)+COUNTIF($J$1:J125,J125)-1 -> 137 | N125: S.US.QURE | O125: S.US.EGRX | P125: =RTD("cqg.rtd", ,"ContractData",O125, "PerCentNetLastTrade",, "T")/100 -> -0.01428858925 | Q125: https://finance.yahoo.com/quote/EGRX | T125: 0.01428858925 | V125: =RTD("cqg.rtd", ,"ContractData",O125, "LongDescription",, "T") -> Eagle Pharmaceuticals, Inc. | Y125: -0.01428858925 | AB125: 0 | AE125: 0.01428858925 | AF125: -0.01428858925
A126: =RTD("cqg.rtd", ,"ContractData",C126, "LongDescription",, "T") -> Ultragenyx Pharmaceutical Inc. | B126: S.US.RARE | C126: S.US.RARE | D126: =RTD("cqg.rtd", ,"ContractData",C126, "LongDescription",, "T") -> Ultragenyx Pharmaceutical Inc. | E126: =RTD("cqg.rtd", ,"ContractData",C126, "Open",, "T") -> 150.83 | F126: =RTD("cqg.rtd", ,"ContractData",C126, "High",, "T") -> 152.8 | G126: =RTD("cqg.rtd", ,"ContractData",C126, "Low",, "T") -> 140.4 | H126: =RTD("cqg.rtd", ,"ContractData",C126, "LastTradeToday",, "T") -> 142.41 | I126: =RTD("cqg.rtd", ,"ContractData",C126, "NetLastTradeToday",, "T") -> -8.18 | J126: =RTD("cqg.rtd", ,"ContractData",C126, "PerCentNetLastTrade",, "T")/100 -> -0.05431967594 | K126: =RTD("cqg.rtd", ,"ContractData", C126, "T_CVol",, "T") -> 401924 | L126: 126 | M126: =RANK($J126,$J$1:J$169)+COUNTIF($J$1:J126,J126)-1 -> 163 | N126: S.US.RARE | O126: S.US.ATNX | P126: =RTD("cqg.rtd", ,"ContractData",O126, "PerCentNetLastTrade",, "T")/100 -> -0.01459227468 | Q126: https://finance.yahoo.com/quote/ATNX | T126: 0.01459227468 | V126: =RTD("cqg.rtd", ,"ContractData",O126, "LongDescription",, "T") -> Athenex, Inc. | Y126: -0.01459227468 | AB126: 0 | AE126: 0.01459227468 | AF126: -0.01459227468
A127: =RTD("cqg.rtd", ,"ContractData",C127, "LongDescription",, "T") -> Avita Medical Limited | B127: S.US.RCEL | C127: S.US.RCEL | D127: =RTD("cqg.rtd", ,"ContractData",C127, "LongDescription",, "T") -> Avita Medical Limited | E127: =RTD("cqg.rtd", ,"ContractData",C127, "Open",, "T") -> 18.49 | F127: =RTD("cqg.rtd", ,"ContractData",C127, "High",, "T") -> 18.65 | G127: =RTD("cqg.rtd", ,"ContractData",C127, "Low",, "T") -> 18.25 | H127: =RTD("cqg.rtd", ,"ContractData",C127, "LastTradeToday",, "T") -> 18.38 | I127: =RTD("cqg.rtd", ,"ContractData",C127, "NetLastTradeToday",, "T") -> -0.46 | J127: =RTD("cqg.rtd", ,"ContractData",C127, "PerCentNetLastTrade",, "T")/100 -> -0.02441613588 | K127: =RTD("cqg.rtd", ,"ContractData", C127, "T_CVol",, "T") -> 49772 | L127: 127 | M127: =RANK($J127,$J$1:J$169)+COUNTIF($J$1:J127,J127)-1 -> 140 | N127: S.US.RCEL | O127: S.US.TPTX | P127: =RTD("cqg.rtd", ,"ContractData",O127, "PerCentNetLastTrade",, "T")/100 -> -0.01548790723 | Q127: https://finance.yahoo.com/quote/TPTX | T127: 0.01548790723 | V127: =RTD("cqg.rtd", ,"ContractData",O127, "LongDescription",, "T") -> Turning Point Therapeutics, Inc. | Y127: -0.01548790723 | AB127: 0 | AE127: 0.01548790723 | AF127: -0.01548790723
A128: =RTD("cqg.rtd", ,"ContractData",C128, "LongDescription",, "T") -> Rocket Pharmaceuticals, Inc. | B128: S.US.RCKT | C128: S.US.RCKT | D128: =RTD("cqg.rtd", ,"ContractData",C128, "LongDescription",, "T") -> Rocket Pharmaceuticals, Inc. | E128: =RTD("cqg.rtd", ,"ContractData",C128, "Open",, "T") -> 56 | F128: =RTD("cqg.rtd", ,"ContractData",C128, "High",, "T") -> 57.46 | G128: =RTD("cqg.rtd", ,"ContractData",C128, "Low",, "T") -> 55.06 | H128: =RTD("cqg.rtd", ,"ContractData",C128, "LastTradeToday",, "T") -> 55.5 | I128: =RTD("cqg.rtd", ,"ContractData",C128, "NetLastTradeToday",, "T") -> -1.42 | J128: =RTD("cqg.rtd", ,"ContractData",C128, "PerCentNetLastTrade",, "T")/100 -> -0.02494729445 | K128: =RTD("cqg.rtd", ,"ContractData", C128, "T_CVol",, "T") -> 177552 | L128: 128 | M128: =RANK($J128,$J$1:J$169)+COUNTIF($J$1:J128,J128)-1 -> 142 | N128: S.US.RCKT | O128: S.US.SPPI | P128: =RTD("cqg.rtd", ,"ContractData",O128, "PerCentNetLastTrade",, "T")/100 -> -0.01608579088 | Q128: https://finance.yahoo.com/quote/SPPI | T128: 0.01608579088 | V128: =RTD("cqg.rtd", ,"ContractData",O128, "LongDescription",, "T") -> Spectrum Pharmaceuticals Inc | Y128: -0.01608579088 | AB128: 0 | AE128: 0.01608579088 | AF128: -0.01608579088
A129: =RTD("cqg.rtd", ,"ContractData",C129, "LongDescription",, "T") -> Arcus Biosciences, Inc. | B129: S.US.RCUS | C129: S.US.RCUS | D129: =RTD("cqg.rtd", ,"ContractData",C129, "LongDescription",, "T") -> Arcus Biosciences, Inc. | E129: =RTD("cqg.rtd", ,"ContractData",C129, "Open",, "T") -> 30.2 | F129: =RTD("cqg.rtd", ,"ContractData",C129, "High",, "T") -> 32.97 | G129: =RTD("cqg.rtd", ,"ContractData",C129, "Low",, "T") -> 29.57 | H129: =RTD("cqg.rtd", ,"ContractData",C129, "LastTradeToday",, "T") -> 32.78 | I129: =RTD("cqg.rtd", ,"ContractData",C129, "NetLastTradeToday",, "T") -> 1.95 | J129: =RTD("cqg.rtd", ,"ContractData",C129, "PerCentNetLastTrade",, "T")/100 -> 0.06325008109 | K129: =RTD("cqg.rtd", ,"ContractData", C129, "T_CVol",, "T") -> 249722 | L129: 129 | M129: =RANK($J129,$J$1:J$169)+COUNTIF($J$1:J129,J129)-1 -> 8 | N129: S.US.RCUS | O129: S.US.MRTX | P129: =RTD("cqg.rtd", ,"ContractData",O129, "PerCentNetLastTrade",, "T")/100 -> -0.01687511495 | Q129: https://finance.yahoo.com/quote/MRTX | T129: 0.01687511495 | V129: =RTD("cqg.rtd", ,"ContractData",O129, "LongDescription",, "T") -> Mirati Therapeutics, Inc. | Y129: -0.01687511495 | AB129: 0 | AE129: 0.01687511495 | AF129: -0.01687511495
A130: =RTD("cqg.rtd", ,"ContractData",C130, "LongDescription",, "T") -> Radius Health, Inc. | B130: S.US.RDUS | C130: S.US.RDUS | D130: =RTD("cqg.rtd", ,"ContractData",C130, "LongDescription",, "T") -> Radius Health, Inc. | E130: =RTD("cqg.rtd", ,"ContractData",C130, "Open",, "T") -> 21.81 | F130: =RTD("cqg.rtd", ,"ContractData",C130, "High",, "T") -> 22.06 | G130: =RTD("cqg.rtd", ,"ContractData",C130, "Low",, "T") -> 21.22 | H130: =RTD("cqg.rtd", ,"ContractData",C130, "LastTradeToday",, "T") -> 21.87 | I130: =RTD("cqg.rtd", ,"ContractData",C130, "NetLastTradeToday",, "T") -> 0.12 | J130: =RTD("cqg.rtd", ,"ContractData",C130, "PerCentNetLastTrade",, "T")/100 -> 0.005517241379 | K130: =RTD("cqg.rtd", ,"ContractData", C130, "T_CVol",, "T") -> 121206 | L130: 130 | M130: =RANK($J130,$J$1:J$169)+COUNTIF($J$1:J130,J130)-1 -> 66 | N130: =C130 -> S.US.RDUS | O130: =VLOOKUP($L130,$M$1:$N$169,2,FALSE) -> S.US.INO | P130: =RTD("cqg.rtd", ,"ContractData",O130, "PerCentNetLastTrade",, "T")/100 -> -0.01843817787 | Q130: https://finance.yahoo.com/quote/INO | T130: 0.01843817787 | V130: =RTD("cqg.rtd", ,"ContractData",O130, "LongDescription",, "T") -> Inovio Pharmaceutical, Inc. | Y130: -0.01843817787 | AB130: 0 | AE130: 0.01843817787 | AF130: -0.01843817787
A131: =RTD("cqg.rtd", ,"ContractData",C131, "LongDescription",, "T") -> Regeneron Pharm Inc | B131: S.US.REGN | C131: S.US.REGN | D131: =RTD("cqg.rtd", ,"ContractData",C131, "LongDescription",, "T") -> Regeneron Pharm Inc | E131: =RTD("cqg.rtd", ,"ContractData",C131, "Open",, "T") -> 501 | F131: =RTD("cqg.rtd", ,"ContractData",C131, "High",, "T") -> 502 | G131: =RTD("cqg.rtd", ,"ContractData",C131, "Low",, "T") -> 489.35 | H131: =RTD("cqg.rtd", ,"ContractData",C131, "LastTradeToday",, "T") -> 497.42 | I131: =RTD("cqg.rtd", ,"ContractData",C131, "NetLastTradeToday",, "T") -> -1.31 | J131: =RTD("cqg.rtd", ,"ContractData",C131, "PerCentNetLastTrade",, "T")/100 -> -0.002626671746 | K131: =RTD("cqg.rtd", ,"ContractData", C131, "T_CVol",, "T") -> 577727 | L131: =L130+1 -> 131 | M131: =RANK($J131,$J$1:J$169)+COUNTIF($J$1:J131,J131)-1 -> 93 | N131: S.US.REGN | O131: S.US.SWTX | P131: =RTD("cqg.rtd", ,"ContractData",O131, "PerCentNetLastTrade",, "T")/100 -> -0.01895021808 | Q131: https://finance.yahoo.com/quote/SWTX | T131: 0.01895021808 | V131: =RTD("cqg.rtd", ,"ContractData",O131, "LongDescription",, "T") -> SpringWorks Therapeutics, Inc. | Y131: -0.01895021808 | AB131: 0 | AE131: 0.01895021808 | AF131: -0.01895021808
A132: =RTD("cqg.rtd", ,"ContractData",C132, "LongDescription",, "T") -> Replimune Group, Inc. | B132: S.US.REPL | C132: S.US.REPL | D132: =RTD("cqg.rtd", ,"ContractData",C132, "LongDescription",, "T") -> Replimune Group, Inc. | E132: =RTD("cqg.rtd", ,"ContractData",C132, "Open",, "T") -> 42.73 | F132: =RTD("cqg.rtd", ,"ContractData",C132, "High",, "T") -> 43.16 | G132: =RTD("cqg.rtd", ,"ContractData",C132, "Low",, "T") -> 41.11 | H132: =RTD("cqg.rtd", ,"ContractData",C132, "LastTradeToday",, "T") -> 42.3 | I132: =RTD("cqg.rtd", ,"ContractData",C132, "NetLastTradeToday",, "T") -> -0.48 | J132: =RTD("cqg.rtd", ,"ContractData",C132, "PerCentNetLastTrade",, "T")/100 -> -0.01122019635 | K132: =RTD("cqg.rtd", ,"ContractData", C132, "T_CVol",, "T") -> 103217 | L132: 132 | M132: =RANK($J132,$J$1:J$169)+COUNTIF($J$1:J132,J132)-1 -> 119 | N132: S.US.REPL | O132: S.US.SRNE | P132: =RTD("cqg.rtd", ,"ContractData",O132, "PerCentNetLastTrade",, "T")/100 -> -0.02016129032 | Q132: https://finance.yahoo.com/quote/SRNE | T132: 0.02016129032 | V132: =RTD("cqg.rtd", ,"ContractData",O132, "LongDescription",, "T") -> Sorrento Therapeutics, Inc. | Y132: -0.02016129032 | AB132: 0 | AE132: 0.02016129032 | AF132: -0.02016129032
A133: =RTD("cqg.rtd", ,"ContractData",C133, "LongDescription",, "T") -> REGENXBIO Inc. | B133: S.US.RGNX | C133: S.US.RGNX | D133: =RTD("cqg.rtd", ,"ContractData",C133, "LongDescription",, "T") -> REGENXBIO Inc. | E133: =RTD("cqg.rtd", ,"ContractData",C133, "Open",, "T") -> 46.84 | F133: =RTD("cqg.rtd", ,"ContractData",C133, "High",, "T") -> 49.43 | G133: =RTD("cqg.rtd", ,"ContractData",C133, "Low",, "T") -> 46.05 | H133: =RTD("cqg.rtd", ,"ContractData",C133, "LastTradeToday",, "T") -> 48.91 | I133: =RTD("cqg.rtd", ,"ContractData",C133, "NetLastTradeToday",, "T") -> 1.95 | J133: =RTD("cqg.rtd", ,"ContractData",C133, "PerCentNetLastTrade",, "T")/100 -> 0.04152470187 | K133: =RTD("cqg.rtd", ,"ContractData", C133, "T_CVol",, "T") -> 704879 | L133: 133 | M133: =RANK($J133,$J$1:J$169)+COUNTIF($J$1:J133,J133)-1 -> 14 | N133: S.US.RGNX | O133: S.US.KDMN | P133: =RTD("cqg.rtd", ,"ContractData",O133, "PerCentNetLastTrade",, "T")/100 -> -0.0202020202 | Q133: https://finance.yahoo.com/quote/KDMN | T133: 0.0202020202 | V133: =RTD("cqg.rtd", ,"ContractData",O133, "LongDescription",, "T") -> Kadmon Holdings, LLC | Y133: -0.0202020202 | AB133: 0 | AE133: 0.0202020202 | AF133: -0.0202020202
A134: =RTD("cqg.rtd", ,"ContractData",C134, "LongDescription",, "T") -> Rigel Pharmaceuticals Inc | B134: S.US.RIGL | C134: S.US.RIGL | D134: =RTD("cqg.rtd", ,"ContractData",C134, "LongDescription",, "T") -> Rigel Pharmaceuticals Inc | E134: =RTD("cqg.rtd", ,"ContractData",C134, "Open",, "T") -> 3.6 | F134: =RTD("cqg.rtd", ,"ContractData",C134, "High",, "T") -> 3.69 | G134: =RTD("cqg.rtd", ,"ContractData",C134, "Low",, "T") -> 3.47 | H134: =RTD("cqg.rtd", ,"ContractData",C134, "LastTradeToday",, "T") -> 3.49 | I134: =RTD("cqg.rtd", ,"ContractData",C134, "NetLastTradeToday",, "T") -> -0.09 | J134: =RTD("cqg.rtd", ,"ContractData",C134, "PerCentNetLastTrade",, "T")/100 -> -0.0251396648 | K134: =RTD("cqg.rtd", ,"ContractData", C134, "T_CVol",, "T") -> 1055225 | L134: 134 | M134: =RANK($J134,$J$1:J$169)+COUNTIF($J$1:J134,J134)-1 -> 143 | N134: S.US.RIGL | O134: S.US.EPZM | P134: =RTD("cqg.rtd", ,"ContractData",O134, "PerCentNetLastTrade",, "T")/100 -> -0.02029220779 | Q134: https://finance.yahoo.com/quote/EPZM | T134: 0.02029220779 | V134: =RTD("cqg.rtd", ,"ContractData",O134, "LongDescription",, "T") -> Epizyme, Inc. | Y134: -0.02029220779 | AB134: 0 | AE134: 0.02029220779 | AF134: -0.02029220779
A135: =RTD("cqg.rtd", ,"ContractData",C135, "LongDescription",, "T") -> Relay Therapeutics, Inc. | B135: S.US.RLAY | C135: S.US.RLAY | D135: =RTD("cqg.rtd", ,"ContractData",C135, "LongDescription",, "T") -> Relay Therapeutics, Inc. | E135: =RTD("cqg.rtd", ,"ContractData",C135, "Open",, "T") -> 39.7 | F135: =RTD("cqg.rtd", ,"ContractData",C135, "High",, "T") -> 41.11 | G135: =RTD("cqg.rtd", ,"ContractData",C135, "Low",, "T") -> 38.68 | H135: =RTD("cqg.rtd", ,"ContractData",C135, "LastTradeToday",, "T") -> 40.83 | I135: =RTD("cqg.rtd", ,"ContractData",C135, "NetLastTradeToday",, "T") -> 0.16 | J135: =RTD("cqg.rtd", ,"ContractData",C135, "PerCentNetLastTrade",, "T")/100 -> 0.003934103762 | K135: =RTD("cqg.rtd", ,"ContractData", C135, "T_CVol",, "T") -> 267144 | L135: 135 | M135: =RANK($J135,$J$1:J$169)+COUNTIF($J$1:J135,J135)-1 -> 71 | N135: S.US.RLAY | O135: S.US.TGTX | P135: =RTD("cqg.rtd", ,"ContractData",O135, "PerCentNetLastTrade",, "T")/100 -> -0.02111111111 | Q135: https://finance.yahoo.com/quote/TGTX | T135: 0.02111111111 | V135: =RTD("cqg.rtd", ,"ContractData",O135, "LongDescription",, "T") -> TG Therapeutics, Inc. | Y135: -0.02111111111 | AB135: 0 | AE135: 0.02111111111 | AF135: -0.02111111111
A136: =RTD("cqg.rtd", ,"ContractData",C136, "LongDescription",, "T") -> Avidity Biosciences, Inc. | B136: S.US.RNA | C136: S.US.RNA | D136: =RTD("cqg.rtd", ,"ContractData",C136, "LongDescription",, "T") -> Avidity Biosciences, Inc. | E136: =RTD("cqg.rtd", ,"ContractData",C136, "Open",, "T") -> 27.23 | F136: =RTD("cqg.rtd", ,"ContractData",C136, "High",, "T") -> 28.64 | G136: =RTD("cqg.rtd", ,"ContractData",C136, "Low",, "T") -> 27 | H136: =RTD("cqg.rtd", ,"ContractData",C136, "LastTradeToday",, "T") -> 27.21 | I136: =RTD("cqg.rtd", ,"ContractData",C136, "NetLastTradeToday",, "T") -> -0.94 | J136: =RTD("cqg.rtd", ,"ContractData",C136, "PerCentNetLastTrade",, "T")/100 -> -0.03339253996 | K136: =RTD("cqg.rtd", ,"ContractData", C136, "T_CVol",, "T") -> 52804 | L136: 136 | M136: =RANK($J136,$J$1:J$169)+COUNTIF($J$1:J136,J136)-1 -> 153 | N136: S.US.RNA | O136: S.US.NTLA | P136: =RTD("cqg.rtd", ,"ContractData",O136, "PerCentNetLastTrade",, "T")/100 -> -0.02118427769 | Q136: https://finance.yahoo.com/quote/NTLA | T136: 0.02118427769 | V136: =RTD("cqg.rtd", ,"ContractData",O136, "LongDescription",, "T") -> Intellia Therapeutics, Inc. | Y136: -0.02118427769 | AB136: 0 | AE136: 0.02118427769 | AF136: -0.02118427769
A137: =RTD("cqg.rtd", ,"ContractData",C137, "LongDescription",, "T") -> Revolution Medicines, Inc. | B137: S.US.RVMD | C137: S.US.RVMD | D137: =RTD("cqg.rtd", ,"ContractData",C137, "LongDescription",, "T") -> Revolution Medicines, Inc. | E137: =RTD("cqg.rtd", ,"ContractData",C137, "Open",, "T") -> 40.54 | F137: =RTD("cqg.rtd", ,"ContractData",C137, "High",, "T") -> 41.2 | G137: =RTD("cqg.rtd", ,"ContractData",C137, "Low",, "T") -> 38.37 | H137: =RTD("cqg.rtd", ,"ContractData",C137, "LastTradeToday",, "T") -> 38.5 | I137: =RTD("cqg.rtd", ,"ContractData",C137, "NetLastTradeToday",, "T") -> -1.82 | J137: =RTD("cqg.rtd", ,"ContractData",C137, "PerCentNetLastTrade",, "T")/100 -> -0.04513888889 | K137: =RTD("cqg.rtd", ,"ContractData", C137, "T_CVol",, "T") -> 144683 | L137: 137 | M137: =RANK($J137,$J$1:J$169)+COUNTIF($J$1:J137,J137)-1 -> 161 | N137: S.US.RVMD | O137: S.US.QURE | P137: =RTD("cqg.rtd", ,"ContractData",O137, "PerCentNetLastTrade",, "T")/100 -> -0.02220595412 | Q137: https://finance.yahoo.com/quote/QURE | T137: 0.02220595412 | V137: =RTD("cqg.rtd", ,"ContractData",O137, "LongDescription",, "T") -> uniQure N.V. | Y137: -0.02220595412 | AB137: 0 | AE137: 0.02220595412 | AF137: -0.02220595412
A138: =RTD("cqg.rtd", ,"ContractData",C138, "LongDescription",, "T") -> Rhythm Pharmaceuticals, Inc. | B138: S.US.RYTM | C138: S.US.RYTM | D138: =RTD("cqg.rtd", ,"ContractData",C138, "LongDescription",, "T") -> Rhythm Pharmaceuticals, Inc. | E138: =RTD("cqg.rtd", ,"ContractData",C138, "Open",, "T") -> 33.17 | F138: =RTD("cqg.rtd", ,"ContractData",C138, "High",, "T") -> 33.54 | G138: =RTD("cqg.rtd", ,"ContractData",C138, "Low",, "T") -> 32.55 | H138: =RTD("cqg.rtd", ,"ContractData",C138, "LastTradeToday",, "T") -> 33.44 | I138: =RTD("cqg.rtd", ,"ContractData",C138, "NetLastTradeToday",, "T") -> -0.44 | J138: =RTD("cqg.rtd", ,"ContractData",C138, "PerCentNetLastTrade",, "T")/100 -> -0.01298701299 | K138: =RTD("cqg.rtd", ,"ContractData", C138, "T_CVol",, "T") -> 170293 | L138: 138 | M138: =RANK($J138,$J$1:J$169)+COUNTIF($J$1:J138,J138)-1 -> 123 | N138: S.US.RYTM | O138: S.US.FREQ | P138: =RTD("cqg.rtd", ,"ContractData",O138, "PerCentNetLastTrade",, "T")/100 -> -0.02302357836 | Q138: https://finance.yahoo.com/quote/FREQ | T138: 0.02302357836 | V138: =RTD("cqg.rtd", ,"ContractData",O138, "LongDescription",, "T") -> Frequency Therapeutics, Inc. | Y138: -0.02302357836 | AB138: 0 | AE138: 0.02302357836 | AF138: -0.02302357836
A139: =RTD("cqg.rtd", ,"ContractData",C139, "LongDescription",, "T") -> Sage Therapeutics, Inc. | B139: S.US.SAGE | C139: S.US.SAGE | D139: =RTD("cqg.rtd", ,"ContractData",C139, "LongDescription",, "T") -> Sage Therapeutics, Inc. | E139: =RTD("cqg.rtd", ,"ContractData",C139, "Open",, "T") -> 90.84 | F139: =RTD("cqg.rtd", ,"ContractData",C139, "High",, "T") -> 92.19 | G139: =RTD("cqg.rtd", ,"ContractData",C139, "Low",, "T") -> 89.17 | H139: =RTD("cqg.rtd", ,"ContractData",C139, "LastTradeToday",, "T") -> 92.07 | I139: =RTD("cqg.rtd", ,"ContractData",C139, "NetLastTradeToday",, "T") -> 1.19 | J139: =RTD("cqg.rtd", ,"ContractData",C139, "PerCentNetLastTrade",, "T")/100 -> 0.01309419014 | K139: =RTD("cqg.rtd", ,"ContractData", C139, "T_CVol",, "T") -> 306174 | L139: 139 | M139: =RANK($J139,$J$1:J$169)+COUNTIF($J$1:J139,J139)-1 -> 47 | N139: S.US.SAGE | O139: S.US.MCRB | P139: =RTD("cqg.rtd", ,"ContractData",O139, "PerCentNetLastTrade",, "T")/100 -> -0.0231884058 | Q139: https://finance.yahoo.com/quote/MCRB | T139: 0.0231884058 | V139: =RTD("cqg.rtd", ,"ContractData",O139, "LongDescription",, "T") -> Seres Therapeutics, Inc. | Y139: -0.0231884058 | AB139: 0 | AE139: 0.0231884058 | AF139: -0.0231884058
A140: =RTD("cqg.rtd", ,"ContractData",C140, "LongDescription",, "T") -> Seagen Inc. | B140: S.US.SGEN | C140: S.US.SGEN | D140: =RTD("cqg.rtd", ,"ContractData",C140, "LongDescription",, "T") -> Seagen Inc. | E140: =RTD("cqg.rtd", ,"ContractData",C140, "Open",, "T") -> 177.75 | F140: =RTD("cqg.rtd", ,"ContractData",C140, "High",, "T") -> 181.57 | G140: =RTD("cqg.rtd", ,"ContractData",C140, "Low",, "T") -> 177.31 | H140: =RTD("cqg.rtd", ,"ContractData",C140, "LastTradeToday",, "T") -> 179.69 | I140: =RTD("cqg.rtd", ,"ContractData",C140, "NetLastTradeToday",, "T") -> 2.03 | J140: =RTD("cqg.rtd", ,"ContractData",C140, "PerCentNetLastTrade",, "T")/100 -> 0.01142631994 | K140: =RTD("cqg.rtd", ,"ContractData", C140, "T_CVol",, "T") -> 238326 | L140: 140 | M140: =RANK($J140,$J$1:J$169)+COUNTIF($J$1:J140,J140)-1 -> 51 | N140: S.US.SGEN | O140: S.US.RCEL | P140: =RTD("cqg.rtd", ,"ContractData",O140, "PerCentNetLastTrade",, "T")/100 -> -0.02441613588 | Q140: https://finance.yahoo.com/quote/RCEL | T140: 0.02441613588 | V140: =RTD("cqg.rtd", ,"ContractData",O140, "LongDescription",, "T") -> Avita Medical Limited | Y140: -0.02441613588 | AB140: 0 | AE140: 0.02441613588 | AF140: -0.02441613588
A141: =RTD("cqg.rtd", ,"ContractData",C141, "LongDescription",, "T") -> Sangamo Therapeutics, Inc. | B141: S.US.SGMO | C141: S.US.SGMO | D141: =RTD("cqg.rtd", ,"ContractData",C141, "LongDescription",, "T") -> Sangamo Therapeutics, Inc. | E141: =RTD("cqg.rtd", ,"ContractData",C141, "Open",, "T") -> 16.95 | F141: =RTD("cqg.rtd", ,"ContractData",C141, "High",, "T") -> 16.96 | G141: =RTD("cqg.rtd", ,"ContractData",C141, "Low",, "T") -> 16.02 | H141: =RTD("cqg.rtd", ,"ContractData",C141, "LastTradeToday",, "T") -> 16.52 | I141: =RTD("cqg.rtd", ,"ContractData",C141, "NetLastTradeToday",, "T") -> -0.46 | J141: =RTD("cqg.rtd", ,"ContractData",C141, "PerCentNetLastTrade",, "T")/100 -> -0.02709069494 | K141: =RTD("cqg.rtd", ,"ContractData", C141, "T_CVol",, "T") -> 613706 | L141: 141 | M141: =RANK($J141,$J$1:J$169)+COUNTIF($J$1:J141,J141)-1 -> 146 | N141: S.US.SGMO | O141: S.US.VXRT | P141: =RTD("cqg.rtd", ,"ContractData",O141, "PerCentNetLastTrade",, "T")/100 -> -0.02442748092 | Q141: https://finance.yahoo.com/quote/VXRT | T141: 0.02442748092 | V141: =RTD("cqg.rtd", ,"ContractData",O141, "LongDescription",, "T") -> Vaxart, Inc | Y141: -0.02442748092 | AB141: 0 | AE141: 0.02442748092 | AF141: -0.02442748092
A142: =RTD("cqg.rtd", ,"ContractData",C142, "LongDescription",, "T") -> Syndax Pharmaceuticals, Inc. | B142: S.US.SNDX | C142: S.US.SNDX | D142: =RTD("cqg.rtd", ,"ContractData",C142, "LongDescription",, "T") -> Syndax Pharmaceuticals, Inc. | E142: =RTD("cqg.rtd", ,"ContractData",C142, "Open",, "T") -> 23.5 | F142: =RTD("cqg.rtd", ,"ContractData",C142, "High",, "T") -> 24.11 | G142: =RTD("cqg.rtd", ,"ContractData",C142, "Low",, "T") -> 22.84 | H142: =RTD("cqg.rtd", ,"ContractData",C142, "LastTradeToday",, "T") -> 24 | I142: =RTD("cqg.rtd", ,"ContractData",C142, "NetLastTradeToday",, "T") -> 0.44 | J142: =RTD("cqg.rtd", ,"ContractData",C142, "PerCentNetLastTrade",, "T")/100 -> 0.01867572156 | K142: =RTD("cqg.rtd", ,"ContractData", C142, "T_CVol",, "T") -> 111205 | L142: 142 | M142: =RANK($J142,$J$1:J$169)+COUNTIF($J$1:J142,J142)-1 -> 37 | N142: S.US.SNDX | O142: S.US.RCKT | P142: =RTD("cqg.rtd", ,"ContractData",O142, "PerCentNetLastTrade",, "T")/100 -> -0.02494729445 | Q142: https://finance.yahoo.com/quote/RCKT | T142: 0.02494729445 | V142: =RTD("cqg.rtd", ,"ContractData",O142, "LongDescription",, "T") -> Rocket Pharmaceuticals, Inc. | Y142: -0.02494729445 | AB142: 0 | AE142: 0.02494729445 | AF142: -0.02494729445
A143: =RTD("cqg.rtd", ,"ContractData",C143, "LongDescription",, "T") -> Spectrum Pharmaceuticals Inc | B143: S.US.SPPI | C143: S.US.SPPI | D143: =RTD("cqg.rtd", ,"ContractData",C143, "LongDescription",, "T") -> Spectrum Pharmaceuticals Inc | E143: =RTD("cqg.rtd", ,"ContractData",C143, "Open",, "T") -> 3.7 | F143: =RTD("cqg.rtd", ,"ContractData",C143, "High",, "T") -> 3.73 | G143: =RTD("cqg.rtd", ,"ContractData",C143, "Low",, "T") -> 3.6 | H143: =RTD("cqg.rtd", ,"ContractData",C143, "LastTradeToday",, "T") -> 3.67 | I143: =RTD("cqg.rtd", ,"ContractData",C143, "NetLastTradeToday",, "T") -> -0.06 | J143: =RTD("cqg.rtd", ,"ContractData",C143, "PerCentNetLastTrade",, "T")/100 -> -0.01608579088 | K143: =RTD("cqg.rtd", ,"ContractData", C143, "T_CVol",, "T") -> 665010 | L143: 143 | M143: =RANK($J143,$J$1:J$169)+COUNTIF($J$1:J143,J143)-1 -> 128 | N143: S.US.SPPI | O143: S.US.RIGL | P143: =RTD("cqg.rtd", ,"ContractData",O143, "PerCentNetLastTrade",, "T")/100 -> -0.0251396648 | Q143: https://finance.yahoo.com/quote/RIGL | T143: 0.0251396648 | V143: =RTD("cqg.rtd", ,"ContractData",O143, "LongDescription",, "T") -> Rigel Pharmaceuticals Inc | Y143: -0.0251396648 | AB143: 0 | AE143: 0.0251396648 | AF143: -0.0251396648
A144: =RTD("cqg.rtd", ,"ContractData",C144, "LongDescription",, "T") -> Sorrento Therapeutics, Inc. | B144: S.US.SRNE | C144: S.US.SRNE | D144: =RTD("cqg.rtd", ,"ContractData",C144, "LongDescription",, "T") -> Sorrento Therapeutics, Inc. | E144: =RTD("cqg.rtd", ,"ContractData",C144, "Open",, "T") -> 7.27 | F144: =RTD("cqg.rtd", ,"ContractData",C144, "High",, "T") -> 7.57 | G144: =RTD("cqg.rtd", ,"ContractData",C144, "Low",, "T") -> 7.2 | H144: =RTD("cqg.rtd", ,"ContractData",C144, "LastTradeToday",, "T") -> 7.29 | I144: =RTD("cqg.rtd", ,"ContractData",C144, "NetLastTradeToday",, "T") -> -0.15 | J144: =RTD("cqg.rtd", ,"ContractData",C144, "PerCentNetLastTrade",, "T")/100 -> -0.02016129032 | K144: =RTD("cqg.rtd", ,"ContractData", C144, "T_CVol",, "T") -> 5039820 | L144: 144 | M144: =RANK($J144,$J$1:J$169)+COUNTIF($J$1:J144,J144)-1 -> 132 | N144: S.US.SRNE | O144: S.US.ANAB | P144: =RTD("cqg.rtd", ,"ContractData",O144, "PerCentNetLastTrade",, "T")/100 -> -0.02525651144 | Q144: https://finance.yahoo.com/quote/ANAB | T144: 0.02525651144 | V144: =RTD("cqg.rtd", ,"ContractData",O144, "LongDescription",, "T") -> AnaptysBio, Inc. | Y144: -0.02525651144 | AB144: 0 | AE144: 0.02525651144 | AF144: -0.02525651144
A145: =RTD("cqg.rtd", ,"ContractData",C145, "LongDescription",, "T") -> Sarepta Therapeutics, Inc. | B145: S.US.SRPT | C145: S.US.SRPT | D145: =RTD("cqg.rtd", ,"ContractData",C145, "LongDescription",, "T") -> Sarepta Therapeutics, Inc. | E145: =RTD("cqg.rtd", ,"ContractData",C145, "Open",, "T") -> 87.2 | F145: =RTD("cqg.rtd", ,"ContractData",C145, "High",, "T") -> 90.93 | G145: =RTD("cqg.rtd", ,"ContractData",C145, "Low",, "T") -> 84.15 | H145: =RTD("cqg.rtd", ,"ContractData",C145, "LastTradeToday",, "T") -> 90.32 | I145: =RTD("cqg.rtd", ,"ContractData",C145, "NetLastTradeToday",, "T") -> 8.03 | J145: =RTD("cqg.rtd", ,"ContractData",C145, "PerCentNetLastTrade",, "T")/100 -> 0.09758172317 | K145: =RTD("cqg.rtd", ,"ContractData", C145, "T_CVol",, "T") -> 7682296 | L145: 145 | M145: =RANK($J145,$J$1:J$169)+COUNTIF($J$1:J145,J145)-1 -> 4 | N145: S.US.SRPT | O145: S.US.GBIO | P145: =RTD("cqg.rtd", ,"ContractData",O145, "PerCentNetLastTrade",, "T")/100 -> -0.02649480845 | Q145: https://finance.yahoo.com/quote/GBIO | T145: 0.02649480845 | V145: =RTD("cqg.rtd", ,"ContractData",O145, "LongDescription",, "T") -> Generation Bio Co. | Y145: -0.02649480845 | AB145: 0 | AE145: 0.02649480845 | AF145: -0.02649480845
A146: =RTD("cqg.rtd", ,"ContractData",C146, "LongDescription",, "T") -> Scholar Rock Holding Corporation | B146: S.US.SRRK | C146: S.US.SRRK | D146: =RTD("cqg.rtd", ,"ContractData",C146, "LongDescription",, "T") -> Scholar Rock Holding Corporation | E146: =RTD("cqg.rtd", ,"ContractData",C146, "Open",, "T") -> 48.49 | F146: =RTD("cqg.rtd", ,"ContractData",C146, "High",, "T") -> 48.49 | G146: =RTD("cqg.rtd", ,"ContractData",C146, "Low",, "T") -> 45.54 | H146: =RTD("cqg.rtd", ,"ContractData",C146, "LastTradeToday",, "T") -> 47.8 | I146: =RTD("cqg.rtd", ,"ContractData",C146, "NetLastTradeToday",, "T") -> 1.84 | J146: =RTD("cqg.rtd", ,"ContractData",C146, "PerCentNetLastTrade",, "T")/100 -> 0.04003481288 | K146: =RTD("cqg.rtd", ,"ContractData", C146, "T_CVol",, "T") -> 69769 | L146: 146 | M146: =RANK($J146,$J$1:J$169)+COUNTIF($J$1:J146,J146)-1 -> 15 | N146: S.US.SRRK | O146: S.US.SGMO | P146: =RTD("cqg.rtd", ,"ContractData",O146, "PerCentNetLastTrade",, "T")/100 -> -0.02709069494 | Q146: https://finance.yahoo.com/quote/SGMO | T146: 0.02709069494 | V146: =RTD("cqg.rtd", ,"ContractData",O146, "LongDescription",, "T") -> Sangamo Therapeutics, Inc. | Y146: -0.02709069494 | AB146: 0 | AE146: 0.02709069494 | AF146: -0.02709069494
A147: =RTD("cqg.rtd", ,"ContractData",C147, "LongDescription",, "T") -> Stoke Therapeutics, Inc. | B147: S.US.STOK | C147: S.US.STOK | D147: =RTD("cqg.rtd", ,"ContractData",C147, "LongDescription",, "T") -> Stoke Therapeutics, Inc. | E147: =RTD("cqg.rtd", ,"ContractData",C147, "Open",, "T") -> 61 | F147: =RTD("cqg.rtd", ,"ContractData",C147, "High",, "T") -> 61.21 | G147: =RTD("cqg.rtd", ,"ContractData",C147, "Low",, "T") -> 57.69 | H147: =RTD("cqg.rtd", ,"ContractData",C147, "LastTradeToday",, "T") -> 60.77 | I147: =RTD("cqg.rtd", ,"ContractData",C147, "NetLastTradeToday",, "T") -> -0.39 | J147: =RTD("cqg.rtd", ,"ContractData",C147, "PerCentNetLastTrade",, "T")/100 -> -0.006376716808 | K147: =RTD("cqg.rtd", ,"ContractData", C147, "T_CVol",, "T") -> 70847 | L147: 147 | M147: =RANK($J147,$J$1:J$169)+COUNTIF($J$1:J147,J147)-1 -> 108 | N147: S.US.STOK | O147: S.US.PGEN | P147: =RTD("cqg.rtd", ,"ContractData",O147, "PerCentNetLastTrade",, "T")/100 -> -0.02795698925 | Q147: https://finance.yahoo.com/quote/PGEN | T147: 0.02795698925 | V147: =RTD("cqg.rtd", ,"ContractData",O147, "LongDescription",, "T") -> Precigen, Inc. | Y147: -0.02795698925 | AB147: 0 | AE147: 0.02795698925 | AF147: -0.02795698925
A148: =RTD("cqg.rtd", ,"ContractData",C148, "LongDescription",, "T") -> SpringWorks Therapeutics, Inc. | B148: S.US.SWTX | C148: S.US.SWTX | D148: =RTD("cqg.rtd", ,"ContractData",C148, "LongDescription",, "T") -> SpringWorks Therapeutics, Inc. | E148: =RTD("cqg.rtd", ,"ContractData",C148, "Open",, "T") -> 66.04 | F148: =RTD("cqg.rtd", ,"ContractData",C148, "High",, "T") -> 68.11 | G148: =RTD("cqg.rtd", ,"ContractData",C148, "Low",, "T") -> 63.7 | H148: =RTD("cqg.rtd", ,"ContractData",C148, "LastTradeToday",, "T") -> 65.23 | I148: =RTD("cqg.rtd", ,"ContractData",C148, "NetLastTradeToday",, "T") -> -1.26 | J148: =RTD("cqg.rtd", ,"ContractData",C148, "PerCentNetLastTrade",, "T")/100 -> -0.01895021808 | K148: =RTD("cqg.rtd", ,"ContractData", C148, "T_CVol",, "T") -> 131344 | L148: 148 | M148: =RANK($J148,$J$1:J$169)+COUNTIF($J$1:J148,J148)-1 -> 131 | N148: S.US.SWTX | O148: S.US.BCRX | P148: =RTD("cqg.rtd", ,"ContractData",O148, "PerCentNetLastTrade",, "T")/100 -> -0.02842377261 | Q148: https://finance.yahoo.com/quote/BCRX | T148: 0.02842377261 | V148: =RTD("cqg.rtd", ,"ContractData",O148, "LongDescription",, "T") -> Biocryst Pharmaceuticals Inc | Y148: -0.02842377261 | AB148: 0 | AE148: 0.02842377261 | AF148: -0.02842377261
A149: =RTD("cqg.rtd", ,"ContractData",C149, "LongDescription",, "T") -> Translate Bio, Inc. | B149: S.US.TBIO | C149: S.US.TBIO | D149: =RTD("cqg.rtd", ,"ContractData",C149, "LongDescription",, "T") -> Translate Bio, Inc. | E149: =RTD("cqg.rtd", ,"ContractData",C149, "Open",, "T") -> 21.42 | F149: =RTD("cqg.rtd", ,"ContractData",C149, "High",, "T") -> 22.19 | G149: =RTD("cqg.rtd", ,"ContractData",C149, "Low",, "T") -> 21 | H149: =RTD("cqg.rtd", ,"ContractData",C149, "LastTradeToday",, "T") -> 21.81 | I149: =RTD("cqg.rtd", ,"ContractData",C149, "NetLastTradeToday",, "T") -> 0.15 | J149: =RTD("cqg.rtd", ,"ContractData",C149, "PerCentNetLastTrade",, "T")/100 -> 0.006925207756 | K149: =RTD("cqg.rtd", ,"ContractData", C149, "T_CVol",, "T") -> 326723 | L149: 149 | M149: =RANK($J149,$J$1:J$169)+COUNTIF($J$1:J149,J149)-1 -> 62 | N149: S.US.TBIO | O149: S.US.GERN | P149: =RTD("cqg.rtd", ,"ContractData",O149, "PerCentNetLastTrade",, "T")/100 -> -0.02923976608 | Q149: https://finance.yahoo.com/quote/GERN | T149: 0.02923976608 | V149: =RTD("cqg.rtd", ,"ContractData",O149, "LongDescription",, "T") -> Geron Corporation | Y149: -0.02923976608 | AB149: 0 | AE149: 0.02923976608 | AF149: -0.02923976608
A150: =RTD("cqg.rtd", ,"ContractData",C150, "LongDescription",, "T") -> TCR2 Therapeutics Inc. | B150: S.US.TCRR | C150: S.US.TCRR | D150: =RTD("cqg.rtd", ,"ContractData",C150, "LongDescription",, "T") -> TCR2 Therapeutics Inc. | E150: =RTD("cqg.rtd", ,"ContractData",C150, "Open",, "T") -> 31.91 | F150: =RTD("cqg.rtd", ,"ContractData",C150, "High",, "T") -> 33.11 | G150: =RTD("cqg.rtd", ,"ContractData",C150, "Low",, "T") -> 31 | H150: =RTD("cqg.rtd", ,"ContractData",C150, "LastTradeToday",, "T") -> 33.08 | I150: =RTD("cqg.rtd", ,"ContractData",C150, "NetLastTradeToday",, "T") -> 0.78 | J150: =RTD("cqg.rtd", ,"ContractData",C150, "PerCentNetLastTrade",, "T")/100 -> 0.02414860681 | K150: =RTD("cqg.rtd", ,"ContractData", C150, "T_CVol",, "T") -> 120831 | L150: 150 | M150: =RANK($J150,$J$1:J$169)+COUNTIF($J$1:J150,J150)-1 -> 31 | N150: S.US.TCRR | O150: S.US.VIE | P150: =RTD("cqg.rtd", ,"ContractData",O150, "PerCentNetLastTrade",, "T")/100 -> -0.03058103976 | Q150: https://finance.yahoo.com/quote/VIE | T150: 0.03058103976 | V150: =RTD("cqg.rtd", ,"ContractData",O150, "LongDescription",, "T") -> Viela Bio, Inc. | Y150: -0.03058103976 | AB150: 0 | AE150: 0.03058103976 | AF150: -0.03058103976
A151: =RTD("cqg.rtd", ,"ContractData",C151, "LongDescription",, "T") -> TG Therapeutics, Inc. | B151: S.US.TGTX | C151: S.US.TGTX | D151: =RTD("cqg.rtd", ,"ContractData",C151, "LongDescription",, "T") -> TG Therapeutics, Inc. | E151: =RTD("cqg.rtd", ,"ContractData",C151, "Open",, "T") -> 52.5 | F151: =RTD("cqg.rtd", ,"ContractData",C151, "High",, "T") -> 53.5 | G151: =RTD("cqg.rtd", ,"ContractData",C151, "Low",, "T") -> 51.31 | H151: =RTD("cqg.rtd", ,"ContractData",C151, "LastTradeToday",, "T") -> 52.86 | I151: =RTD("cqg.rtd", ,"ContractData",C151, "NetLastTradeToday",, "T") -> -1.14 | J151: =RTD("cqg.rtd", ,"ContractData",C151, "PerCentNetLastTrade",, "T")/100 -> -0.02111111111 | K151: =RTD("cqg.rtd", ,"ContractData", C151, "T_CVol",, "T") -> 585290 | L151: 151 | M151: =RANK($J151,$J$1:J$169)+COUNTIF($J$1:J151,J151)-1 -> 135 | N151: S.US.TGTX | O151: S.US.IMVT | P151: =RTD("cqg.rtd", ,"ContractData",O151, "PerCentNetLastTrade",, "T")/100 -> -0.03225806452 | Q151: https://finance.yahoo.com/quote/IMVT | T151: 0.03225806452 | V151: =RTD("cqg.rtd", ,"ContractData",O151, "LongDescription",, "T") -> Immunovant, Inc. | Y151: -0.03225806452 | AB151: 0 | AE151: 0.03225806452 | AF151: -0.03225806452
A152: =RTD("cqg.rtd", ,"ContractData",C152, "LongDescription",, "T") -> Turning Point Therapeutics, Inc. | B152: S.US.TPTX | C152: S.US.TPTX | D152: =RTD("cqg.rtd", ,"ContractData",C152, "LongDescription",, "T") -> Turning Point Therapeutics, Inc. | E152: =RTD("cqg.rtd", ,"ContractData",C152, "Open",, "T") -> 126.93 | F152: =RTD("cqg.rtd", ,"ContractData",C152, "High",, "T") -> 131.26 | G152: =RTD("cqg.rtd", ,"ContractData",C152, "Low",, "T") -> 123.26 | H152: =RTD("cqg.rtd", ,"ContractData",C152, "LastTradeToday",, "T") -> 129.04 | I152: =RTD("cqg.rtd", ,"ContractData",C152, "NetLastTradeToday",, "T") -> -2.03 | J152: =RTD("cqg.rtd", ,"ContractData",C152, "PerCentNetLastTrade",, "T")/100 -> -0.01548790723 | K152: =RTD("cqg.rtd", ,"ContractData", C152, "T_CVol",, "T") -> 137187 | L152: 152 | M152: =RANK($J152,$J$1:J$169)+COUNTIF($J$1:J152,J152)-1 -> 127 | N152: S.US.TPTX | O152: S.US.ANIK | P152: =RTD("cqg.rtd", ,"ContractData",O152, "PerCentNetLastTrade",, "T")/100 -> -0.03289780681 | Q152: https://finance.yahoo.com/quote/ANIK | T152: 0.03289780681 | V152: =RTD("cqg.rtd", ,"ContractData",O152, "LongDescription",, "T") -> Anika Therapeutics Inc | Y152: -0.03289780681 | AB152: 0 | AE152: 0.03289780681 | AF152: -0.03289780681
A153: =RTD("cqg.rtd", ,"ContractData",C153, "LongDescription",, "T") -> Travere Therapeutics, Inc. | B153: S.US.TVTX | C153: S.US.TVTX | D153: =RTD("cqg.rtd", ,"ContractData",C153, "LongDescription",, "T") -> Travere Therapeutics, Inc. | E153: =RTD("cqg.rtd", ,"ContractData",C153, "Open",, "T") -> 26.82 | F153: =RTD("cqg.rtd", ,"ContractData",C153, "High",, "T") -> 27.47 | G153: =RTD("cqg.rtd", ,"ContractData",C153, "Low",, "T") -> 26.36 | H153: =RTD("cqg.rtd", ,"ContractData",C153, "LastTradeToday",, "T") -> 26.89 | I153: =RTD("cqg.rtd", ,"ContractData",C153, "NetLastTradeToday",, "T") -> -0.1 | J153: =RTD("cqg.rtd", ,"ContractData",C153, "PerCentNetLastTrade",, "T")/100 -> -0.003705075954 | K153: =RTD("cqg.rtd", ,"ContractData", C153, "T_CVol",, "T") -> 100830 | L153: 153 | M153: =RANK($J153,$J$1:J$169)+COUNTIF($J$1:J153,J153)-1 -> 99 | N153: S.US.TVTX | O153: S.US.RNA | P153: =RTD("cqg.rtd", ,"ContractData",O153, "PerCentNetLastTrade",, "T")/100 -> -0.03339253996 | Q153: https://finance.yahoo.com/quote/RNA | T153: 0.03339253996 | V153: =RTD("cqg.rtd", ,"ContractData",O153, "LongDescription",, "T") -> Avidity Biosciences, Inc. | Y153: -0.03339253996 | AB153: 0 | AE153: 0.03339253996 | AF153: -0.03339253996
A154: =RTD("cqg.rtd", ,"ContractData",C154, "LongDescription",, "T") -> Twist Bioscience Corporation | B154: S.US.TWST | C154: S.US.TWST | D154: =RTD("cqg.rtd", ,"ContractData",C154, "LongDescription",, "T") -> Twist Bioscience Corporation | E154: =RTD("cqg.rtd", ,"ContractData",C154, "Open",, "T") -> 162.48 | F154: =RTD("cqg.rtd", ,"ContractData",C154, "High",, "T") -> 173.65 | G154: =RTD("cqg.rtd", ,"ContractData",C154, "Low",, "T") -> 156.49 | H154: =RTD("cqg.rtd", ,"ContractData",C154, "LastTradeToday",, "T") -> 173.65 | I154: =RTD("cqg.rtd", ,"ContractData",C154, "NetLastTradeToday",, "T") -> 7.14 | J154: =RTD("cqg.rtd", ,"ContractData",C154, "PerCentNetLastTrade",, "T")/100 -> 0.04288030749 | K154: =RTD("cqg.rtd", ,"ContractData", C154, "T_CVol",, "T") -> 474119 | L154: 154 | M154: =RANK($J154,$J$1:J$169)+COUNTIF($J$1:J154,J154)-1 -> 13 | N154: S.US.TWST | O154: S.US.FATE | P154: =RTD("cqg.rtd", ,"ContractData",O154, "PerCentNetLastTrade",, "T")/100 -> -0.03722809733 | Q154: https://finance.yahoo.com/quote/FATE | T154: 0.03722809733 | V154: =RTD("cqg.rtd", ,"ContractData",O154, "LongDescription",, "T") -> Fate Therapeutics, Inc. | Y154: -0.03722809733 | AB154: 0 | AE154: 0.03722809733 | AF154: -0.03722809733
A155: =RTD("cqg.rtd", ,"ContractData",C155, "LongDescription",, "T") -> United Therapeutics Corp | B155: S.US.UTHR | C155: S.US.UTHR | D155: =RTD("cqg.rtd", ,"ContractData",C155, "LongDescription",, "T") -> United Therapeutics Corp | E155: =RTD("cqg.rtd", ,"ContractData",C155, "Open",, "T") -> 166.08 | F155: =RTD("cqg.rtd", ,"ContractData",C155, "High",, "T") -> 171.17 | G155: =RTD("cqg.rtd", ,"ContractData",C155, "Low",, "T") -> 164.3 | H155: =RTD("cqg.rtd", ,"ContractData",C155, "LastTradeToday",, "T") -> 169.97 | I155: =RTD("cqg.rtd", ,"ContractData",C155, "NetLastTradeToday",, "T") -> 4.89 | J155: =RTD("cqg.rtd", ,"ContractData",C155, "PerCentNetLastTrade",, "T")/100 -> 0.02962200145 | K155: =RTD("cqg.rtd", ,"ContractData", C155, "T_CVol",, "T") -> 283430 | L155: 155 | M155: =RANK($J155,$J$1:J$169)+COUNTIF($J$1:J155,J155)-1 -> 25 | N155: S.US.UTHR | O155: S.US.NVAX | P155: =RTD("cqg.rtd", ,"ContractData",O155, "PerCentNetLastTrade",, "T")/100 -> -0.03840787854 | Q155: https://finance.yahoo.com/quote/NVAX | T155: 0.03840787854 | V155: =RTD("cqg.rtd", ,"ContractData",O155, "LongDescription",, "T") -> Novavax Inc | Y155: -0.03840787854 | AB155: 0 | AE155: 0.03840787854 | AF155: -0.03840787854
A156: =RTD("cqg.rtd", ,"ContractData",C156, "LongDescription",, "T") -> VBI Vaccines Inc. | B156: S.US.VBIV | C156: S.US.VBIV | D156: =RTD("cqg.rtd", ,"ContractData",C156, "LongDescription",, "T") -> VBI Vaccines Inc. | E156: =RTD("cqg.rtd", ,"ContractData",C156, "Open",, "T") -> 3.11 | F156: =RTD("cqg.rtd", ,"ContractData",C156, "High",, "T") -> 3.15 | G156: =RTD("cqg.rtd", ,"ContractData",C156, "Low",, "T") -> 3.02 | H156: =RTD("cqg.rtd", ,"ContractData",C156, "LastTradeToday",, "T") -> 3.1 | I156: =RTD("cqg.rtd", ,"ContractData",C156, "NetLastTradeToday",, "T") -> -0.03 | J156: =RTD("cqg.rtd", ,"ContractData",C156, "PerCentNetLastTrade",, "T")/100 -> -0.009584664537 | K156: =RTD("cqg.rtd", ,"ContractData", C156, "T_CVol",, "T") -> 2362783 | L156: 156 | M156: =RANK($J156,$J$1:J$169)+COUNTIF($J$1:J156,J156)-1 -> 115 | N156: S.US.VBIV | O156: S.US.DNLI | P156: =RTD("cqg.rtd", ,"ContractData",O156, "PerCentNetLastTrade",, "T")/100 -> -0.04010995877 | Q156: https://finance.yahoo.com/quote/DNLI | T156: 0.04010995877 | V156: =RTD("cqg.rtd", ,"ContractData",O156, "LongDescription",, "T") -> Denali Therapeutics Inc. | Y156: -0.04010995877 | AB156: 0 | AE156: 0.04010995877 | AF156: -0.04010995877
A157: =RTD("cqg.rtd", ,"ContractData",C157, "LongDescription",, "T") -> Vericel Corporation | B157: S.US.VCEL | C157: S.US.VCEL | D157: =RTD("cqg.rtd", ,"ContractData",C157, "LongDescription",, "T") -> Vericel Corporation | E157: =RTD("cqg.rtd", ,"ContractData",C157, "Open",, "T") -> 31.89 | F157: =RTD("cqg.rtd", ,"ContractData",C157, "High",, "T") -> 34.82 | G157: =RTD("cqg.rtd", ,"ContractData",C157, "Low",, "T") -> 30.6 | H157: =RTD("cqg.rtd", ,"ContractData",C157, "LastTradeToday",, "T") -> 34.15 | I157: =RTD("cqg.rtd", ,"ContractData",C157, "NetLastTradeToday",, "T") -> -2.02 | J157: =RTD("cqg.rtd", ,"ContractData",C157, "PerCentNetLastTrade",, "T")/100 -> -0.05584738734 | K157: =RTD("cqg.rtd", ,"ContractData", C157, "T_CVol",, "T") -> 619245 | L157: 157 | M157: =RANK($J157,$J$1:J$169)+COUNTIF($J$1:J157,J157)-1 -> 164 | N157: S.US.VCEL | O157: S.US.GBT | P157: =RTD("cqg.rtd", ,"ContractData",O157, "PerCentNetLastTrade",, "T")/100 -> -0.0426142184 | Q157: https://finance.yahoo.com/quote/GBT | T157: 0.0426142184 | V157: =RTD("cqg.rtd", ,"ContractData",O157, "LongDescription",, "T") -> Global Blood Therapeutics, Inc. | Y157: -0.0426142184 | AB157: 0 | AE157: 0.0426142184 | AF157: -0.0426142184
A158: =RTD("cqg.rtd", ,"ContractData",C158, "LongDescription",, "T") -> Veracyte, Inc. | B158: S.US.VCYT | C158: S.US.VCYT | D158: =RTD("cqg.rtd", ,"ContractData",C158, "LongDescription",, "T") -> Veracyte, Inc. | E158: =RTD("cqg.rtd", ,"ContractData",C158, "Open",, "T") -> 51.3 | F158: =RTD("cqg.rtd", ,"ContractData",C158, "High",, "T") -> 52 | G158: =RTD("cqg.rtd", ,"ContractData",C158, "Low",, "T") -> 49.45 | H158: =RTD("cqg.rtd", ,"ContractData",C158, "LastTradeToday",, "T") -> 51.86 | I158: =RTD("cqg.rtd", ,"ContractData",C158, "NetLastTradeToday",, "T") -> -0.13 | J158: =RTD("cqg.rtd", ,"ContractData",C158, "PerCentNetLastTrade",, "T")/100 -> -0.002500480862 | K158: =RTD("cqg.rtd", ,"ContractData", C158, "T_CVol",, "T") -> 224152 | L158: 158 | M158: =RANK($J158,$J$1:J$169)+COUNTIF($J$1:J158,J158)-1 -> 92 | N158: S.US.VCYT | O158: S.US.DCPH | P158: =RTD("cqg.rtd", ,"ContractData",O158, "PerCentNetLastTrade",, "T")/100 -> -0.04302987198 | Q158: https://finance.yahoo.com/quote/DCPH | T158: 0.04302987198 | V158: =RTD("cqg.rtd", ,"ContractData",O158, "LongDescription",, "T") -> Deciphera Pharmaceuticals, Inc. | Y158: -0.04302987198 | AB158: 0 | AE158: 0.04302987198 | AF158: -0.04302987198
A159: =RTD("cqg.rtd", ,"ContractData",C159, "LongDescription",, "T") -> Viela Bio, Inc. | B159: S.US.VIE | C159: S.US.VIE | D159: =RTD("cqg.rtd", ,"ContractData",C159, "LongDescription",, "T") -> Viela Bio, Inc. | E159: =RTD("cqg.rtd", ,"ContractData",C159, "Open",, "T") -> 39.52 | F159: =RTD("cqg.rtd", ,"ContractData",C159, "High",, "T") -> 39.59 | G159: =RTD("cqg.rtd", ,"ContractData",C159, "Low",, "T") -> 37.62 | H159: =RTD("cqg.rtd", ,"ContractData",C159, "LastTradeToday",, "T") -> 38.04 | I159: =RTD("cqg.rtd", ,"ContractData",C159, "NetLastTradeToday",, "T") -> -1.2 | J159: =RTD("cqg.rtd", ,"ContractData",C159, "PerCentNetLastTrade",, "T")/100 -> -0.03058103976 | K159: =RTD("cqg.rtd", ,"ContractData", C159, "T_CVol",, "T") -> 71938 | L159: 159 | M159: =RANK($J159,$J$1:J$169)+COUNTIF($J$1:J159,J159)-1 -> 150 | N159: S.US.VIE | O159: S.US.ISEE | P159: =RTD("cqg.rtd", ,"ContractData",O159, "PerCentNetLastTrade",, "T")/100 -> -0.04374057315 | Q159: https://finance.yahoo.com/quote/ISEE | T159: 0.04374057315 | V159: =RTD("cqg.rtd", ,"ContractData",O159, "LongDescription",, "T") -> IVERIC bio, Inc. | Y159: -0.04374057315 | AB159: 0 | AE159: 0.04374057315 | AF159: -0.04374057315
A160: =RTD("cqg.rtd", ,"ContractData",C160, "LongDescription",, "T") -> Vir Biotechnology, Inc. | B160: S.US.VIR | C160: S.US.VIR | D160: =RTD("cqg.rtd", ,"ContractData",C160, "LongDescription",, "T") -> Vir Biotechnology, Inc. | E160: =RTD("cqg.rtd", ,"ContractData",C160, "Open",, "T") -> 27.8 | F160: =RTD("cqg.rtd", ,"ContractData",C160, "High",, "T") -> 28.49 | G160: =RTD("cqg.rtd", ,"ContractData",C160, "Low",, "T") -> 27.04 | H160: =RTD("cqg.rtd", ,"ContractData",C160, "LastTradeToday",, "T") -> 28.47 | I160: =RTD("cqg.rtd", ,"ContractData",C160, "NetLastTradeToday",, "T") -> 0.65 | J160: =RTD("cqg.rtd", ,"ContractData",C160, "PerCentNetLastTrade",, "T")/100 -> 0.02336448598 | K160: =RTD("cqg.rtd", ,"ContractData", C160, "T_CVol",, "T") -> 245493 | L160: 160 | M160: =RANK($J160,$J$1:J$169)+COUNTIF($J$1:J160,J160)-1 -> 32 | N160: S.US.VIR | O160: S.US.AMTI | P160: =RTD("cqg.rtd", ,"ContractData",O160, "PerCentNetLastTrade",, "T")/100 -> -0.0440083259 | Q160: https://finance.yahoo.com/quote/AMTI | T160: 0.0440083259 | V160: =RTD("cqg.rtd", ,"ContractData",O160, "LongDescription",, "T") -> Applied Molecular Transport Inc. | Y160: -0.0440083259 | AB160: 0 | AE160: 0.0440083259 | AF160: -0.0440083259
A161: =RTD("cqg.rtd", ,"ContractData",C161, "LongDescription",, "T") -> Viking Therapeutics, Inc. | B161: S.US.VKTX | C161: S.US.VKTX | D161: =RTD("cqg.rtd", ,"ContractData",C161, "LongDescription",, "T") -> Viking Therapeutics, Inc. | E161: =RTD("cqg.rtd", ,"ContractData",C161, "Open",, "T") -> 6.59 | F161: =RTD("cqg.rtd", ,"ContractData",C161, "High",, "T") -> 6.74 | G161: =RTD("cqg.rtd", ,"ContractData",C161, "Low",, "T") -> 6.5 | H161: =RTD("cqg.rtd", ,"ContractData",C161, "LastTradeToday",, "T") -> 6.69 | I161: =RTD("cqg.rtd", ,"ContractData",C161, "NetLastTradeToday",, "T") -> 0.05 | J161: =RTD("cqg.rtd", ,"ContractData",C161, "PerCentNetLastTrade",, "T")/100 -> 0.007530120482 | K161: =RTD("cqg.rtd", ,"ContractData", C161, "T_CVol",, "T") -> 573203 | L161: 161 | M161: =RANK($J161,$J$1:J$169)+COUNTIF($J$1:J161,J161)-1 -> 61 | N161: S.US.VKTX | O161: S.US.RVMD | P161: =RTD("cqg.rtd", ,"ContractData",O161, "PerCentNetLastTrade",, "T")/100 -> -0.04513888889 | Q161: https://finance.yahoo.com/quote/RVMD | T161: 0.04513888889 | V161: =RTD("cqg.rtd", ,"ContractData",O161, "LongDescription",, "T") -> Revolution Medicines, Inc. | Y161: -0.04513888889 | AB161: 0 | AE161: 0.04513888889 | AF161: -0.04513888889
A162: =RTD("cqg.rtd", ,"ContractData",C162, "LongDescription",, "T") -> Vanda Pharma | B162: S.US.VNDA | C162: S.US.VNDA | D162: =RTD("cqg.rtd", ,"ContractData",C162, "LongDescription",, "T") -> Vanda Pharma | E162: =RTD("cqg.rtd", ,"ContractData",C162, "Open",, "T") -> 13.76 | F162: =RTD("cqg.rtd", ,"ContractData",C162, "High",, "T") -> 13.97 | G162: =RTD("cqg.rtd", ,"ContractData",C162, "Low",, "T") -> 13.59 | H162: =RTD("cqg.rtd", ,"ContractData",C162, "LastTradeToday",, "T") -> 13.97 | I162: =RTD("cqg.rtd", ,"ContractData",C162, "NetLastTradeToday",, "T") -> 0.17 | J162: =RTD("cqg.rtd", ,"ContractData",C162, "PerCentNetLastTrade",, "T")/100 -> 0.01231884058 | K162: =RTD("cqg.rtd", ,"ContractData", C162, "T_CVol",, "T") -> 236496 | L162: 162 | M162: =RANK($J162,$J$1:J$169)+COUNTIF($J$1:J162,J162)-1 -> 48 | N162: S.US.VNDA | O162: S.US.BEAM | P162: =RTD("cqg.rtd", ,"ContractData",O162, "PerCentNetLastTrade",, "T")/100 -> -0.05075243435 | Q162: https://finance.yahoo.com/quote/BEAM | T162: 0.05075243435 | V162: =RTD("cqg.rtd", ,"ContractData",O162, "LongDescription",, "T") -> Beam Therapeutics Inc. | Y162: -0.05075243435 | AB162: 0 | AE162: 0.05075243435 | AF162: -0.05075243435
A163: =RTD("cqg.rtd", ,"ContractData",C163, "LongDescription",, "T") -> Vertex Pharmaceuticals Incorporated | B163: S.US.VRTX | C163: S.US.VRTX | D163: =RTD("cqg.rtd", ,"ContractData",C163, "LongDescription",, "T") -> Vertex Pharmaceuticals Incorporated | E163: =RTD("cqg.rtd", ,"ContractData",C163, "Open",, "T") -> 235.58 | F163: =RTD("cqg.rtd", ,"ContractData",C163, "High",, "T") -> 236.47 | G163: =RTD("cqg.rtd", ,"ContractData",C163, "Low",, "T") -> 227.38 | H163: =RTD("cqg.rtd", ,"ContractData",C163, "LastTradeToday",, "T") -> 234.71 | I163: =RTD("cqg.rtd", ,"ContractData",C163, "NetLastTradeToday",, "T") -> -2.29 | J163: =RTD("cqg.rtd", ,"ContractData",C163, "PerCentNetLastTrade",, "T")/100 -> -0.009662447257 | K163: =RTD("cqg.rtd", ,"ContractData", C163, "T_CVol",, "T") -> 1186947 | L163: 163 | M163: =RANK($J163,$J$1:J$169)+COUNTIF($J$1:J163,J163)-1 -> 116 | N163: S.US.VRTX | O163: S.US.RARE | P163: =RTD("cqg.rtd", ,"ContractData",O163, "PerCentNetLastTrade",, "T")/100 -> -0.05431967594 | Q163: https://finance.yahoo.com/quote/RARE | T163: 0.05431967594 | V163: =RTD("cqg.rtd", ,"ContractData",O163, "LongDescription",, "T") -> Ultragenyx Pharmaceutical Inc. | Y163: -0.05431967594 | AB163: 0 | AE163: 0.05431967594 | AF163: -0.05431967594
A164: =RTD("cqg.rtd", ,"ContractData",C164, "LongDescription",, "T") -> Vaxart, Inc | B164: S.US.VXRT | C164: S.US.VXRT | D164: =RTD("cqg.rtd", ,"ContractData",C164, "LongDescription",, "T") -> Vaxart, Inc | E164: =RTD("cqg.rtd", ,"ContractData",C164, "Open",, "T") -> 6.54 | F164: =RTD("cqg.rtd", ,"ContractData",C164, "High",, "T") -> 6.56 | G164: =RTD("cqg.rtd", ,"ContractData",C164, "Low",, "T") -> 6.09 | H164: =RTD("cqg.rtd", ,"ContractData",C164, "LastTradeToday",, "T") -> 6.39 | I164: =RTD("cqg.rtd", ,"ContractData",C164, "NetLastTradeToday",, "T") -> -0.16 | J164: =RTD("cqg.rtd", ,"ContractData",C164, "PerCentNetLastTrade",, "T")/100 -> -0.02442748092 | K164: =RTD("cqg.rtd", ,"ContractData", C164, "T_CVol",, "T") -> 3452376 | L164: 164 | M164: =RANK($J164,$J$1:J$169)+COUNTIF($J$1:J164,J164)-1 -> 141 | N164: S.US.VXRT | O164: S.US.VCEL | P164: =RTD("cqg.rtd", ,"ContractData",O164, "PerCentNetLastTrade",, "T")/100 -> -0.05584738734 | Q164: https://finance.yahoo.com/quote/VCEL | T164: 0.05584738734 | V164: =RTD("cqg.rtd", ,"ContractData",O164, "LongDescription",, "T") -> Vericel Corporation | Y164: -0.05584738734 | AB164: 0 | AE164: 0.05584738734 | AF164: -0.05584738734
A165: =RTD("cqg.rtd", ,"ContractData",C165, "LongDescription",, "T") -> Acceleron Pharma Inc. | B165: S.US.XLRN | C165: S.US.XLRN | D165: =RTD("cqg.rtd", ,"ContractData",C165, "LongDescription",, "T") -> Acceleron Pharma Inc. | E165: =RTD("cqg.rtd", ,"ContractData",C165, "Open",, "T") -> 115.9 | F165: =RTD("cqg.rtd", ,"ContractData",C165, "High",, "T") -> 117.5 | G165: =RTD("cqg.rtd", ,"ContractData",C165, "Low",, "T") -> 113.97 | H165: =RTD("cqg.rtd", ,"ContractData",C165, "LastTradeToday",, "T") -> 115.68 | I165: =RTD("cqg.rtd", ,"ContractData",C165, "NetLastTradeToday",, "T") -> -0.11 | J165: =RTD("cqg.rtd", ,"ContractData",C165, "PerCentNetLastTrade",, "T")/100 -> -0.0009499956818 | K165: =RTD("cqg.rtd", ,"ContractData", C165, "T_CVol",, "T") -> 230819 | L165: 165 | M165: =RANK($J165,$J$1:J$169)+COUNTIF($J$1:J165,J165)-1 -> 87 | N165: S.US.XLRN | O165: S.US.CYTK | P165: =RTD("cqg.rtd", ,"ContractData",O165, "PerCentNetLastTrade",, "T")/100 -> -0.06357308585 | Q165: https://finance.yahoo.com/quote/CYTK | T165: 0.06357308585 | V165: =RTD("cqg.rtd", ,"ContractData",O165, "LongDescription",, "T") -> Cytokinetics Inc | Y165: -0.06357308585 | AB165: 0 | AE165: 0.06357308585 | AF165: -0.06357308585
A166: =RTD("cqg.rtd", ,"ContractData",C166, "LongDescription",, "T") -> Xencor, Inc. | B166: S.US.XNCR | C166: S.US.XNCR | D166: =RTD("cqg.rtd", ,"ContractData",C166, "LongDescription",, "T") -> Xencor, Inc. | E166: =RTD("cqg.rtd", ,"ContractData",C166, "Open",, "T") -> 48.87 | F166: =RTD("cqg.rtd", ,"ContractData",C166, "High",, "T") -> 50.04 | G166: =RTD("cqg.rtd", ,"ContractData",C166, "Low",, "T") -> 48.62 | H166: =RTD("cqg.rtd", ,"ContractData",C166, "LastTradeToday",, "T") -> 49.15 | I166: =RTD("cqg.rtd", ,"ContractData",C166, "NetLastTradeToday",, "T") -> -0.23 | J166: =RTD("cqg.rtd", ,"ContractData",C166, "PerCentNetLastTrade",, "T")/100 -> -0.004657756177 | K166: =RTD("cqg.rtd", ,"ContractData", C166, "T_CVol",, "T") -> 92597 | L166: 166 | M166: =RANK($J166,$J$1:J$169)+COUNTIF($J$1:J166,J166)-1 -> 101 | N166: S.US.XNCR | O166: S.US.KPTI | P166: =RTD("cqg.rtd", ,"ContractData",O166, "PerCentNetLastTrade",, "T")/100 -> -0.07110352673 | Q166: https://finance.yahoo.com/quote/KPTI | T166: 0.07110352673 | V166: =RTD("cqg.rtd", ,"ContractData",O166, "LongDescription",, "T") -> Karyopharm Therapeutics Inc. | Y166: -0.07110352673 | AB166: 0 | AE166: 0.07110352673 | AF166: -0.07110352673
A167: =RTD("cqg.rtd", ,"ContractData",C167, "LongDescription",, "T") -> Y-mAbs Therapeutics, Inc. | B167: S.US.YMAB | C167: S.US.YMAB | D167: =RTD("cqg.rtd", ,"ContractData",C167, "LongDescription",, "T") -> Y-mAbs Therapeutics, Inc. | E167: =RTD("cqg.rtd", ,"ContractData",C167, "Open",, "T") -> 51.04 | F167: =RTD("cqg.rtd", ,"ContractData",C167, "High",, "T") -> 51.87 | G167: =RTD("cqg.rtd", ,"ContractData",C167, "Low",, "T") -> 50.56 | H167: =RTD("cqg.rtd", ,"ContractData",C167, "LastTradeToday",, "T") -> 51.63 | I167: =RTD("cqg.rtd", ,"ContractData",C167, "NetLastTradeToday",, "T") -> 0.28 | J167: =RTD("cqg.rtd", ,"ContractData",C167, "PerCentNetLastTrade",, "T")/100 -> 0.005452775073 | K167: =RTD("cqg.rtd", ,"ContractData", C167, "T_CVol",, "T") -> 185067 | L167: 167 | M167: =RANK($J167,$J$1:J$169)+COUNTIF($J$1:J167,J167)-1 -> 67 | N167: S.US.YMAB | O167: S.US.BMRN | P167: =RTD("cqg.rtd", ,"ContractData",O167, "PerCentNetLastTrade",, "T")/100 -> -0.07433785889 | Q167: https://finance.yahoo.com/quote/BMRN | T167: 0.07433785889 | V167: =RTD("cqg.rtd", ,"ContractData",O167, "LongDescription",, "T") -> BioMarin Pharmaceutical Inc | Y167: -0.07433785889 | AB167: 0 | AE167: 0.07433785889 | AF167: -0.07433785889
A168: =RTD("cqg.rtd", ,"ContractData",C168, "LongDescription",, "T") -> Ziopharm Oncology Inc | B168: S.US.ZIOP | C168: S.US.ZIOP | D168: =RTD("cqg.rtd", ,"ContractData",C168, "LongDescription",, "T") -> Ziopharm Oncology Inc | E168: =RTD("cqg.rtd", ,"ContractData",C168, "Open",, "T") -> 3.17 | F168: =RTD("cqg.rtd", ,"ContractData",C168, "High",, "T") -> 3.17 | G168: =RTD("cqg.rtd", ,"ContractData",C168, "Low",, "T") -> 3.04 | H168: =RTD("cqg.rtd", ,"ContractData",C168, "LastTradeToday",, "T") -> 3.15 | I168: =RTD("cqg.rtd", ,"ContractData",C168, "NetLastTradeToday",, "T") -> -0.01 | J168: =RTD("cqg.rtd", ,"ContractData",C168, "PerCentNetLastTrade",, "T")/100 -> -0.003164556962 | K168: =RTD("cqg.rtd", ,"ContractData", C168, "T_CVol",, "T") -> 608140 | L168: 168 | M168: =RANK($J168,$J$1:J$169)+COUNTIF($J$1:J168,J168)-1 -> 97 | N168: S.US.ZIOP | O168: S.US.NVTA | P168: =RTD("cqg.rtd", ,"ContractData",O168, "PerCentNetLastTrade",, "T")/100 -> -0.08879327205 | Q168: https://finance.yahoo.com/quote/NVTA | T168: 0.08879327205 | V168: =RTD("cqg.rtd", ,"ContractData",O168, "LongDescription",, "T") -> Invitae Corp | Y168: -0.08879327205 | AB168: 0 | AE168: 0.08879327205 | AF168: -0.08879327205
A169: =RTD("cqg.rtd", ,"ContractData",C169, "LongDescription",, "T") -> Zentalis Pharmaceuticals, Inc. | B169: S.US.ZNTL | C169: S.US.ZNTL | D169: =RTD("cqg.rtd", ,"ContractData",C169, "LongDescription",, "T") -> Zentalis Pharmaceuticals, Inc. | E169: =RTD("cqg.rtd", ,"ContractData",C169, "Open",, "T") -> 48.99 | F169: =RTD("cqg.rtd", ,"ContractData",C169, "High",, "T") -> 50.35 | G169: =RTD("cqg.rtd", ,"ContractData",C169, "Low",, "T") -> 47.11 | H169: =RTD("cqg.rtd", ,"ContractData",C169, "LastTradeToday",, "T") -> 49.05 | I169: =RTD("cqg.rtd", ,"ContractData",C169, "NetLastTradeToday",, "T") -> -0.52 | J169: =RTD("cqg.rtd", ,"ContractData",C169, "PerCentNetLastTrade",, "T")/100 -> -0.01049021586 | K169: =RTD("cqg.rtd", ,"ContractData", C169, "T_CVol",, "T") -> 63306 | L169: 169 | M169: =RANK($J169,$J$1:J$169)+COUNTIF($J$1:J169,J169)-1 -> 118 | N169: S.US.ZNTL | O169: S.US.EDIT | P169: =RTD("cqg.rtd", ,"ContractData",O169, "PerCentNetLastTrade",, "T")/100 -> -0.1685802605 | Q169: https://finance.yahoo.com/quote/EDIT | T169: 0.1685802605 | V169: =RTD("cqg.rtd", ,"ContractData",O169, "LongDescription",, "T") -> Editas Medicine, Inc. | Y169: -0.1685802605 | AB169: 0 | AE169: 0.1685802605 | AF169: -0.1685802605
AB170: =SUM(AB1:AB169)/169 -> 0.4970414201
